Workbook

Sheet capa
B25: =+IF(AND(NPROC<>0,NTOT>0),"Esta planilha precisa ser atualizada!","") -> 

Sheet cadastro
B3: CADASTRO | H3: PSS S/ RUBRICA
B4: NÚMERO DO PROCESSO: | H4: DATA | I4: VALOR | K4: TIPO DE PARCELA | L4: HISTÓRICO | M4: VALOR DO JUROS | N4: FOLHAS | O4: CRITICA
B5: NOME DO AUTOR: | P5: TIP | V5: CORREÇÃO MONETÁRIA
B6: DATA FINAL DE ATUALIZAÇÃO: | D6: =+VHOJE -> 2021-12-01 | E6: =+IF(S13>VDAT_AT,CONCATENATE("Data ajustada para ",TEXT(EOMONTH(VDAT_IND,0),"dd/mm/aaaa")),"") ->  | K6: POSITIVA | L6: CONTR. PSS | O6: =+IF(AND(H6<=DAT_VAL,H6>=DAT_LIM_AT,K6<>"",H6<>"",OR(I6<>"",M6<>"")),"OK","") ->  | P6: =+IF(O6="","",IF(LEFT(K6,1)="P","C","D")) -> 
B7: CRITÉRIO DOS JUROS DE MORA: | D7: SELIC | K7: POSITIVA | L7: CONTR. PSS
K8: POSITIVA | L8: CONTR. PSS | R8: COR. MONETÁRIA (ref): | S8: =+IF(T50="",0,LOOKUP(MATCH(T50,tabelas!BD9:BD26,0),tabelas!BB:BB,tabelas!BC:BC)) -> 0 | T8: COD_CM | V8: nr | W8: CRITÉRIO | X8: NR | Y8: ORD | Z8: CRITÉRIO
K9: POSITIVA | L9: CONTR. PSS | R9: PROCESSO | S9: =+IF(cadastro!D4="","",cadastro!D4) ->  | T9: NUM_PROC1
K10: POSITIVA | L10: CONTR. PSS | R10: AUTOR | S10: =+IF(cadastro!D5="","",cadastro!D5) ->  | V10: 1 | W10: =+IF(tabelas!BD9="","",tabelas!BD9) -> Resolução CJF - 267/2013 | X10: =+IF(W10="","",V10) -> 1 | Y10: =+IF(ISERR(SMALL($X$10:$X$27,V10)),"",SMALL($X$10:$X$27,V10)) -> 1 | Z10: =+IF(Y10="","",LOOKUP(Y10,$V$10:$V$27,$W$10:$W$27)) -> Resolução CJF - 267/2013
K11: POSITIVA | L11: CONTR. PSS | R11: DATA DE ATUALIZAÇÃO: | S11: =IF(VDAT_VAL>VDAT_IND,VDAT_IND,VDAT_VAL) -> 2021-12-01 | T11: VDAT_AT | V11: 2 | W11: =+IF(tabelas!BD10="","",tabelas!BD10) -> Resolução CJF - 134/2010 | X11: =+IF(W11="","",V11) -> 2 | Y11: 2 | Z11: =+IF(Y11="","",LOOKUP(Y11,$V$10:$V$27,$W$10:$W$27)) -> Resolução CJF - 134/2010
K12: POSITIVA | L12: CONTR. PSS | R12: DATA DE ATUALIZAÇÃO: | S12: =+EOMONTH(VDAT_AT,-1)+1 -> 2021-12-01 | T12: VDAT_AT1 | V12: 3 | W12: =+IF(tabelas!BD11="","",tabelas!BD11) -> TR | X12: 3 | Y12: 3 | Z12: TR
K13: POSITIVA | L13: CONTR. PSS | R13: AUXILIAR | S13: =+IF(D6="",VHOJE,EOMONTH(D6,-1)+1) -> 2021-12-01 | V13: 4 | W13: =+IF(tabelas!BD12="","",tabelas!BD12) ->  | Y13: 9 | Z13: FGTS-3%
K14: POSITIVA | L14: CONTR. PSS | R14: DATA DE HOJE(1): | S14: =+EOMONTH(TRUNC(NOW(),0),-1)+1 -> 2021-12-01 | T14: VHOJE | V14: 5 | W14: =+IF(tabelas!BD13="","",tabelas!BD13) ->  | Y14: 12 | Z14: FGTS-6%
K15: POSITIVA | L15: CONTR. PSS | R15: DATA FIM DE ATUAL.(1): | S15: =+IF(D6="","",EOMONTH(D6,-1)+1) -> 2021-12-01 | T15: VDAT_VAL | V15: 6 | W15: =+IF(tabelas!BD14="","",tabelas!BD14) ->  | Y15: 13 | Z15: JUROS REM FGTS-3%
K16: POSITIVA | L16: CONTR. PSS | R16: JUROS (ref): | S16: =+IF(D7="","",MATCH(D7,tabelas!CM9:CM19,0)) -> 10 | T16: COD_JUROS | V16: 7 | W16: =+IF(tabelas!BD15="","",tabelas!BD15) ->  | Y16: 14 | Z16: JUROS REM FGTS-6%
K17: POSITIVA | L17: CONTR. PSS | R17: DATA DE ÍNICIO DOS JUROS: | S17: =+IF(T51="","",DATE(YEAR(T51),MONTH(T51),1)) ->  | T17: DAT_INI_JUR | V17: 8 | W17: =+IF(tabelas!BD16="","",tabelas!BD16) ->  | Y17: 15 | Z17: JUROS REM FGTS-5%
K18: POSITIVA | L18: CONTR. PSS | R18: DATA INICIO DO INDICE: | S18: =+IF(COD_CM=0,S22,LOOKUP(COD_CM,tabelas!BB9:BB20,tabelas!BH9:BH20)) -> 2001-01-01 | T18: DAT_LIM_AT | V18: 9 | W18: =+IF(tabelas!BD17="","",tabelas!BD17) -> FGTS-3% | X18: 9 | Y18: =+IF(ISERR(SMALL($X$10:$X$27,V18)),"",SMALL($X$10:$X$27,V18)) -> 16 | Z18: =+IF(Y18="","",LOOKUP(Y18,$V$10:$V$27,$W$10:$W$27)) -> IPCA
K19: POSITIVA | L19: CONTR. PSS | R19: DATA FIM DO ÍNDICE: | S19: =+IF(COD_CM=0,NOW(),LOOKUP(MATCH(COD_CM,tabelas!BC9:BC20),tabelas!BB9:BB20,tabelas!BI9:BI20)) -> 2021-12-07T09:37:51.890 | T19: VDAT_IND | V19: 10 | W19: =+IF(tabelas!BD18="","",tabelas!BD18) ->  | Y19: 21 | Z19: Sem correção monetária
K20: POSITIVA | L20: CONTR. PSS | R20: DATA PARA VALIDAÇÃO: | S20: =+EOMONTH(VDAT_AT,0) -> 2021-12-31 | T20: DAT_VAL | V20: 11 | W20: =+IF(tabelas!BD19="","",tabelas!BD19) -> 
K21: POSITIVA | L21: CONTR. PSS | R21: DATA LIMITE DE JUROS: | S21: =+IF(COD_CM=0,S22,LOOKUP(MATCH(COD_CM,tabelas!BC9:BC20),tabelas!BB9:BB20,tabelas!BH9:BH20)) -> 2001-01-01 | T21: DAT_LIM_JR | V21: 12 | W21: =+IF(tabelas!BD20="","",tabelas!BD20) -> FGTS-6% | X21: 12
K22: POSITIVA | L22: CONTR. PSS | R22: AUXILIAR 1: | S22: 2001-01-01 | V22: 13 | W22: =+IF(tabelas!BD21="","",tabelas!BD21) -> JUROS REM FGTS-3% | X22: 13
K23: POSITIVA | L23: CONTR. PSS | V23: 14 | W23: =+IF(tabelas!BD22="","",tabelas!BD22) -> JUROS REM FGTS-6% | X23: 14
K24: POSITIVA | L24: CONTR. PSS | R24: DATA DE ÍNICIO DOS JUROS: | S24: =+IF(T51="","",TRUNC(T51,0)) ->  | T24: VDAT_JUR | V24: 15 | W24: =+IF(tabelas!BD23="","",tabelas!BD23) -> JUROS REM FGTS-5% | X24: 15
K25: POSITIVA | L25: CONTR. PSS | R25: DATA DE ÍNICIO DOS JUROS: | S25: =+IF(VDAT_JUR="","",EOMONTH(VDAT_JUR,-1)+1) ->  | T25: VDAT_JUR1 | V25: 16 | W25: =+IF(tabelas!BD24="","",tabelas!BD24) -> IPCA | X25: 16
K26: POSITIVA | L26: CONTR. PSS | V26: 17 | W26: =+IF(tabelas!BD25="","",tabelas!BD25) -> 
K27: POSITIVA | L27: CONTR. PSS | V27: 21 | W27: =+IF(tabelas!BD26="","",tabelas!BD26) -> Sem correção monetária | X27: 21
K28: POSITIVA | L28: CONTR. PSS
K29: POSITIVA | L29: CONTR. PSS
K30: POSITIVA | L30: CONTR. PSS | R30: POSITIVA
R31: NEGATIVA
V32: JUROS DE MORA
V33: nr | W33: CRITÉRIO | X33: NR | Y33: ORD | Z33: CRITÉRIO
V35: 1 | W35: =+IF(tabelas!CM9="","",IF(tabelas!CN9="S",tabelas!CM9,"")) -> 0,5% | X35: =+IF(W35="","",V35) -> 1 | Y35: =+IF(ISERR(SMALL($X$35:$X$46,V35)),"",SMALL($X$35:$X$46,V35)) -> 1 | Z35: =+IF(Y35="","",LOOKUP(Y35,$V$35:$V$46,$W$35:$W$46)) -> 0,5%
V36: 2 | W36: =+IF(tabelas!CM10="","",IF(tabelas!CN10="S",tabelas!CM10,"")) -> 0,5% até 6/2009 e após juros poup. | X36: =+IF(W36="","",V36) -> 2 | Y36: =+IF(ISERR(SMALL($X$35:$X$46,V36)),"",SMALL($X$35:$X$46,V36)) -> 2 | Z36: 0,5% até 6/2009 e após juros poup.
V37: 3 | W37: =+IF(tabelas!CM11="","",IF(tabelas!CN11="S",tabelas!CM11,"")) -> 0,5% até 12/2002 após 1% até 6/2009 e após juros poup. | X37: 3 | Y37: 3 | Z37: 0,5% até 12/2002 após 1% até 6/2009 e após juros poup.
V38: 4 | W38: =+IF(tabelas!CM12="","",IF(tabelas!CN12="S",tabelas!CM12,"")) -> 1,0% | X38: 4 | Y38: 4 | Z38: 1,0%
V39: 5 | W39: =+IF(tabelas!CM13="","",IF(tabelas!CN13="S",tabelas!CM13,"")) ->  | Y39: 10 | Z39: SELIC
V40: 6 | W40: =+IF(tabelas!CM14="","",IF(tabelas!CN14="S",tabelas!CM14,"")) ->  | Y40: 11 | Z40: sem juros moratórios
V41: 7 | W41: =+IF(tabelas!CM15="","",IF(tabelas!CN15="S",tabelas!CM15,"")) -> 
V42: 8 | W42: =+IF(tabelas!CM16="","",IF(tabelas!CN16="S",tabelas!CM16,"")) -> 
V43: 9 | W43: =+IF(tabelas!CM17="","",IF(tabelas!CN17="S",tabelas!CM17,"")) -> 
V44: 10 | W44: =+IF(tabelas!CM18="","",IF(tabelas!CN18="S",tabelas!CM18,"")) -> SELIC | X44: 10
V45: 11 | W45: =+IF(tabelas!CM19="","",IF(tabelas!CN19="S",tabelas!CM19,"")) -> sem juros moratórios | X45: 11
V46: 12 | W46: =+IF(tabelas!CM20="","",IF(tabelas!CN20="S",tabelas!CM20,"")) -> 
R50: CRITÉRIO DE CORREÇÃO MONETÁRIA: | T50: Sem correção monetária
R51: DATA DE INICIO DE JUROS: | U51: =+IF(T51="","",IF(DAT_INI_JUR>S11,"Data invalida!","")) -> 
R53: INFORMAÇÃO COMPLEMENTAR

Sheet calculo
B3: PODER JUDICIÁRIO
B4: JUSTIÇA FEDERAL
B5: Seção Judiciária do Rio de Janeiro
B6: CÁLCULO DE ATUALIZAÇÃO
B8: PROCESSO: | E8: AUTOR(A) : | L8: ATUALIZADO ATÉ:
B9: =+IF(cadastro!D4="","",cadastro!D4) ->  | E9: =+IF(cadastro!D5="","",PROPER(cadastro!D5)) ->  | L9: =+IF(VDAT_AT="","",VDAT_AT) -> 2021-12-01
B10: CÁLCULO
B12: DISCRIMINAÇÃO DA PARCELA HISTÓRICA | G12: COEFIC. ATUALIZ. | H12: PARCELA ATUALIZADA | J12: SELIC | L12: VALOR TOTAL
B13: DATA | C13: DESCRIÇÃO | D13: FLHS | E13: PRINCIPAL | F13: JUROS | H13: PRINCIPAL | I13: JUROS | J13: % | K13: VALOR
B14: =+rascunho!O4 ->  | C14: =+rascunho!M4 ->  | D14: =+rascunho!N4 ->  | E14: =+rascunho!Q4 ->  | F14: =+rascunho!R4 ->  | G14: =+rascunho!S4 ->  | H14: =+rascunho!T4 ->  | I14: =+rascunho!U4 ->  | J14: =+rascunho!V4 ->  | K14: =+rascunho!W4 ->  | L14: =+rascunho!X4 -> 
B15: =+rascunho!O5 ->  | C15: =+rascunho!M5 ->  | D15: =+rascunho!N5 ->  | E15: =+rascunho!Q5 ->  | F15: =+rascunho!R5 ->  | G15: =+rascunho!S5 ->  | H15: =+rascunho!T5 ->  | I15: =+rascunho!U5 ->  | J15: =+rascunho!V5 ->  | K15: =+rascunho!W5 ->  | L15: =+rascunho!X5 ->  | O15: IMPRIME
B16: =+rascunho!O6 ->  | C16: =+rascunho!M6 ->  | D16: =+rascunho!N6 ->  | E16: =+rascunho!Q6 ->  | F16: =+rascunho!R6 ->  | G16: =+rascunho!S6 ->  | H16: =+rascunho!T6 ->  | I16: =+rascunho!U6 ->  | J16: =+rascunho!V6 ->  | K16: =+rascunho!W6 ->  | L16: =+rascunho!X6 ->  | O16: B3:L65 | P16: cod_imp
B17: =+rascunho!O7 ->  | C17: =+rascunho!M7 ->  | D17: =+rascunho!N7 ->  | E17: =+rascunho!Q7 ->  | F17: =+rascunho!R7 ->  | G17: =+rascunho!S7 ->  | H17: =+rascunho!T7 ->  | I17: =+rascunho!U7 ->  | J17: =+rascunho!V7 ->  | K17: =+rascunho!W7 ->  | L17: =+rascunho!X7 ->  | O17: FALSE | P17: sel_imp
B18: =+rascunho!O8 ->  | C18: =+rascunho!M8 ->  | D18: =+rascunho!N8 ->  | E18: =+rascunho!Q8 ->  | F18: =+rascunho!R8 ->  | G18: =+rascunho!S8 ->  | H18: =+rascunho!T8 ->  | I18: =+rascunho!U8 ->  | J18: =+rascunho!V8 ->  | K18: =+rascunho!W8 ->  | L18: =+rascunho!X8 ->  | O18: TRUE | P18: vis_imp
B19: =+rascunho!O9 ->  | C19: =+rascunho!M9 ->  | D19: =+rascunho!N9 ->  | E19: =+rascunho!Q9 ->  | F19: =+rascunho!R9 ->  | G19: =+rascunho!S9 ->  | H19: =+rascunho!T9 ->  | I19: =+rascunho!U9 ->  | J19: =+rascunho!V9 ->  | K19: =+rascunho!W9 ->  | L19: =+rascunho!X9 -> 
B20: =+rascunho!O10 ->  | C20: =+rascunho!M10 ->  | D20: =+rascunho!N10 ->  | E20: =+rascunho!Q10 ->  | F20: =+rascunho!R10 ->  | G20: =+rascunho!S10 ->  | H20: =+rascunho!T10 ->  | I20: =+rascunho!U10 ->  | J20: =+rascunho!V10 ->  | K20: =+rascunho!W10 ->  | L20: =+rascunho!X10 -> 
B21: =+rascunho!O11 ->  | C21: =+rascunho!M11 ->  | D21: =+rascunho!N11 ->  | E21: =+rascunho!Q11 ->  | F21: =+rascunho!R11 ->  | G21: =+rascunho!S11 ->  | H21: =+rascunho!T11 ->  | I21: =+rascunho!U11 ->  | J21: =+rascunho!V11 ->  | K21: =+rascunho!W11 ->  | L21: =+rascunho!X11 -> 
B22: =+rascunho!O12 ->  | C22: =+rascunho!M12 ->  | D22: =+rascunho!N12 ->  | E22: =+rascunho!Q12 ->  | F22: =+rascunho!R12 ->  | G22: =+rascunho!S12 ->  | H22: =+rascunho!T12 ->  | I22: =+rascunho!U12 ->  | J22: =+rascunho!V12 ->  | K22: =+rascunho!W12 ->  | L22: =+rascunho!X12 -> 
B23: =+rascunho!O13 ->  | C23: =+rascunho!M13 ->  | D23: =+rascunho!N13 ->  | E23: =+rascunho!Q13 ->  | F23: =+rascunho!R13 ->  | G23: =+rascunho!S13 ->  | H23: =+rascunho!T13 ->  | I23: =+rascunho!U13 ->  | J23: =+rascunho!V13 ->  | K23: =+rascunho!W13 ->  | L23: =+rascunho!X13 -> 
B24: =+rascunho!O14 ->  | C24: =+rascunho!M14 ->  | D24: =+rascunho!N14 ->  | E24: =+rascunho!Q14 ->  | F24: =+rascunho!R14 ->  | G24: =+rascunho!S14 ->  | H24: =+rascunho!T14 ->  | I24: =+rascunho!U14 ->  | J24: =+rascunho!V14 ->  | K24: =+rascunho!W14 ->  | L24: =+rascunho!X14 -> 
B25: =+rascunho!O15 ->  | C25: =+rascunho!M15 ->  | D25: =+rascunho!N15 ->  | E25: =+rascunho!Q15 ->  | F25: =+rascunho!R15 ->  | G25: =+rascunho!S15 ->  | H25: =+rascunho!T15 ->  | I25: =+rascunho!U15 ->  | J25: =+rascunho!V15 ->  | K25: =+rascunho!W15 ->  | L25: =+rascunho!X15 -> 
B26: =+rascunho!O16 ->  | C26: =+rascunho!M16 ->  | D26: =+rascunho!N16 ->  | E26: =+rascunho!Q16 ->  | F26: =+rascunho!R16 ->  | G26: =+rascunho!S16 ->  | H26: =+rascunho!T16 ->  | I26: =+rascunho!U16 ->  | J26: =+rascunho!V16 ->  | K26: =+rascunho!W16 ->  | L26: =+rascunho!X16 -> 
B27: =+rascunho!O17 ->  | C27: =+rascunho!M17 ->  | D27: =+rascunho!N17 ->  | E27: =+rascunho!Q17 ->  | F27: =+rascunho!R17 ->  | G27: =+rascunho!S17 ->  | H27: =+rascunho!T17 ->  | I27: =+rascunho!U17 ->  | J27: =+rascunho!V17 ->  | K27: =+rascunho!W17 ->  | L27: =+rascunho!X17 -> 
B28: =+rascunho!O18 ->  | C28: =+rascunho!M18 ->  | D28: =+rascunho!N18 ->  | E28: =+rascunho!Q18 ->  | F28: =+rascunho!R18 ->  | G28: =+rascunho!S18 ->  | H28: =+rascunho!T18 ->  | I28: =+rascunho!U18 ->  | J28: =+rascunho!V18 ->  | K28: =+rascunho!W18 ->  | L28: =+rascunho!X18 -> 
B29: =+rascunho!O19 ->  | C29: =+rascunho!M19 ->  | D29: =+rascunho!N19 ->  | E29: =+rascunho!Q19 ->  | F29: =+rascunho!R19 ->  | G29: =+rascunho!S19 ->  | H29: =+rascunho!T19 ->  | I29: =+rascunho!U19 ->  | J29: =+rascunho!V19 ->  | K29: =+rascunho!W19 ->  | L29: =+rascunho!X19 -> 
B30: =+rascunho!O20 ->  | C30: =+rascunho!M20 ->  | D30: =+rascunho!N20 ->  | E30: =+rascunho!Q20 ->  | F30: =+rascunho!R20 ->  | G30: =+rascunho!S20 ->  | H30: =+rascunho!T20 ->  | I30: =+rascunho!U20 ->  | J30: =+rascunho!V20 ->  | K30: =+rascunho!W20 ->  | L30: =+rascunho!X20 -> 
B31: =+rascunho!O21 ->  | C31: =+rascunho!M21 ->  | D31: =+rascunho!N21 ->  | E31: =+rascunho!Q21 ->  | F31: =+rascunho!R21 ->  | G31: =+rascunho!S21 ->  | H31: =+rascunho!T21 ->  | I31: =+rascunho!U21 ->  | J31: =+rascunho!V21 ->  | K31: =+rascunho!W21 ->  | L31: =+rascunho!X21 -> 
B32: =+rascunho!O22 ->  | C32: =+rascunho!M22 ->  | D32: =+rascunho!N22 ->  | E32: =+rascunho!Q22 ->  | F32: =+rascunho!R22 ->  | G32: =+rascunho!S22 ->  | H32: =+rascunho!T22 ->  | I32: =+rascunho!U22 ->  | J32: =+rascunho!V22 ->  | K32: =+rascunho!W22 ->  | L32: =+rascunho!X22 -> 
B33: =+rascunho!O23 ->  | C33: =+rascunho!M23 ->  | D33: =+rascunho!N23 ->  | E33: =+rascunho!Q23 ->  | F33: =+rascunho!R23 ->  | G33: =+rascunho!S23 ->  | H33: =+rascunho!T23 ->  | I33: =+rascunho!U23 ->  | J33: =+rascunho!V23 ->  | K33: =+rascunho!W23 ->  | L33: =+rascunho!X23 -> 
B34: =+rascunho!O24 ->  | C34: =+rascunho!M24 ->  | D34: =+rascunho!N24 ->  | E34: =+rascunho!Q24 ->  | F34: =+rascunho!R24 ->  | G34: =+rascunho!S24 ->  | H34: =+rascunho!T24 ->  | I34: =+rascunho!U24 ->  | J34: =+rascunho!V24 ->  | K34: =+rascunho!W24 ->  | L34: =+rascunho!X24 -> 
B35: =+rascunho!O25 ->  | C35: =+rascunho!M25 ->  | D35: =+rascunho!N25 ->  | E35: =+rascunho!Q25 ->  | F35: =+rascunho!R25 ->  | G35: =+rascunho!S25 ->  | H35: =+rascunho!T25 ->  | I35: =+rascunho!U25 ->  | J35: =+rascunho!V25 ->  | K35: =+rascunho!W25 ->  | L35: =+rascunho!X25 -> 
B36: =+rascunho!O26 ->  | C36: =+rascunho!M26 ->  | D36: =+rascunho!N26 ->  | E36: =+rascunho!Q26 ->  | F36: =+rascunho!R26 ->  | G36: =+rascunho!S26 ->  | H36: =+rascunho!T26 ->  | I36: =+rascunho!U26 ->  | J36: =+rascunho!V26 ->  | K36: =+rascunho!W26 ->  | L36: =+rascunho!X26 -> 
B37: =+rascunho!O27 ->  | C37: =+rascunho!M27 ->  | D37: =+rascunho!N27 ->  | E37: =+rascunho!Q27 ->  | F37: =+rascunho!R27 ->  | G37: =+rascunho!S27 ->  | H37: =+rascunho!T27 ->  | I37: =+rascunho!U27 ->  | J37: =+rascunho!V27 ->  | K37: =+rascunho!W27 ->  | L37: =+rascunho!X27 -> 
B38: =+rascunho!O28 ->  | C38: =+rascunho!M28 ->  | D38: =+rascunho!N28 ->  | E38: =+rascunho!Q28 ->  | F38: =+rascunho!R28 ->  | G38: =+rascunho!S28 ->  | H38: =+rascunho!T28 ->  | I38: =+rascunho!U28 ->  | J38: =+rascunho!V28 ->  | K38: =+rascunho!W28 ->  | L38: =+rascunho!X28 -> 
F39: TOTAL: | H39: =+rascunho!T29 -> 0 | I39: =+rascunho!U29 -> 0 | K39: =+rascunho!W29 -> 0 | L39: =+rascunho!X29 -> 0
B41: RESUMO
B42: TOTAL DO PRINCIPAL (+): | G42: =+rascunho!AC4 -> 0
B44: TOTAL DA CORREÇÃO (+): | G44: =+rascunho!AC5 -> 0
B46: TOTAL DEVIDO (=): | G46: =+rascunho!AC6 -> 0
B51: MEMÓRIA DE CÁLCULO
B53: -Atualização monetária: SELIC (a partir de cada parcela)
B59: =+IF(cadastro!R54="","",cadastro!R54) -> 
L63: =+CONCATENATE("CÁLCULO DE ATUALIZAÇÃO - PAGINA 1 de 1") -> CÁLCULO DE ATUALIZAÇÃO - PAGINA 1 de 1
B64: =+CONCATENATE(SIG_PLAN," - ",NOM_VER) -> PAV - VERSÃO: 2.2.11.2016-2019 | L64: =+CONCATENATE("EMITIDO EM: ",TEXT(NOW(),"d-mm-aaaa")) -> EMITIDO EM: 7-12-2021
B65: SJRJ - SCA - AUTOMAÇÃO DE FERRAMENTAS PARA CÁLCULO JUDICIAL

Sheet sobre
B3: PODER JUDICIÁRIO | F3: SIGLA: | G3: PAV
B4: JUSTIÇA FEDERAL | F4: DATA: | G4: 2018-11-08
B5: Seção Judiciária do Rio de Janeiro | F5: VERSÃO: | G5: 2
B6: SUBSECRETÁRIA DE CÁLCULO JUDICIAL | F6: REVISÃO: | G6: 2
B7: AUTOMAÇÃO DE FERRAMENTAS PARA CÁLCULO JUDICIAL | F7: MÊS: | G7: =+MONTH(DAT_PLAN) -> 11
F8: ANO INICIAL: | G8: 2016
B9: =+NOM_PLAN -> CÁLCULO DE ATUALIZAÇÃO DE PSS SOBRE RUBRICA | F9: ANO FINAL: | G9: 2019
B10: =+NOM_VER -> VERSÃO: 2.2.11.2016-2019 | C10: =+NOM_VER -> VERSÃO: 2.2.11.2016-2019 | F10: VERSÂO: | G10: =+CONCATENATE(F5," ",TEXT(G5,"#0"),".",TEXT(G6,"#0"),".",TEXT(G7,"#0"),".",TEXT(G8,"#0"),"-",TEXT(G9,"#0")) -> VERSÃO: 2.2.11.2016-2019
F11: SERIAL: | G11: =+CONCATENATE(SIG_PLAN,"-",TEXT(G5,"#00"),"-",TEXT(G6,"#00"),"-",TEXT(G7,"#00"),"-",TEXT(G8,"#0000"),"-",TEXT(G9,"#0000")) -> PAV-02-02-11-2016-2019
B13: CONFIGURAÇÕES DO EXCEL
B14: EXCEL 2000-2003 | F14: NOM_PLAN | G14: CÁLCULO DE ATUALIZAÇÃO DE PSS SOBRE RUBRICA
C15: 1) Habilite no Excel as opções: "Ferramentas de análise" e "Ferramentas de análise – VBA".
C16: (configuração acessível através da opção "FERRAMENTAS" e opção "SUPLEMENTOS")
C17: 2) Habilite no Excel o nível de segurança para: "médio" ou "baixo".
C18: (configuração acessível através da opção "FERRAMENTAS" opção "MACRO" e opção "SEGURANÇA") | F18: NOM_SETOR | G18: SJRJ - SCA - AUTOMAÇÃO DE FERRAMENTAS PARA CÁLCULO JUDICIAL
B19: EXCEL 2007
C20: 1) Habilite no Excel as opções: "Ferramentas de análise" e "Ferramentas de análise – VBA".
C21: (configuração acessível através do "Botão Microsoft Office" e, em seguida, clique em "Opções do Excel". Clique em "Suplementos" e, na caixa Gerenciar, selecione "Suplementos do Excel". Clique em "Ir para".)
C22: 2) Habilite as macros no Excel.
C23: (configuração acessível através do "Botão do Microsoft Office" e depois em "Opções do Excel". Clique em "Central de Confiabilidade", clique em "Configurações da Central de Confiabilidade" e depois em "Configurações de Macro".)
B27: CORREÇÃO MONETÁRIA - SITUAÇÃO DOS ÍNDICES
B28: =+tabelas!BJ9 -> - Resolução CJF - 267/2013 (índices cadastrados de jan-2001 até abr-2021)
B29: =+tabelas!BJ10 -> - Resolução CJF - 134/2010 (índices cadastrados de jan-2001 até abr-2021)
B30: =+tabelas!BJ11 -> - TR (índices cadastrados de jan-2001 até abr-2021)
B31: =+tabelas!BJ12 -> 
B32: =+tabelas!BJ13 -> 
B33: =+tabelas!BJ14 -> 
B34: =+tabelas!BJ15 -> 
B35: =+tabelas!BJ16 -> 
B36: =+tabelas!BJ17 -> - FGTS-3% (índices cadastrados de jan-1996 até abr-2021)
B37: =+tabelas!BJ18 -> 
B38: =+tabelas!BJ19 -> 
B39: =+tabelas!BJ20 -> - FGTS-6% (índices cadastrados de jan-1996 até abr-2021)
B40: =+tabelas!BJ21 -> - JUROS REM FGTS-3% (índices cadastrados de jan-2001 até dez-2021)
B41: =+tabelas!BJ22 -> - JUROS REM FGTS-6% (índices cadastrados de jan-2001 até dez-2021)
B42: =+tabelas!BJ16 -> 
B44: =+SERIAL -> PAV-02-02-11-2016-2019
K74: PROCESSO: | L74: =+NUM_PROC1 -> 

Sheet tabelas (hidden)
A1: CORREÇÃO MONETÁRIA (VERIFICADO EM 7/11/2018)
AL2: MÊS INICIAL | AM2: =+AL9 -> 2001-01-01 | BW2: ok - 4/5/2017
B3: MÊS INICIAL | C3: =+M_SM -> 2000-01-01 | G3: MÊS INICIAL | H3: =+M_IPCAE -> 2001-01-01 | L3: MÊS INICIAL | M3: =+M_IPCA -> 2001-01-01 | Q3: MÊS INICIAL | R3: =+M_TR -> 2001-01-01 | V3: MÊS INICIAL | W3: =+M_INPC -> 2006-09-01 | AA3: MÊS INICIAL | AB3: =+AF9 -> 1996-01-01 | AL3: MÊS FINAL | AM3: =+IF(ISERR(LARGE(AL:AL,1)),"",LARGE(AL:AL,1)) -> 2021-04-01 | AO3: MÊS INICIAL | AP3: =AO9 -> 2001-01-01 | BR3: MÊS REF: | BS3: =+EOMONTH(TRUNC(NOW(),0),-1)+1 -> 2021-12-01 | BW3: MÊS REF | BX3: =+EOMONTH(TRUNC(NOW(),0),-1)+1 -> 2021-12-01
B4: MÊS FINAL | C4: =+IF(ISERR(LARGE(D:D,1)),"",LARGE(D:D,1)) -> 2021-12-01 | G4: MÊS FINAL | H4: =+IF(ISERR(LARGE(I:I,1)),"",LARGE(I:I,1)) -> 2021-04-01 | L4: MÊS FINAL | M4: =+IF(ISERR(LARGE(N:N,1)),"",LARGE(N:N,1)) -> 2021-04-01 | Q4: MÊS FINAL | R4: =+IF(ISERR(LARGE(S:S,1)),"",LARGE(S:S,1)) -> 2021-04-01 | V4: MÊS FINAL | W4: =+IF(ISERR(LARGE(X:X,1)),"",LARGE(X:X,1)) -> 2021-03-01 | AA4: MÊS FINAL | AB4: =+IF(ISERR(LARGE(AF:AF,1)),"",LARGE(AF:AF,1)) -> 2021-04-01 | AL4: ATUALIZA: | AM4: =+IF(AM3="","S",IF(AM3<AM2,"S","N")) -> N | AO4: MÊS FINAL | AP4: =+IF(ISERR(LARGE(AO:AO,1)),"",LARGE(AO:AO,1)) -> 2021-12-01 | BR4: MÊS TABELA: | BS4: =+IF(ISERR(LARGE(BT:BT,1)),"",LARGE(BT:BT,1)) -> 2021-04-01 | BW4: MÊS TABELA: | BX4: =+IF(ISERR(LARGE(BY:BY,1)),"",LARGE(BY:BY,1)) -> 2021-04-01
B5: ATUALIZA: | C5: =+IF(C4="","S",IF(C4<VMES99,"S","N")) -> N | D5: =COLUMN(D5) -> 4 | E5: =COLUMN(E5) -> 5 | G5: ATUALIZA: | H5: =+IF(H4="","S",IF(H4<VMES99,"S","N")) -> S | I5: =COLUMN(I5) -> 9 | J5: =COLUMN(J5) -> 10 | L5: ATUALIZA: | M5: =+IF(M4="","S",IF(M4<VMES99,"S","N")) -> S | N5: =COLUMN(N5) -> 14 | O5: =COLUMN(O5) -> 15 | Q5: ATUALIZA: | R5: =+IF(R4="","S",IF(R4<VMES99,"S","N")) -> S | S5: =COLUMN(S5) -> 19 | T5: =COLUMN(T5) -> 20 | V5: ATUALIZA: | W5: =+IF(W4="","S",IF(W4<VMES99,"S","N")) -> S | X5: =COLUMN(X5) -> 24 | Y5: =COLUMN(Y5) -> 25 | AA5: ATUALIZA: | AB5: =+IF(AB4="","S",IF(AB4<VMES99,"S","N")) -> S | AF5: =COLUMN(AF5) -> 32 | AG5: =COLUMN(AG5) -> 33 | AH5: =COLUMN(AH5) -> 34 | AI5: =COLUMN(AI5) -> 35 | AJ5: =COLUMN(AJ5) -> 36 | AL5: =COLUMN(AL5) -> 38 | AM5: =COLUMN(AM5) -> 39 | AO5: =COLUMN(AO5) -> 41 | AP5: =COLUMN(AP5) -> 42 | AQ5: =COLUMN(AQ5) -> 43 | AR5: 44 | AS5: 45 | BR5: ATUALIZA: | BS5: =+IF(BS4="","S",IF(BS4<BS3,"S","N")) -> S | BW5: ATUALIZA: | BX5: =+IF(BX4="","S",IF(BX4<BX3,"S","N")) -> S
B6: SALÁRIO MÍNIMO | G6: Res CJF - 267/2013 (IPCA-E) | L6: IPCA | Q6: TR | V6: INPC | AA6: FGTS (VERIFICAR) | AL6: Res CJF - 134/2010 | AO6: JUROS REMUNERATÓRIO - FGTS | AU6: CORREÇÃO MONETÁRIA | BM6: VCOL_NR | BN6: VCOL_LT | BR6: RENTABILIDADE - POUPANÇA | BW6: SELIC | CC6: JUROS DE MORA | CQ6: COL_DAT_CORTE | CR6: COL_VAL_CORTE | CU6: =+COUNTA(CU9:CU208) -> 5 | CV6: NTOT | CX6: MODULAÇÃO FUX | DA6: TR+RENTAB
B7: IMPORTADO | D7: PROCESSADO | G7: IMPORTADO | I7: PROCESSADO | L7: IMPORTADO | N7: PROCESSADO | Q7: IMPORTADO | S7: PROCESSADO | V7: IMPORTADO | X7: PROCESSADO | AA7: IMPORTADO | AF7: PROCESSADO | AL7: PROCESSADO | AO7: PROCESSADO | AU7: linha | AV7: SELEÇÃO DE ÍNDICE | AY7: COEFICIENTE ACUMULADO | AZ7: CORTE | BR7: IMPORTADO | BT7: PROCESSADO | BW7: IMPORTADO | BY7: PROCESSADO | CC7: MÊS/tab | CD7: MÊS/calc | CE7: JUROS (1/4/11) | CF7: JUROS (2) | CG7: JUROS (3) | CH7: JUROS SELIC | CI7: JUROS SELECIO | CJ7: ACUMULADO | CL7: JUROS DE MORA - ok - 4/5/2017 | CU7: =+IF(ISNA(MATCH(SERIAL,CV9:CV300,0)),0,MATCH(SERIAL,CV9:CV300,0)) -> 0 | CV7: NPROC | CX7: PROCESSADO | DA7: PROCESSADO
B8: MÊS | C8: VALOR | D8: MÊS | E8: VALOR | G8: MÊS | H8: VALOR | I8: MÊS | J8: VALOR | L8: MÊS | M8: VALOR | N8: MÊS | O8: VALOR | Q8: CRÉDITO | R8: VALOR | S8: ínicio | T8: VALOR | V8: MÊS | W8: VALOR | X8: MÊS | Y8: VALOR | AA8: MÊS | AB8: 3% | AC8: 4% | AD8: 5% | AE8: 6% | AF8: MÊS | AG8: 3% | AH8: 4% | AI8: 5% | AJ8: 6% | AL8: MÊS | AM8: VALOR | AO8: MÊS | AP8: 3% | AQ8: 4% | AR8: 5% | AS8: 6% | AV8: MÊS | AW8: MÊS | AX8: COTAÇÃO | BB8: NR | BC8: COD | BD8: CRITÉRIO | BE8: LETRA | BG8: lib | BH8: MINÍMO | BI8: MÁXIMO | BJ8: INFOR | BK8: HISTÓRICO | BR8: CRÉDITO | BS8: VALOR | BT8: CRÉDITO | BU8: VALOR | BW8: MÊS | BX8: VALOR | BY8: MÊS | BZ8: MÊS | CA8: VALOR | CL8: Nr | CM8: CRITÉRIO | CN8: LIB | CO8: HISTÓRICO | CU8: LISTA DE BLOQUEIO | CX8: MÊS | CY8: VALOR | DA8: MÊS | DB8: VALOR
B9: 2000-01-01 | C9: 136 | D9: =+IF(TRIM(B9)="","",B9) -> 2000-01-01 | E9: =+IF(TRIM(C9)="","",C9) -> 136 | G9: 2001-01-01 | H9: 0.0063 | I9: =+IF(AND(TRIM(G9)="",TRIM(G8)<>""),EDATE(I8,1),IF(TRIM(G9)="","",TRUNC(G9,0))) -> 2001-01-01 | J9: =+IF(AND(H9="",H8<>""),0,IF(TRIM(H9)="","",H9)) -> 0.0063 | L9: 2001-01-01 | M9: 0.0057 | N9: =+IF(TRIM(L9)="","",TRUNC(L9,0)) -> 2001-01-01 | O9: =+IF(TRIM(M9)="","",M9) -> 0.0057 | Q9: 2001-01-01 | R9: 0.001369 | S9: =+IF(AND(TRIM(Q9)="",TRIM(Q8)<>""),EDATE(S8,1),IF(TRIM(Q9)="","",TRUNC(Q9,0))) -> 2001-01-01 | T9: =+IF(AND(R9="",R8<>""),0,IF(TRIM(R9)="","",R9)) -> 0.001369 | V9: 2006-09-01 | W9: 0.0016 | X9: =+IF(AND(TRIM(V9)="",TRIM(V8)<>""),EDATE(X8,1),IF(TRIM(V9)="","",TRUNC(V9,0))) -> 2006-09-01 | Y9: =+IF(AND(W9="",W8<>""),0,IF(TRIM(W9)="","",W9)) -> 0.0016 | AF9: 1996-01-01 | AG9: 0.015023 | AH9: 0.01584 | AI9: 0.016651 | AJ9: 0.017454 | AL9: =+I9 -> 2001-01-01 | AM9: =+J9 -> 0.0063 | AO9: 2001-01-01 | AP9: 0.002466 | AQ9: 0.003273 | AR9: 0.004074 | AS9: 0.004867 | AU9: 9 | AV9: =IF(INDIRECT(CONCATENATE(VLET_DT,TEXT(AU9,"#0")))="","",INDIRECT(CONCATENATE(VLET_DT,TEXT(AU9,"#0")))) ->  | AW9: =+IF(AV9="","",IF(AV9<=VDAT_AT,AV9,"")) ->  | AX9: =IF(OR(AW9="",INDIRECT(CONCATENATE(VLET_COT,TEXT(AU9,"#0")))=""),"",IF(AW9=VDAT_AT,1+IF(COD_CM=4,0.01,0),INDIRECT(CONCATENATE(VLET_COT,TEXT(AU9,"#0"))))) ->  | AY9: =+IF(COD_CM=4,IF(AX9="","",AX9+IF(AY10="",0,AY10)),IF(OR(AV9>VDAT_AT,AV9=""),"",IF(AV9=VDAT_AT,1,IF(AY10="",1,AY10)*(1+AX9)/AZ9))) ->  | AZ9: =+IF(AW9="","",LOOKUP(AW9,COL_DAT_CORTE,COL_VAL_CORTE)) ->  | BB9: 1 | BC9: 1 | BD9: =+IF(BG9="N","","Resolução CJF - 267/2013") -> Resolução CJF - 267/2013 | BE9: =+LOOKUP(I5,VCOL_NR,VCOL_LET) -> I | BF9: =+LOOKUP(J5,VCOL_NR,VCOL_LET) -> J | BG9: s | BH9: =+H3 -> 2001-01-01 | BI9: =+H4 -> 2021-04-01 | BJ9: =+IF(BG9="N","",CONCATENATE("- ",BD9," (índices cadastrados de ",TEXT(EDATE(BH9,0),"MMM-AAAA")," até ",TEXT(EDATE(BI9,0),"MMM-AAAA"),")")) -> - Resolução CJF - 267/2013 (índices cadastrados de jan-2001 até abr-2021) | BK9: Resolução CJF - 267/2013 - Correção monetária pelo IPCA-E | BM9: 1 | BN9: A | BT9: 1996-01-01 | BU9: 0.005 | BW9: 1996-01-01 | BX9: 0.0258 | BY9: =+IF(AND(TRIM(BW9)="",TRIM(BW8)<>""),EDATE(BY8,1),IF(TRIM(BW9)="","",TRUNC(BW9,0))) -> 1996-01-01 | BZ9: =+IF(BY9="","",IF(BY9<=VDAT_AT,BY9,"")) -> 1996-01-01 | CA9: =+IF(BY9>VDAT_AT,"",IF(AND(BZ9<>"",BZ10=""),0.01,IF(TRIM(BX9)="","",BX9))) -> 0.0258 | CC9: =+IF(BT9="","",BT9) -> 1996-01-01 | CD9: =+IF(CC9="","",IF(CC9<=VDAT_AT1,CC9,"")) -> 1996-01-01 | CE9: =+IF(CC9="","",IF(COD_JUROS=1,0.5%,IF(COD_JUROS=4,1%,IF(COD_JUROS=11,0%,"")))) ->  | CF9: =+IF(OR(COD_JUROS<>2,CD9=""),"",BU9) ->  | CG9: =+IF(OR(COD_JUROS<>3,CD9=""),"",0.5%) ->  | CH9: =+IF(OR(COD_JUROS<>10,CD9=""),"",CA9) -> 0.0258 | CI9: =+IF(CD9="","",SUM(CE9:CH9)) -> 0.0258 | CJ9: =+IF(CI9="","",IF(CD9=VDAT_AT1,0,CI10+IF(CJ10="",0,CJ10))) -> 3.4173 | CL9: 1 | CM9: 0,5% | CN9: S | CO9: 0,5% ao mês. | CQ9: 1950-01-01 | CR9: 1 | CT9: M_SERIAL | CU9: PCGD-05-05-10-2010-2016 | CV9: =+IF(CU9="","",TRIM(CU9)) -> PCGD-05-05-10-2010-2016 | CX9: =+I9 -> 2001-01-01 | CY9: =+J9 -> 0.0063 | DA9: =+S9 -> 2001-01-01 | DB9: =+IF(OR(T9="",BU69=""),"",((1+T9)*(1+BU69)-1)) -> 0.006375845
B10: 2000-02-01 | C10: 136 | D10: =+IF(TRIM(B10)="","",B10) -> 2000-02-01 | E10: 136 | G10: 2001-02-01 | H10: 0.005 | I10: 2001-02-01 | J10: 0.005 | L10: 2001-02-01 | M10: 0.0046 | N10: 2001-02-01 | O10: =+IF(TRIM(M10)="","",M10) -> 0.0046 | Q10: 2001-02-01 | R10: 0.000368 | S10: 2001-02-01 | T10: 0.000368 | V10: 2006-10-01 | W10: 0.0043 | X10: 2006-10-01 | Y10: 0.0043 | AF10: 1996-02-01 | AG10: 0.012115 | AH10: 0.01293 | AI10: 0.013738 | AJ10: 0.014539 | AL10: 2001-02-01 | AM10: 0.005 | AO10: 2001-02-01 | AP10: 0.002466 | AQ10: 0.003273 | AR10: 0.004074 | AS10: 0.004867 | AU10: 10 | BB10: 2 | BC10: 2 | BD10: =+IF(BG10="N","","Resolução CJF - 134/2010") -> Resolução CJF - 134/2010 | BE10: =+LOOKUP(AL5,VCOL_NR,VCOL_LET) -> AL | BF10: =+LOOKUP(AM5,VCOL_NR,VCOL_LET) -> AM | BG10: s | BH10: =+AM2 -> 2001-01-01 | BI10: =+AM3 -> 2021-04-01 | BJ10: - Resolução CJF - 134/2010 (índices cadastrados de jan-2001 até abr-2021) | BK10: Resolução CJF - 134/2010 - Correção monetária pelo IPCA-E até jun/2009 e após correção pela TR. | BM10: 2 | BN10: B | BT10: 1996-02-01 | BU10: 0.005 | BW10: 1996-02-01 | BX10: 0.0235 | BY10: 1996-02-01 | BZ10: 1996-02-01 | CA10: 0.0235 | CC10: 1996-02-01 | CD10: =+IF(CD9="","",IF(EDATE(CD9,1)<=VDAT_AT1,EDATE(CD9,1),"")) -> 1996-02-01 | CH10: 0.0235 | CI10: =+IF(CD10="","",SUM(CE10:CH10)) -> 0.0235 | CJ10: 3.3938 | CL10: 2 | CM10: 0,5% até 6/2009 e após juros poup. | CN10: S | CO10: 0,5% ao mês até JUN/2009 e após juros remuneratório da poupança. | CQ10: 1986-02-01 | CR10: 1 | CU10: xPCGD-04-05-10-200-2016 | CV10: =+IF(CU10="","",TRIM(CU10)) -> xPCGD-04-05-10-200-2016 | CX10: 2001-02-01 | CY10: 0.005 | DA10: 2001-02-01 | DB10: 0.00536984
B11: 2000-03-01 | C11: 136 | D11: 2000-03-01 | E11: 136 | G11: 2001-03-01 | H11: 0.0036 | I11: 2001-03-01 | J11: 0.0036 | L11: 2001-03-01 | M11: 0.0038 | N11: 2001-03-01 | O11: 0.0038 | Q11: 2001-03-01 | R11: 0.001724 | S11: 2001-03-01 | T11: 0.001724 | V11: 2006-11-01 | W11: 0.0042 | X11: 2006-11-01 | Y11: 0.0042 | AF11: 1996-03-01 | AG11: 0.010625 | AH11: 0.011439 | AI11: 0.012246 | AJ11: 0.013046 | AL11: 2001-03-01 | AM11: 0.0036 | AO11: 2001-03-01 | AP11: 0.002466 | AQ11: 0.003273 | AR11: 0.004074 | AS11: 0.004867 | AU11: 11 | BB11: 3 | BC11: 3 | BD11: =+IF(BG11="N","","TR") -> TR | BE11: =+LOOKUP(S5,VCOL_NR,VCOL_LET) -> S | BF11: =+LOOKUP(T5,VCOL_NR,VCOL_LET) -> T | BG11: s | BH11: =+R3 -> 2001-01-01 | BI11: =+R4 -> 2021-04-01 | BJ11: - TR (índices cadastrados de jan-2001 até abr-2021) | BK11: Correção monetária pela TR. | BM11: 3 | BN11: C | BT11: 1996-03-01 | BU11: 0.005 | BW11: 1996-03-01 | BX11: 0.0222 | BY11: 1996-03-01 | BZ11: 1996-03-01 | CA11: 0.0222 | CC11: 1996-03-01 | CD11: 1996-03-01 | CH11: 0.0222 | CI11: 0.0222 | CJ11: 3.3716 | CL11: 3 | CM11: 0,5% até 12/2002 após 1% até 6/2009 e após juros poup. | CN11: S | CO11: 0,5% ao mês até DEZ/2002, após 1,0% até JUN/2009 e após juros remuneratório da poupança. | CQ11: 1986-03-01 | CR11: 1000 | CU11: xPAV-09-05-04-2016-2016 | CV11: xPAV-09-05-04-2016-2016 | CX11: 2001-03-01 | CY11: 0.0036 | DA11: 2001-03-01 | DB11: 0.00673262
B12: 2000-04-01 | C12: 151 | D12: 2000-04-01 | E12: 151 | G12: 2001-04-01 | H12: 0.005 | I12: 2001-04-01 | J12: 0.005 | L12: 2001-04-01 | M12: 0.0058 | N12: 2001-04-01 | O12: 0.0058 | Q12: 2001-04-01 | R12: 0.001546 | S12: 2001-04-01 | T12: 0.001546 | V12: 2006-12-01 | W12: 0.0062 | X12: 2006-12-01 | Y12: 0.0062 | AF12: 1996-04-01 | AG12: 0.009079 | AH12: 0.009892 | AI12: 0.010697 | AJ12: 0.011496 | AL12: 2001-04-01 | AM12: 0.005 | AO12: 2001-04-01 | AP12: 0.002466 | AQ12: 0.003273 | AR12: 0.004074 | AS12: 0.004867 | AU12: 12 | BB12: 4 | BC12: 4 | BD12: =+IF(BG12="N","","SELIC") ->  | BG12: n | BJ12: =+IF(BG12="N","",CONCATENATE("- ",BD12," (índices cadastrados de ",TEXT(EDATE(BH12,0),"MMM-AAAA")," até ",TEXT(EDATE(BI12,0),"MMM-AAAA"),")")) ->  | BK12: Correção monetária pela SELIC. | BM12: 4 | BN12: D | BT12: 1996-04-01 | BU12: 0.005 | BW12: 1996-04-01 | BX12: 0.0207 | BY12: 1996-04-01 | BZ12: 1996-04-01 | CA12: 0.0207 | CC12: 1996-04-01 | CD12: 1996-04-01 | CH12: 0.0207 | CI12: 0.0207 | CJ12: 3.3509 | CL12: 4 | CM12: 1,0% | CN12: S | CO12: 1,0% ao mês. | CQ12: 1986-06-01 | CR12: 1 | CU12: xPAV-09-05-04-2016-2017 | CV12: xPAV-09-05-04-2016-2017 | CX12: 2001-04-01 | CY12: 0.005 | DA12: 2001-04-01 | DB12: 0.00655373
B13: 2000-05-01 | C13: 151 | D13: 2000-05-01 | E13: 151 | G13: 2001-05-01 | H13: 0.0049 | I13: 2001-05-01 | J13: 0.0049 | L13: 2001-05-01 | M13: 0.0041 | N13: 2001-05-01 | O13: 0.0041 | Q13: 2001-05-01 | R13: 0.001827 | S13: 2001-05-01 | T13: 0.001827 | V13: 2007-01-01 | W13: 0.0049 | X13: 2007-01-01 | Y13: 0.0049 | AF13: 1996-05-01 | AG13: 0.008368 | AH13: 0.009181 | AI13: 0.009986 | AJ13: 0.010784 | AL13: 2001-05-01 | AM13: 0.0049 | AO13: 2001-05-01 | AP13: 0.002466 | AQ13: 0.003273 | AR13: 0.004074 | AS13: 0.004867 | AU13: 13 | BB13: 5 | BC13: 5 | BD13: =+IF(BG13="N","","IPCA-E") ->  | BG13: n | BK13: Correção monetária pelo IPCA-E. | BM13: 5 | BN13: E | BT13: 1996-05-01 | BU13: 0.005 | BW13: 1996-05-01 | BX13: 0.0201 | BY13: 1996-05-01 | BZ13: 1996-05-01 | CA13: 0.0201 | CC13: 1996-05-01 | CD13: 1996-05-01 | CH13: 0.0201 | CI13: 0.0201 | CJ13: 3.3308 | CL13: 5 | CQ13: 1986-09-01 | CR13: 1 | CU13: PAV-01-01-04-2016-2017 | CV13: PAV-01-01-04-2016-2017 | CX13: 2001-05-01 | CY13: 0.0049 | DA13: 2001-05-01 | DB13: 0.006836135
B14: 2000-06-01 | C14: 151 | D14: 2000-06-01 | E14: 151 | G14: 2001-06-01 | H14: 0.0038 | I14: 2001-06-01 | J14: 0.0038 | L14: 2001-06-01 | M14: 0.0052 | N14: 2001-06-01 | O14: 0.0052 | Q14: 2001-06-01 | R14: 0.001458 | S14: 2001-06-01 | T14: 0.001458 | V14: 2007-02-01 | W14: 0.0042 | X14: 2007-02-01 | Y14: 0.0042 | AF14: 1996-06-01 | AG14: 0.00858 | AH14: 0.009392 | AI14: 0.010197 | AJ14: 0.010996 | AL14: 2001-06-01 | AM14: 0.0038 | AO14: 2001-06-01 | AP14: 0.002466 | AQ14: 0.003273 | AR14: 0.004074 | AS14: 0.004867 | AU14: 14 | BB14: 6 | BC14: 6 | BD14: =+IF(BG14="N","","INPC") ->  | BG14: n | BK14: Correção monetária pelo INPC. | BM14: 6 | BN14: F | BT14: 1996-06-01 | BU14: 0.005 | BW14: 1996-06-01 | BX14: 0.0198 | BY14: 1996-06-01 | BZ14: 1996-06-01 | CA14: 0.0198 | CC14: 1996-06-01 | CD14: 1996-06-01 | CH14: 0.0198 | CI14: 0.0198 | CJ14: 3.311 | CL14: 6 | CQ14: 1988-12-01 | CR14: 1 | CX14: 2001-06-01 | CY14: 0.0038 | DA14: 2001-06-01 | DB14: 0.00646529
B15: 2000-07-01 | C15: 151 | D15: 2000-07-01 | E15: 151 | G15: 2001-07-01 | H15: 0.0094 | I15: 2001-07-01 | J15: 0.0094 | L15: 2001-07-01 | M15: 0.0133 | N15: 2001-07-01 | O15: 0.0133 | Q15: 2001-07-01 | R15: 0.002441 | S15: 2001-07-01 | T15: 0.002441 | V15: 2007-03-01 | W15: 0.0044 | X15: 2007-03-01 | Y15: 0.0044 | AF15: 1996-07-01 | AG15: 0.008331 | AH15: 0.009143 | AI15: 0.009948 | AJ15: 0.010747 | AL15: 2001-07-01 | AM15: 0.0094 | AO15: 2001-07-01 | AP15: 0.002466 | AQ15: 0.003273 | AR15: 0.004074 | AS15: 0.004867 | AU15: 15 | BB15: 7 | BC15: 8 | BD15: =+IF(BG15="N","","Res CJF - 134/2010 c/ modulação") ->  | BG15: n | BK15: Correção monetária pelo IPCA-E até jun/2009 e após correção pela TR até mar/2015 e após pelo IPCA-E. | BM15: 7 | BN15: G | BT15: 1996-07-01 | BU15: 0.005 | BW15: 1996-07-01 | BX15: 0.0193 | BY15: 1996-07-01 | BZ15: 1996-07-01 | CA15: 0.0193 | CC15: 1996-07-01 | CD15: 1996-07-01 | CH15: 0.0193 | CI15: 0.0193 | CJ15: 3.2917 | CL15: 7 | CQ15: 1989-03-01 | CR15: 1000 | CX15: 2001-07-01 | CY15: 0.0094 | DA15: 2001-07-01 | DB15: 0.007453205
B16: 2000-08-01 | C16: 151 | D16: 2000-08-01 | E16: 151 | G16: 2001-08-01 | H16: 0.0118 | I16: 2001-08-01 | J16: 0.0118 | L16: 2001-08-01 | M16: 0.007 | N16: 2001-08-01 | O16: 0.007 | Q16: 2001-08-01 | R16: 0.003436 | S16: 2001-08-01 | T16: 0.003436 | V16: 2007-04-01 | W16: 0.0026 | X16: 2007-04-01 | Y16: 0.0026 | AF16: 1996-08-01 | AG16: 0.008756 | AH16: 0.009569 | AI16: 0.010374 | AJ16: 0.011173 | AL16: 2001-08-01 | AM16: 0.0118 | AO16: 2001-08-01 | AP16: 0.002466 | AQ16: 0.003273 | AR16: 0.004074 | AS16: 0.004867 | AU16: 16 | BB16: 8 | BC16: 7 | BD16: =+IF(BG16="N","","POUPANÇA") ->  | BG16: n | BK16: Correção monetária pela poupança (tr+rentabilidade). | BM16: 8 | BN16: H | BT16: 1996-08-01 | BU16: 0.005 | BW16: 1996-08-01 | BX16: 0.0197 | BY16: 1996-08-01 | BZ16: 1996-08-01 | CA16: 0.0197 | CC16: 1996-08-01 | CD16: 1996-08-01 | CH16: 0.0197 | CI16: 0.0197 | CJ16: 3.272 | CL16: 8 | CQ16: 1989-04-01 | CR16: 1 | CX16: 2001-08-01 | CY16: 0.0118 | DA16: 2001-08-01 | DB16: 0.00845318
B17: 2000-09-01 | C17: 151 | D17: 2000-09-01 | E17: 151 | G17: 2001-09-01 | H17: 0.0038 | I17: 2001-09-01 | J17: 0.0038 | L17: 2001-09-01 | M17: 0.0028 | N17: 2001-09-01 | O17: 0.0028 | Q17: 2001-09-01 | R17: 0.001627 | S17: 2001-09-01 | T17: 0.001627 | V17: 2007-05-01 | W17: 0.0026 | X17: 2007-05-01 | Y17: 0.0026 | AF17: 1996-09-01 | AG17: 0.009102 | AH17: 0.009915 | AI17: 0.010721 | AJ17: 0.011519 | AL17: 2001-09-01 | AM17: 0.0038 | AO17: 2001-09-01 | AP17: 0.002466 | AQ17: 0.003273 | AR17: 0.004074 | AS17: 0.004867 | AU17: 17 | BB17: 9 | BC17: 9 | BD17: =+IF(BG17="N","","FGTS-3%") -> FGTS-3% | BE17: =+LOOKUP(AF5,VCOL_NR,VCOL_LET) -> AF | BF17: =+LOOKUP(AG5,VCOL_NR,VCOL_LET) -> AG | BG17: s | BH17: =AB3 -> 1996-01-01 | BI17: =+AB4 -> 2021-04-01 | BJ17: - FGTS-3% (índices cadastrados de jan-1996 até abr-2021) | BK17: Correção monetária pelos índices do FGTS (3%). | BM17: 9 | BN17: I | BT17: 1996-09-01 | BU17: 0.005 | BW17: 1996-09-01 | BX17: 0.019 | BY17: 1996-09-01 | BZ17: 1996-09-01 | CA17: 0.019 | CC17: 1996-09-01 | CD17: 1996-09-01 | CH17: 0.019 | CI17: 0.019 | CJ17: 3.253 | CL17: 9 | CQ17: 1993-07-01 | CR17: 1 | CX17: 2001-09-01 | CY17: 0.0038 | DA17: 2001-09-01 | DB17: 0.006635135
B18: 2000-10-01 | C18: 151 | D18: 2000-10-01 | E18: 151 | G18: 2001-10-01 | H18: 0.0037 | I18: 2001-10-01 | J18: 0.0037 | L18: 2001-10-01 | M18: 0.0083 | N18: 2001-10-01 | O18: 0.0083 | Q18: 2001-10-01 | R18: 0.002913 | S18: 2001-10-01 | T18: 0.002913 | V18: 2007-06-01 | W18: 0.0031 | X18: 2007-06-01 | Y18: 0.0031 | AF18: 1996-10-01 | AG18: 0.009903 | AH18: 0.010717 | AI18: 0.011523 | AJ18: 0.012322 | AL18: 2001-10-01 | AM18: 0.0037 | AO18: 2001-10-01 | AP18: 0.002466 | AQ18: 0.003273 | AR18: 0.004074 | AS18: 0.004867 | AU18: 18 | BB18: 10 | BC18: 10 | BD18: =+IF(BG18="N","","FGTS-4%") ->  | BE18: =+LOOKUP(AF5,VCOL_NR,VCOL_LET) -> AF | BF18: =+LOOKUP(AH5,VCOL_NR,VCOL_LET) -> AH | BG18: n | BK18: Correção monetária pelos índices do FGTS (4%). | BM18: 10 | BN18: J | BT18: 1996-10-01 | BU18: 0.005 | BW18: 1996-10-01 | BX18: 0.0186 | BY18: 1996-10-01 | BZ18: 1996-10-01 | CA18: 0.0186 | CC18: 1996-10-01 | CD18: 1996-10-01 | CH18: 0.0186 | CI18: 0.0186 | CJ18: 3.2344 | CL18: 10 | CM18: SELIC | CN18: S | CO18: SELIC | CQ18: 1993-08-01 | CR18: 1000 | CX18: 2001-10-01 | CY18: 0.0037 | DA18: 2001-10-01 | DB18: 0.007927565
B19: 2000-11-01 | C19: 151 | D19: 2000-11-01 | E19: 151 | G19: 2001-11-01 | H19: 0.0099 | I19: 2001-11-01 | J19: 0.0099 | L19: 2001-11-01 | M19: 0.0071 | N19: 2001-11-01 | O19: 0.0071 | Q19: 2001-11-01 | R19: 0.001928 | S19: 2001-11-01 | T19: 0.001928 | V19: 2007-07-01 | W19: 0.0032 | X19: 2007-07-01 | Y19: 0.0032 | AF19: 1996-11-01 | AG19: 0.010632 | AH19: 0.011446 | AI19: 0.012253 | AJ19: 0.013053 | AL19: 2001-11-01 | AM19: 0.0099 | AO19: 2001-11-01 | AP19: 0.002466 | AQ19: 0.003273 | AR19: 0.004074 | AS19: 0.004867 | AU19: 19 | BB19: 11 | BC19: 11 | BD19: =+IF(BG19="N","","FGTS-5%") ->  | BE19: =+LOOKUP(AF5,VCOL_NR,VCOL_LET) -> AF | BF19: =+LOOKUP(AI5,VCOL_NR,VCOL_LET) -> AI | BG19: n | BK19: Correção monetária pelos índices do FGTS (5%). | BM19: 11 | BN19: K | BT19: 1996-11-01 | BU19: 0.005 | BW19: 1996-11-01 | BX19: 0.018 | BY19: 1996-11-01 | BZ19: 1996-11-01 | CA19: 0.018 | CC19: 1996-11-01 | CD19: 1996-11-01 | CH19: 0.018 | CI19: 0.018 | CJ19: 3.2164 | CL19: 11 | CM19: sem juros moratórios | CN19: S | CO19: -Sem juros moratórios | CQ19: 1993-09-01 | CR19: 1 | CX19: 2001-11-01 | CY19: 0.0099 | DA19: 2001-11-01 | DB19: 0.00693764
B20: 2000-12-01 | C20: 151 | D20: 2000-12-01 | E20: 151 | G20: 2001-12-01 | H20: 0.0055 | I20: 2001-12-01 | J20: 0.0055 | L20: 2001-12-01 | M20: 0.0065 | N20: 2001-12-01 | O20: 0.0065 | Q20: 2001-12-01 | R20: 0.001983 | S20: 2001-12-01 | T20: 0.001983 | V20: 2007-08-01 | W20: 0.0059 | X20: 2007-08-01 | Y20: 0.0059 | AF20: 1996-12-01 | AG20: 0.011204 | AH20: 0.012019 | AI20: 0.012826 | AJ20: 0.013626 | AL20: 2001-12-01 | AM20: 0.0055 | AO20: 2001-12-01 | AP20: 0.002466 | AQ20: 0.003273 | AR20: 0.004074 | AS20: 0.004867 | AU20: 20 | BB20: 12 | BC20: 12 | BD20: =+IF(BG20="N","","FGTS-6%") -> FGTS-6% | BE20: =+LOOKUP(AF5,VCOL_NR,VCOL_LET) -> AF | BF20: =+LOOKUP(AJ5,VCOL_NR,VCOL_LET) -> AJ | BG20: s | BH20: =+AB3 -> 1996-01-01 | BI20: =+AB4 -> 2021-04-01 | BJ20: - FGTS-6% (índices cadastrados de jan-1996 até abr-2021) | BK20: Correção monetária pelos índices do FGTS (6%). | BM20: 12 | BN20: L | BT20: 1996-12-01 | BU20: 0.005 | BW20: 1996-12-01 | BX20: 0.018 | BY20: 1996-12-01 | BZ20: 1996-12-01 | CA20: 0.018 | CC20: 1996-12-01 | CD20: 1996-12-01 | CH20: 0.018 | CI20: 0.018 | CJ20: 3.1984 | CQ20: 1994-06-01 | CR20: 1 | CX20: 2001-12-01 | CY20: 0.0055 | DA20: 2001-12-01 | DB20: 0.006992915
B21: 2001-01-01 | C21: 151 | D21: 2001-01-01 | E21: 151 | G21: 2002-01-01 | H21: 0.0062 | I21: 2002-01-01 | J21: 0.0062 | L21: 2002-01-01 | M21: 0.0052 | N21: 2002-01-01 | O21: 0.0052 | Q21: 2002-01-01 | R21: 0.002591 | S21: 2002-01-01 | T21: 0.002591 | V21: 2007-09-01 | W21: 0.0025 | X21: 2007-09-01 | Y21: 0.0025 | AF21: 1997-01-01 | AG21: 0.009924 | AH21: 0.010738 | AI21: 0.011544 | AJ21: 0.012343 | AL21: 2002-01-01 | AM21: 0.0062 | AO21: 2002-01-01 | AP21: 0.002466 | AQ21: 0.003273 | AR21: 0.004074 | AS21: 0.004867 | AU21: 21 | BB21: 13 | BC21: 13 | BD21: =+IF(BG21="N","","JUROS REM FGTS-3%") -> JUROS REM FGTS-3% | BE21: =+LOOKUP(AO5,VCOL_NR,VCOL_LET) -> AO | BF21: =+LOOKUP(AP5,VCOL_NR,VCOL_LET) -> AP | BG21: s | BH21: =+AP3 -> 2001-01-01 | BI21: =+AP4 -> 2021-12-01 | BJ21: - JUROS REM FGTS-3% (índices cadastrados de jan-2001 até dez-2021) | BK21: Correção monetária pelos índices remuneratórios do FGTS (3%). | BM21: 13 | BN21: M | BT21: 1997-01-01 | BU21: 0.005 | BW21: 1997-01-01 | BX21: 0.0173 | BY21: 1997-01-01 | BZ21: 1997-01-01 | CA21: 0.0173 | CC21: 1997-01-01 | CD21: 1997-01-01 | CH21: 0.0173 | CI21: 0.0173 | CJ21: 3.1811 | CQ21: 1994-07-01 | CR21: 2750 | CX21: 2002-01-01 | CY21: 0.0062 | DA21: 2002-01-01 | DB21: 0.007603955
B22: 2001-02-01 | C22: 151 | D22: 2001-02-01 | E22: 151 | G22: 2002-02-01 | H22: 0.0044 | I22: 2002-02-01 | J22: 0.0044 | L22: 2002-02-01 | M22: 0.0036 | N22: 2002-02-01 | O22: 0.0036 | Q22: 2002-02-01 | R22: 0.001171 | S22: 2002-02-01 | T22: 0.001171 | V22: 2007-10-01 | W22: 0.003 | X22: 2007-10-01 | Y22: 0.003 | AF22: 1997-02-01 | AG22: 0.009098 | AH22: 0.009911 | AI22: 0.010717 | AJ22: 0.011515 | AL22: 2002-02-01 | AM22: 0.0044 | AO22: 2002-02-01 | AP22: 0.002466 | AQ22: 0.003273 | AR22: 0.004074 | AS22: 0.004867 | AU22: 22 | BB22: 14 | BC22: 14 | BD22: =+IF(BG22="N","","JUROS REM FGTS-6%") -> JUROS REM FGTS-6% | BE22: =+LOOKUP(AO5,VCOL_NR,VCOL_LET) -> AO | BF22: =+LOOKUP(AS5,VCOL_NR,VCOL_LET) -> AS | BG22: s | BH22: =+AP3 -> 2001-01-01 | BI22: =+AP4 -> 2021-12-01 | BJ22: - JUROS REM FGTS-6% (índices cadastrados de jan-2001 até dez-2021) | BK22: Correção monetária pelos índices remuneratórios do FGTS (6%). | BM22: 14 | BN22: N | BT22: 1997-02-01 | BU22: 0.005 | BW22: 1997-02-01 | BX22: 0.0167 | BY22: 1997-02-01 | BZ22: 1997-02-01 | CA22: 0.0167 | CC22: 1997-02-01 | CD22: 1997-02-01 | CH22: 0.0167 | CI22: 0.0167 | CJ22: 3.1644 | CQ22: 1994-08-01 | CR22: 1 | CX22: 2002-02-01 | CY22: 0.0044 | DA22: 2002-02-01 | DB22: 0.006176855
B23: 2001-03-01 | C23: 151 | D23: 2001-03-01 | E23: 151 | G23: 2002-03-01 | H23: 0.004 | I23: 2002-03-01 | J23: 0.004 | L23: 2002-03-01 | M23: 0.006 | N23: 2002-03-01 | O23: 0.006 | Q23: 2002-03-01 | R23: 0.001758 | S23: 2002-03-01 | T23: 0.001758 | V23: 2007-11-01 | W23: 0.0043 | X23: 2007-11-01 | Y23: 0.0043 | AF23: 1997-03-01 | AG23: 0.008797 | AH23: 0.00961 | AI23: 0.010415 | AJ23: 0.011214 | AL23: 2002-03-01 | AM23: 0.004 | AO23: 2002-03-01 | AP23: 0.002466 | AQ23: 0.003273 | AR23: 0.004074 | AS23: 0.004867 | AU23: 23 | BB23: 15 | BC23: 15 | BD23: =+IF(BG23="N","","JUROS REM FGTS-5%") -> JUROS REM FGTS-5% | BE23: =+LOOKUP(AO5,VCOL_NR,VCOL_LET) -> AO | BF23: =+LOOKUP(AR5,VCOL_NR,VCOL_LET) -> AR | BG23: s | BH23: =+AP3 -> 2001-01-01 | BI23: =+AP4 -> 2021-12-01 | BJ23: - JUROS REM FGTS-5% (índices cadastrados de jan-2001 até dez-2021) | BK23: Correção monetária pelos índices remuneratórios do FGTS (5%). | BM23: 15 | BN23: O | BT23: 1997-03-01 | BU23: 0.005 | BW23: 1997-03-01 | BX23: 0.0164 | BY23: 1997-03-01 | BZ23: 1997-03-01 | CA23: 0.0164 | CC23: 1997-03-01 | CD23: 1997-03-01 | CH23: 0.0164 | CI23: 0.0164 | CJ23: 3.148 | CX23: 2002-03-01 | CY23: 0.004 | DA23: 2002-03-01 | DB23: 0.00676679
B24: 2001-04-01 | C24: 180 | D24: 2001-04-01 | E24: 180 | G24: 2002-04-01 | H24: 0.0078 | I24: 2002-04-01 | J24: 0.0078 | L24: 2002-04-01 | M24: 0.008 | N24: 2002-04-01 | O24: 0.008 | Q24: 2002-04-01 | R24: 0.002357 | S24: 2002-04-01 | T24: 0.002357 | V24: 2007-12-01 | W24: 0.0097 | X24: 2007-12-01 | Y24: 0.0097 | AF24: 1997-04-01 | AG24: 0.008692 | AH24: 0.009505 | AI24: 0.01031 | AJ24: 0.011108 | AL24: 2002-04-01 | AM24: 0.0078 | AO24: 2002-04-01 | AP24: 0.002466 | AQ24: 0.003273 | AR24: 0.004074 | AS24: 0.004867 | AU24: 24 | BB24: 16 | BC24: 16 | BD24: =+IF(BG24="N","","IPCA") -> IPCA | BE24: =+LOOKUP(N5,VCOL_NR,VCOL_LET) -> N | BF24: =+LOOKUP(O5,VCOL_NR,VCOL_LET) -> O | BG24: s | BH24: =+M3 -> 2001-01-01 | BI24: =+M4 -> 2021-04-01 | BJ24: - IPCA (índices cadastrados de jan-2001 até abr-2021) | BK24: Correção monetária pelo IPCA. | BM24: 16 | BN24: P | BT24: 1997-04-01 | BU24: 0.005 | BW24: 1997-04-01 | BX24: 0.0166 | BY24: 1997-04-01 | BZ24: 1997-04-01 | CA24: 0.0166 | CC24: 1997-04-01 | CD24: 1997-04-01 | CH24: 0.0166 | CI24: 0.0166 | CJ24: 3.1314 | CX24: 2002-04-01 | CY24: 0.0078 | DA24: 2002-04-01 | DB24: 0.007368785
B25: 2001-05-01 | C25: 180 | D25: 2001-05-01 | E25: 180 | G25: 2002-05-01 | H25: 0.0042 | I25: 2002-05-01 | J25: 0.0042 | L25: 2002-05-01 | M25: 0.0021 | N25: 2002-05-01 | O25: 0.0021 | Q25: 2002-05-01 | R25: 0.002102 | S25: 2002-05-01 | T25: 0.002102 | V25: 2008-01-01 | W25: 0.0069 | X25: 2008-01-01 | Y25: 0.0069 | AF25: 1997-05-01 | AG25: 0.008835 | AH25: 0.009648 | AI25: 0.010454 | AJ25: 0.011252 | AL25: 2002-05-01 | AM25: 0.0042 | AO25: 2002-05-01 | AP25: 0.002466 | AQ25: 0.003273 | AR25: 0.004074 | AS25: 0.004867 | AU25: 25 | BB25: 17 | BC25: 17 | BM25: 17 | BN25: Q | BT25: 1997-05-01 | BU25: 0.005 | BW25: 1997-05-01 | BX25: 0.0158 | BY25: 1997-05-01 | BZ25: 1997-05-01 | CA25: 0.0158 | CC25: 1997-05-01 | CD25: 1997-05-01 | CH25: 0.0158 | CI25: 0.0158 | CJ25: 3.1156 | CX25: 2002-05-01 | CY25: 0.0042 | DA25: 2002-05-01 | DB25: 0.00711251
B26: 2001-06-01 | C26: 180 | D26: 2001-06-01 | E26: 180 | G26: 2002-06-01 | H26: 0.0033 | I26: 2002-06-01 | J26: 0.0033 | L26: 2002-06-01 | M26: 0.0042 | N26: 2002-06-01 | O26: 0.0042 | Q26: 2002-06-01 | R26: 0.001582 | S26: 2002-06-01 | T26: 0.001582 | V26: 2008-02-01 | W26: 0.0048 | X26: 2008-02-01 | Y26: 0.0048 | AF26: 1997-06-01 | AG26: 0.009017 | AH26: 0.00983 | AI26: 0.010635 | AJ26: 0.011434 | AL26: 2002-06-01 | AM26: 0.0033 | AO26: 2002-06-01 | AP26: 0.002466 | AQ26: 0.003273 | AR26: 0.004074 | AS26: 0.004867 | AU26: 26 | BB26: 18 | BC26: 0 | BD26: =+IF(BG26="N","","Sem correção monetária") -> Sem correção monetária | BG26: s | BH26: 2001-01-01 | BI26: =+NOW() -> 2021-12-07T09:37:51.890 | BJ26: =+IF(BG26="N","",CONCATENATE("- ",BD26)) -> - Sem correção monetária | BK26: Sem correção monetária | BM26: 18 | BN26: R | BT26: 1997-06-01 | BU26: 0.005 | BW26: 1997-06-01 | BX26: 0.0161 | BY26: 1997-06-01 | BZ26: 1997-06-01 | CA26: 0.0161 | CC26: 1997-06-01 | CD26: 1997-06-01 | CH26: 0.0161 | CI26: 0.0161 | CJ26: 3.0995 | CX26: 2002-06-01 | CY26: 0.0033 | DA26: 2002-06-01 | DB26: 0.00658991
B27: 2001-07-01 | C27: 180 | D27: 2001-07-01 | E27: 180 | G27: 2002-07-01 | H27: 0.0077 | I27: 2002-07-01 | J27: 0.0077 | L27: 2002-07-01 | M27: 0.0119 | N27: 2002-07-01 | O27: 0.0119 | Q27: 2002-07-01 | R27: 0.002656 | S27: 2002-07-01 | T27: 0.002656 | V27: 2008-03-01 | W27: 0.0051 | X27: 2008-03-01 | Y27: 0.0051 | AF27: 1997-07-01 | AG27: 0.009062 | AH27: 0.009875 | AI27: 0.01068 | AJ27: 0.011479 | AL27: 2002-07-01 | AM27: 0.0077 | AO27: 2002-07-01 | AP27: 0.002466 | AQ27: 0.003273 | AR27: 0.004074 | AS27: 0.004867 | AU27: 27 | BM27: 19 | BN27: S | BT27: 1997-07-01 | BU27: 0.005 | BW27: 1997-07-01 | BX27: 0.016 | BY27: 1997-07-01 | BZ27: 1997-07-01 | CA27: 0.016 | CC27: 1997-07-01 | CD27: 1997-07-01 | CH27: 0.016 | CI27: 0.016 | CJ27: 3.0835 | CX27: 2002-07-01 | CY27: 0.0077 | DA27: 2002-07-01 | DB27: 0.00766928
B28: 2001-08-01 | C28: 180 | D28: 2001-08-01 | E28: 180 | G28: 2002-08-01 | H28: 0.01 | I28: 2002-08-01 | J28: 0.01 | L28: 2002-08-01 | M28: 0.0065 | N28: 2002-08-01 | O28: 0.0065 | Q28: 2002-08-01 | R28: 0.002481 | S28: 2002-08-01 | T28: 0.002481 | V28: 2008-04-01 | W28: 0.0064 | X28: 2008-04-01 | Y28: 0.0064 | AF28: 1997-08-01 | AG28: 0.008751 | AH28: 0.009564 | AI28: 0.010369 | AJ28: 0.011168 | AL28: 2002-08-01 | AM28: 0.01 | AO28: 2002-08-01 | AP28: 0.002466 | AQ28: 0.003273 | AR28: 0.004074 | AS28: 0.004867 | AU28: 28 | BM28: 20 | BN28: T | BT28: 1997-08-01 | BU28: 0.005 | BW28: 1997-08-01 | BX28: 0.0159 | BY28: 1997-08-01 | BZ28: 1997-08-01 | CA28: 0.0159 | CC28: 1997-08-01 | CD28: 1997-08-01 | CH28: 0.0159 | CI28: 0.0159 | CJ28: 3.0676 | CX28: 2002-08-01 | CY28: 0.01 | DA28: 2002-08-01 | DB28: 0.007493405
B29: 2001-09-01 | C29: 180 | D29: 2001-09-01 | E29: 180 | G29: 2002-09-01 | H29: 0.0062 | I29: 2002-09-01 | J29: 0.0062 | L29: 2002-09-01 | M29: 0.0072 | N29: 2002-09-01 | O29: 0.0072 | Q29: 2002-09-01 | R29: 0.001955 | S29: 2002-09-01 | T29: 0.001955 | V29: 2008-05-01 | W29: 0.0096 | X29: 2008-05-01 | Y29: 0.0096 | AF29: 1997-09-01 | AG29: 0.008956 | AH29: 0.009768 | AI29: 0.010574 | AJ29: 0.011373 | AL29: 2002-09-01 | AM29: 0.0062 | AO29: 2002-09-01 | AP29: 0.002466 | AQ29: 0.003273 | AR29: 0.004074 | AS29: 0.004867 | AU29: 29 | BH29: ÍNDICE SELECIONADO | BM29: 21 | BN29: U | BT29: 1997-09-01 | BU29: 0.005 | BW29: 1997-09-01 | BX29: 0.0159 | BY29: 1997-09-01 | BZ29: 1997-09-01 | CA29: 0.0159 | CC29: 1997-09-01 | CD29: 1997-09-01 | CH29: 0.0159 | CI29: 0.0159 | CJ29: 3.0517 | CX29: 2002-09-01 | CY29: 0.0062 | DA29: 2002-09-01 | DB29: 0.006964775
B30: 2001-10-01 | C30: 180 | D30: 2001-10-01 | E30: 180 | G30: 2002-10-01 | H30: 0.009 | I30: 2002-10-01 | J30: 0.009 | L30: 2002-10-01 | M30: 0.0131 | N30: 2002-10-01 | O30: 0.0131 | Q30: 2002-10-01 | R30: 0.002768 | S30: 2002-10-01 | T30: 0.002768 | V30: 2008-06-01 | W30: 0.0091 | X30: 2008-06-01 | Y30: 0.0091 | AF30: 1997-10-01 | AG30: 0.009035 | AH30: 0.009848 | AI30: 0.010653 | AJ30: 0.011452 | AL30: 2002-10-01 | AM30: 0.009 | AO30: 2002-10-01 | AP30: 0.002466 | AQ30: 0.003273 | AR30: 0.004074 | AS30: 0.004867 | AU30: 30 | BH30: VLET_DT | BI30: =+IF(COD_CM=0,"",LOOKUP(MATCH(COD_CM,BC9:BC26,0),BB9:BB26,BE9:BE26)) ->  | BM30: 22 | BN30: V | BT30: 1997-10-01 | BU30: 0.005 | BW30: 1997-10-01 | BX30: 0.0167 | BY30: 1997-10-01 | BZ30: 1997-10-01 | CA30: 0.0167 | CC30: 1997-10-01 | CD30: 1997-10-01 | CH30: 0.0167 | CI30: 0.0167 | CJ30: 3.035 | CX30: 2002-10-01 | CY30: 0.009 | DA30: 2002-10-01 | DB30: 0.00778184
B31: 2001-11-01 | C31: 180 | D31: 2001-11-01 | E31: 180 | G31: 2002-11-01 | H31: 0.0208 | I31: 2002-11-01 | J31: 0.0208 | L31: 2002-11-01 | M31: 0.0302 | N31: 2002-11-01 | O31: 0.0302 | Q31: 2002-11-01 | R31: 0.002644 | S31: 2002-11-01 | T31: 0.002644 | V31: 2008-07-01 | W31: 0.0058 | X31: 2008-07-01 | Y31: 0.0058 | AF31: 1997-11-01 | AG31: 0.017838 | AH31: 0.018657 | AI31: 0.01947 | AJ31: 0.020276 | AL31: 2002-11-01 | AM31: 0.0208 | AO31: 2002-11-01 | AP31: 0.002466 | AQ31: 0.003273 | AR31: 0.004074 | AS31: 0.004867 | AU31: 31 | BH31: VLET_COT | BI31: =+IF(COD_CM=0,"",LOOKUP(MATCH(COD_CM,BC9:BC26,0),BB9:BB26,BF9:BF26)) ->  | BM31: 23 | BN31: W | BT31: 1997-11-01 | BU31: 0.005 | BW31: 1997-11-01 | BX31: 0.0304 | BY31: 1997-11-01 | BZ31: 1997-11-01 | CA31: 0.0304 | CC31: 1997-11-01 | CD31: 1997-11-01 | CH31: 0.0304 | CI31: 0.0304 | CJ31: 3.0046 | CX31: 2002-11-01 | CY31: 0.0208 | DA31: 2002-11-01 | DB31: 0.00765722
B32: 2001-12-01 | C32: 180 | D32: 2001-12-01 | E32: 180 | G32: 2002-12-01 | H32: 0.0305 | I32: 2002-12-01 | J32: 0.0305 | L32: 2002-12-01 | M32: 0.021 | N32: 2002-12-01 | O32: 0.021 | Q32: 2002-12-01 | R32: 0.003609 | S32: 2002-12-01 | T32: 0.003609 | V32: 2008-08-01 | W32: 0.0021 | X32: 2008-08-01 | Y32: 0.0021 | AF32: 1997-12-01 | AG32: 0.015583 | AH32: 0.016401 | AI32: 0.017212 | AJ32: 0.018016 | AL32: 2002-12-01 | AM32: 0.0305 | AO32: 2002-12-01 | AP32: 0.002466 | AQ32: 0.003273 | AR32: 0.004074 | AS32: 0.004867 | AU32: 32 | BH32: VDAT_MIN | BI32: =+IF(COD_CM=0,"",LOOKUP(MATCH(COD_CM,BC9:BC26,0),BB9:BB26,BH9:BH26)) ->  | BM32: 24 | BN32: X | BT32: 1997-12-01 | BU32: 0.005 | BW32: 1997-12-01 | BX32: 0.0297 | BY32: 1997-12-01 | BZ32: 1997-12-01 | CA32: 0.0297 | CC32: 1997-12-01 | CD32: 1997-12-01 | CH32: 0.0297 | CI32: 0.0297 | CJ32: 2.9749 | CX32: 2002-12-01 | CY32: 0.0305 | DA32: 2002-12-01 | DB32: 0.008627045
B33: 2002-01-01 | C33: 180 | D33: 2002-01-01 | E33: 180 | G33: 2003-01-01 | H33: 0.0198 | I33: 2003-01-01 | J33: 0.0198 | L33: 2003-01-01 | M33: 0.0225 | N33: 2003-01-01 | O33: 0.0225 | Q33: 2003-01-01 | R33: 0.004878 | S33: 2003-01-01 | T33: 0.004878 | V33: 2008-09-01 | W33: 0.0015 | X33: 2008-09-01 | Y33: 0.0015 | AF33: 1998-01-01 | AG33: 0.013953 | AH33: 0.01477 | AI33: 0.015579 | AJ33: 0.016382 | AL33: 2003-01-01 | AM33: 0.0198 | AO33: 2003-01-01 | AP33: 0.002466 | AQ33: 0.003273 | AR33: 0.004074 | AS33: 0.004867 | AU33: 33 | BH33: VDAT_MAX | BI33: =+IF(COD_CM=0,"",LOOKUP(MATCH(COD_CM,BC9:BC26,0),BB9:BB26,BI9:BI26)) ->  | BM33: 25 | BN33: Y | BT33: 1998-01-01 | BU33: 0.005 | BW33: 1998-01-01 | BX33: 0.0267 | BY33: 1998-01-01 | BZ33: 1998-01-01 | CA33: 0.0267 | CC33: 1998-01-01 | CD33: 1998-01-01 | CH33: 0.0267 | CI33: 0.0267 | CJ33: 2.9482 | CX33: 2003-01-01 | CY33: 0.0198 | DA33: 2003-01-01 | DB33: 0.00990239
B34: 2002-02-01 | C34: 180 | D34: 2002-02-01 | E34: 180 | G34: 2003-02-01 | H34: 0.0219 | I34: 2003-02-01 | J34: 0.0219 | L34: 2003-02-01 | M34: 0.0157 | N34: 2003-02-01 | O34: 0.0157 | Q34: 2003-02-01 | R34: 0.004116 | S34: 2003-02-01 | T34: 0.004116 | V34: 2008-10-01 | W34: 0.005 | X34: 2008-10-01 | Y34: 0.005 | AF34: 1998-02-01 | AG34: 0.006938 | AH34: 0.007749 | AI34: 0.008553 | AJ34: 0.00935 | AL34: 2003-02-01 | AM34: 0.0219 | AO34: 2003-02-01 | AP34: 0.002466 | AQ34: 0.003273 | AR34: 0.004074 | AS34: 0.004867 | AU34: 34 | BM34: 26 | BN34: Z | BT34: 1998-02-01 | BU34: 0.005 | BW34: 1998-02-01 | BX34: 0.0213 | BY34: 1998-02-01 | BZ34: 1998-02-01 | CA34: 0.0213 | CC34: 1998-02-01 | CD34: 1998-02-01 | CH34: 0.0213 | CI34: 0.0213 | CJ34: 2.9269 | CX34: 2003-02-01 | CY34: 0.0219 | DA34: 2003-02-01 | DB34: 0.00913658
B35: 2002-03-01 | C35: 180 | D35: 2002-03-01 | E35: 180 | G35: 2003-03-01 | H35: 0.0114 | I35: 2003-03-01 | J35: 0.0114 | L35: 2003-03-01 | M35: 0.0123 | N35: 2003-03-01 | O35: 0.0123 | Q35: 2003-03-01 | R35: 0.003782 | S35: 2003-03-01 | T35: 0.003782 | V35: 2008-11-01 | W35: 0.0038 | X35: 2008-11-01 | Y35: 0.0038 | AF35: 1998-03-01 | AG35: 0.011483 | AH35: 0.012298 | AI35: 0.013105 | AJ35: 0.013906 | AL35: 2003-03-01 | AM35: 0.0114 | AO35: 2003-03-01 | AP35: 0.002466 | AQ35: 0.003273 | AR35: 0.004074 | AS35: 0.004867 | AU35: 35 | BH35: COD_VER | BI35: 2604201-6 | BM35: 27 | BN35: AA | BT35: 1998-03-01 | BU35: 0.005 | BW35: 1998-03-01 | BX35: 0.022 | BY35: 1998-03-01 | BZ35: 1998-03-01 | CA35: 0.022 | CC35: 1998-03-01 | CD35: 1998-03-01 | CH35: 0.022 | CI35: 0.022 | CJ35: 2.9049 | CX35: 2003-03-01 | CY35: 0.0114 | DA35: 2003-03-01 | DB35: 0.00880091
B36: 2002-04-01 | C36: 200 | D36: 2002-04-01 | E36: 200 | G36: 2003-04-01 | H36: 0.0114 | I36: 2003-04-01 | J36: 0.0114 | L36: 2003-04-01 | M36: 0.0097 | N36: 2003-04-01 | O36: 0.0097 | Q36: 2003-04-01 | R36: 0.004184 | S36: 2003-04-01 | T36: 0.004184 | V36: 2008-12-01 | W36: 0.0029 | X36: 2008-12-01 | Y36: 0.0029 | AF36: 1998-04-01 | AG36: 0.007197 | AH36: 0.008009 | AI36: 0.008813 | AJ36: 0.00961 | AL36: 2003-04-01 | AM36: 0.0114 | AO36: 2003-04-01 | AP36: 0.002466 | AQ36: 0.003273 | AR36: 0.004074 | AS36: 0.004867 | AU36: 36 | BM36: 28 | BN36: AB | BT36: 1998-04-01 | BU36: 0.005 | BW36: 1998-04-01 | BX36: 0.0171 | BY36: 1998-04-01 | BZ36: 1998-04-01 | CA36: 0.0171 | CC36: 1998-04-01 | CD36: 1998-04-01 | CH36: 0.0171 | CI36: 0.0171 | CJ36: 2.8878 | CX36: 2003-04-01 | CY36: 0.0114 | DA36: 2003-04-01 | DB36: 0.00920492
B37: 2002-05-01 | C37: 200 | D37: 2002-05-01 | E37: 200 | G37: 2003-05-01 | H37: 0.0085 | I37: 2003-05-01 | J37: 0.0085 | L37: 2003-05-01 | M37: 0.0061 | N37: 2003-05-01 | O37: 0.0061 | Q37: 2003-05-01 | R37: 0.00465 | S37: 2003-05-01 | T37: 0.00465 | V37: 2009-01-01 | W37: 0.0064 | X37: 2009-01-01 | Y37: 0.0064 | AF37: 1998-05-01 | AG37: 0.00702 | AH37: 0.007831 | AI37: 0.008635 | AJ37: 0.009432 | AL37: 2003-05-01 | AM37: 0.0085 | AO37: 2003-05-01 | AP37: 0.002466 | AQ37: 0.003273 | AR37: 0.004074 | AS37: 0.004867 | AU37: 37 | BH37: VMES99 | BI37: =+EOMONTH(TRUNC(NOW(),0),-1)+1 -> 2021-12-01 | BM37: 29 | BN37: AC | BT37: 1998-05-01 | BU37: 0.005 | BW37: 1998-05-01 | BX37: 0.0163 | BY37: 1998-05-01 | BZ37: 1998-05-01 | CA37: 0.0163 | CC37: 1998-05-01 | CD37: 1998-05-01 | CH37: 0.0163 | CI37: 0.0163 | CJ37: 2.8715 | CX37: 2003-05-01 | CY37: 0.0085 | DA37: 2003-05-01 | DB37: 0.00967325
B38: 2002-06-01 | C38: 200 | D38: 2002-06-01 | E38: 200 | G38: 2003-06-01 | H38: 0.0022 | I38: 2003-06-01 | J38: 0.0022 | L38: 2003-06-01 | M38: -0.0015 | N38: 2003-06-01 | O38: -0.0015 | Q38: 2003-06-01 | R38: 0.004166 | S38: 2003-06-01 | T38: 0.004166 | V38: 2009-02-01 | W38: 0.0031 | X38: 2009-02-01 | Y38: 0.0031 | AF38: 1998-06-01 | AG38: 0.007391 | AH38: 0.008202 | AI38: 0.009007 | AJ38: 0.009804 | AL38: 2003-06-01 | AM38: 0.0022 | AO38: 2003-06-01 | AP38: 0.002466 | AQ38: 0.003273 | AR38: 0.004074 | AS38: 0.004867 | AU38: 38 | BM38: 30 | BN38: AD | BT38: 1998-06-01 | BU38: 0.005 | BW38: 1998-06-01 | BX38: 0.016 | BY38: 1998-06-01 | BZ38: 1998-06-01 | CA38: 0.016 | CC38: 1998-06-01 | CD38: 1998-06-01 | CH38: 0.016 | CI38: 0.016 | CJ38: 2.8555 | CX38: 2003-06-01 | CY38: 0.0022 | DA38: 2003-06-01 | DB38: 0.00918683
B39: 2002-07-01 | C39: 200 | D39: 2002-07-01 | E39: 200 | G39: 2003-07-01 | H39: -0.0018 | I39: 2003-07-01 | J39: -0.0018 | L39: 2003-07-01 | M39: 0.002 | N39: 2003-07-01 | O39: 0.002 | Q39: 2003-07-01 | R39: 0.005465 | S39: 2003-07-01 | T39: 0.005465 | V39: 2009-03-01 | W39: 0.002 | X39: 2009-03-01 | Y39: 0.002 | AF39: 1998-07-01 | AG39: 0.007982 | AH39: 0.008794 | AI39: 0.009599 | AJ39: 0.010397 | AL39: 2003-07-01 | AM39: -0.0018 | AO39: 2003-07-01 | AP39: 0.002466 | AQ39: 0.003273 | AR39: 0.004074 | AS39: 0.004867 | AU39: 39 | BM39: 31 | BN39: AE | BT39: 1998-07-01 | BU39: 0.005 | BW39: 1998-07-01 | BX39: 0.017 | BY39: 1998-07-01 | BZ39: 1998-07-01 | CA39: 0.017 | CC39: 1998-07-01 | CD39: 1998-07-01 | CH39: 0.017 | CI39: 0.017 | CJ39: 2.8385 | CX39: 2003-07-01 | CY39: -0.0018 | DA39: 2003-07-01 | DB39: 0.010492325
B40: 2002-08-01 | C40: 200 | D40: 2002-08-01 | E40: 200 | G40: 2003-08-01 | H40: 0.0027 | I40: 2003-08-01 | J40: 0.0027 | L40: 2003-08-01 | M40: 0.0034 | N40: 2003-08-01 | O40: 0.0034 | Q40: 2003-08-01 | R40: 0.004038 | S40: 2003-08-01 | T40: 0.004038 | V40: 2009-04-01 | W40: 0.0055 | X40: 2009-04-01 | Y40: 0.0055 | AF40: 1998-08-01 | AG40: 0.006224 | AH40: 0.007035 | AI40: 0.007838 | AJ40: 0.008634 | AL40: 2003-08-01 | AM40: 0.0027 | AO40: 2003-08-01 | AP40: 0.002466 | AQ40: 0.003273 | AR40: 0.004074 | AS40: 0.004867 | AU40: 40 | BM40: 32 | BN40: AF | BT40: 1998-08-01 | BU40: 0.005 | BW40: 1998-08-01 | BX40: 0.0148 | BY40: 1998-08-01 | BZ40: 1998-08-01 | CA40: 0.0148 | CC40: 1998-08-01 | CD40: 1998-08-01 | CH40: 0.0148 | CI40: 0.0148 | CJ40: 2.8237 | CX40: 2003-08-01 | CY40: 0.0027 | DA40: 2003-08-01 | DB40: 0.00905819
B41: 2002-09-01 | C41: 200 | D41: 2002-09-01 | E41: 200 | G41: 2003-09-01 | H41: 0.0057 | I41: 2003-09-01 | J41: 0.0057 | L41: 2003-09-01 | M41: 0.0078 | N41: 2003-09-01 | O41: 0.0078 | Q41: 2003-09-01 | R41: 0.003364 | S41: 2003-09-01 | T41: 0.003364 | V41: 2009-05-01 | W41: 0.006 | X41: 2009-05-01 | Y41: 0.006 | AF41: 1998-09-01 | AG41: 0.006989 | AH41: 0.0078 | AI41: 0.008604 | AJ41: 0.009401 | AL41: =+I41 -> 2003-09-01 | AM41: =+J41 -> 0.0057 | AO41: 2003-09-01 | AP41: 0.002466 | AQ41: 0.003273 | AR41: 0.004074 | AS41: 0.004867 | AU41: 41 | BM41: 33 | BN41: AG | BT41: 1998-09-01 | BU41: 0.005 | BW41: 1998-09-01 | BX41: 0.0249 | BY41: 1998-09-01 | BZ41: 1998-09-01 | CA41: 0.0249 | CC41: 1998-09-01 | CD41: 1998-09-01 | CG41: =+IF(OR(COD_JUROS<>3,CD41=""),"",0.5%) ->  | CH41: 0.0249 | CI41: 0.0249 | CJ41: 2.7988 | CX41: =+I41 -> 2003-09-01 | CY41: =+J41 -> 0.0057 | DA41: 2003-09-01 | DB41: 0.00838082
B42: 2002-10-01 | C42: 200 | D42: 2002-10-01 | E42: 200 | G42: 2003-10-01 | H42: 0.0066 | I42: 2003-10-01 | J42: 0.0066 | L42: 2003-10-01 | M42: 0.0029 | N42: 2003-10-01 | O42: 0.0029 | Q42: 2003-10-01 | R42: 0.003213 | S42: 2003-10-01 | T42: 0.003213 | V42: 2009-06-01 | W42: 0.0042 | X42: 2009-06-01 | Y42: 0.0042 | AF42: 1998-10-01 | AG42: 0.01138 | AH42: 0.012194 | AI42: 0.013002 | AJ42: 0.013802 | AL42: 2003-10-01 | AM42: 0.0066 | AO42: 2003-10-01 | AP42: 0.002466 | AQ42: 0.003273 | AR42: 0.004074 | AS42: 0.004867 | AU42: 42 | BM42: 34 | BN42: AH | BT42: 1998-10-01 | BU42: 0.005 | BW42: 1998-10-01 | BX42: 0.0294 | BY42: 1998-10-01 | BZ42: 1998-10-01 | CA42: 0.0294 | CC42: 1998-10-01 | CD42: 1998-10-01 | CH42: 0.0294 | CI42: 0.0294 | CJ42: 2.7694 | CX42: 2003-10-01 | CY42: 0.0066 | DA42: 2003-10-01 | DB42: 0.008229065
B43: 2002-11-01 | C43: 200 | D43: 2002-11-01 | E43: 200 | G43: 2003-11-01 | H43: 0.0017 | I43: 2003-11-01 | J43: 0.0017 | L43: 2003-11-01 | M43: 0.0034 | N43: 2003-11-01 | O43: 0.0034 | Q43: 2003-11-01 | R43: 0.001776 | S43: 2003-11-01 | T43: 0.001776 | V43: 2009-07-01 | W43: 0.0023 | X43: 2009-07-01 | Y43: 0.0023 | AF43: 1998-11-01 | AG43: 0.008617 | AH43: 0.009429 | AI43: 0.010235 | AJ43: 0.011033 | AL43: 2003-11-01 | AM43: 0.0017 | AO43: 2003-11-01 | AP43: 0.002466 | AQ43: 0.003273 | AR43: 0.004074 | AS43: 0.004867 | AU43: 43 | BM43: 35 | BN43: AI | BT43: 1998-11-01 | BU43: 0.005 | BW43: 1998-11-01 | BX43: 0.0263 | BY43: 1998-11-01 | BZ43: 1998-11-01 | CA43: 0.0263 | CC43: 1998-11-01 | CD43: 1998-11-01 | CH43: 0.0263 | CI43: 0.0263 | CJ43: 2.7431 | CX43: 2003-11-01 | CY43: 0.0017 | DA43: 2003-11-01 | DB43: 0.00678488
B44: 2002-12-01 | C44: 200 | D44: 2002-12-01 | E44: 200 | G44: 2003-12-01 | H44: 0.0046 | I44: 2003-12-01 | J44: 0.0046 | L44: 2003-12-01 | M44: 0.0052 | N44: 2003-12-01 | O44: 0.0052 | Q44: 2003-12-01 | R44: 0.001899 | S44: 2003-12-01 | T44: 0.001899 | V44: 2009-08-01 | W44: 0.0008 | X44: 2009-08-01 | Y44: 0.0008 | AF44: 1998-12-01 | AG44: 0.009918 | AH44: 0.010732 | AI44: 0.011538 | AJ44: 0.012337 | AL44: 2003-12-01 | AM44: 0.0046 | AO44: 2003-12-01 | AP44: 0.002466 | AQ44: 0.003273 | AR44: 0.004074 | AS44: 0.004867 | AU44: 44 | BM44: 36 | BN44: AJ | BT44: 1998-12-01 | BU44: 0.005 | BW44: 1998-12-01 | BX44: 0.024 | BY44: 1998-12-01 | BZ44: 1998-12-01 | CA44: 0.024 | CC44: 1998-12-01 | CD44: 1998-12-01 | CH44: 0.024 | CI44: 0.024 | CJ44: 2.7191 | CX44: 2003-12-01 | CY44: 0.0046 | DA44: 2003-12-01 | DB44: 0.006908495
B45: 2003-01-01 | C45: 200 | D45: 2003-01-01 | E45: 200 | G45: 2004-01-01 | H45: 0.0068 | I45: 2004-01-01 | J45: 0.0068 | L45: 2004-01-01 | M45: 0.0076 | N45: 2004-01-01 | O45: 0.0076 | Q45: 2004-01-01 | R45: 0.00128 | S45: 2004-01-01 | T45: 0.00128 | V45: 2009-09-01 | W45: 0.0016 | X45: 2009-09-01 | Y45: 0.0016 | AF45: 1999-01-01 | AG45: 0.007641 | AH45: 0.008453 | AI45: 0.009258 | AJ45: 0.010055 | AL45: 2004-01-01 | AM45: 0.0068 | AO45: 2004-01-01 | AP45: 0.002466 | AQ45: 0.003273 | AR45: 0.004074 | AS45: 0.004867 | AU45: 45 | BM45: 37 | BN45: AK | BT45: 1999-01-01 | BU45: 0.005 | BW45: 1999-01-01 | BX45: 0.0218 | BY45: 1999-01-01 | BZ45: 1999-01-01 | CA45: 0.0218 | CC45: 1999-01-01 | CD45: 1999-01-01 | CH45: 0.0218 | CI45: 0.0218 | CJ45: 2.6973 | CX45: 2004-01-01 | CY45: 0.0068 | DA45: 2004-01-01 | DB45: 0.0062864
B46: 2003-02-01 | C46: 200 | D46: 2003-02-01 | E46: 200 | G46: 2004-02-01 | H46: 0.009 | I46: 2004-02-01 | J46: 0.009 | L46: 2004-02-01 | M46: 0.0061 | N46: 2004-02-01 | O46: 0.0061 | Q46: 2004-02-01 | R46: 0.000458 | S46: 2004-02-01 | T46: 0.000458 | V46: 2009-10-01 | W46: 0.0024 | X46: 2009-10-01 | Y46: 0.0024 | AF46: 1999-02-01 | AG46: 0.010784 | AH46: 0.011598 | AI46: 0.012405 | AJ46: 0.013205 | AL46: 2004-02-01 | AM46: 0.009 | AO46: 2004-02-01 | AP46: 0.002466 | AQ46: 0.003273 | AR46: 0.004074 | AS46: 0.004867 | AU46: 46 | BM46: 38 | BN46: AL | BT46: 1999-02-01 | BU46: 0.005 | BW46: 1999-02-01 | BX46: 0.0238 | BY46: 1999-02-01 | BZ46: 1999-02-01 | CA46: 0.0238 | CC46: 1999-02-01 | CD46: 1999-02-01 | CH46: 0.0238 | CI46: 0.0238 | CJ46: 2.6735 | CX46: 2004-02-01 | CY46: 0.009 | DA46: 2004-02-01 | DB46: 0.00546029
B47: 2003-03-01 | C47: 200 | D47: 2003-03-01 | E47: 200 | G47: 2004-03-01 | H47: 0.004 | I47: 2004-03-01 | J47: 0.004 | L47: 2004-03-01 | M47: 0.0047 | N47: 2004-03-01 | O47: 0.0047 | Q47: 2004-03-01 | R47: 0.001778 | S47: 2004-03-01 | T47: 0.001778 | V47: 2009-11-01 | W47: 0.0037 | X47: 2009-11-01 | Y47: 0.0037 | AF47: 1999-03-01 | AG47: 0.014108 | AH47: 0.014925 | AI47: 0.015735 | AJ47: 0.016538 | AL47: 2004-03-01 | AM47: 0.004 | AO47: 2004-03-01 | AP47: 0.002466 | AQ47: 0.003273 | AR47: 0.004074 | AS47: 0.004867 | AU47: 47 | BM47: 39 | BN47: AM | BT47: 1999-03-01 | BU47: 0.005 | BW47: 1999-03-01 | BX47: 0.0333 | BY47: 1999-03-01 | BZ47: 1999-03-01 | CA47: 0.0333 | CC47: 1999-03-01 | CD47: 1999-03-01 | CH47: 0.0333 | CI47: 0.0333 | CJ47: 2.6402 | CX47: 2004-03-01 | CY47: 0.004 | DA47: 2004-03-01 | DB47: 0.00678689
B48: 2003-04-01 | C48: 240 | D48: 2003-04-01 | E48: 240 | G48: 2004-04-01 | H48: 0.0021 | I48: 2004-04-01 | J48: 0.0021 | L48: 2004-04-01 | M48: 0.0037 | N48: 2004-04-01 | O48: 0.0037 | Q48: 2004-04-01 | R48: 0.000874 | S48: 2004-04-01 | T48: 0.000874 | V48: 2009-12-01 | W48: 0.0024 | X48: 2009-12-01 | Y48: 0.0024 | AF48: 1999-04-01 | AG48: 0.008573 | AH48: 0.009385 | AI48: 0.01019 | AJ48: 0.010989 | AL48: 2004-04-01 | AM48: 0.0021 | AO48: 2004-04-01 | AP48: 0.002466 | AQ48: 0.003273 | AR48: 0.004074 | AS48: 0.004867 | AU48: 48 | BM48: 40 | BN48: AN | BT48: 1999-04-01 | BU48: 0.005 | BW48: 1999-04-01 | BX48: 0.0235 | BY48: 1999-04-01 | BZ48: 1999-04-01 | CA48: 0.0235 | CC48: 1999-04-01 | CD48: 1999-04-01 | CH48: 0.0235 | CI48: 0.0235 | CJ48: 2.6167 | CX48: 2004-04-01 | CY48: 0.0021 | DA48: 2004-04-01 | DB48: 0.00587837
B49: 2003-05-01 | C49: 240 | D49: 2003-05-01 | E49: 240 | G49: 2004-05-01 | H49: 0.0054 | I49: 2004-05-01 | J49: 0.0054 | L49: 2004-05-01 | M49: 0.0051 | N49: 2004-05-01 | O49: 0.0051 | Q49: 2004-05-01 | R49: 0.001546 | S49: 2004-05-01 | T49: 0.001546 | V49: 2010-01-01 | W49: 0.0088 | X49: 2010-01-01 | Y49: 0.0088 | AF49: 1999-05-01 | AG49: 0.008241 | AH49: 0.009053 | AI49: 0.009858 | AJ49: 0.010656 | AL49: 2004-05-01 | AM49: 0.0054 | AO49: 2004-05-01 | AP49: 0.002466 | AQ49: 0.003273 | AR49: 0.004074 | AS49: 0.004867 | AU49: 49 | BM49: 41 | BN49: AO | BT49: 1999-05-01 | BU49: 0.005 | BW49: 1999-05-01 | BX49: 0.0202 | BY49: 1999-05-01 | BZ49: 1999-05-01 | CA49: 0.0202 | CC49: 1999-05-01 | CD49: 1999-05-01 | CH49: 0.0202 | CI49: 0.0202 | CJ49: 2.5965 | CX49: 2004-05-01 | CY49: 0.0054 | DA49: 2004-05-01 | DB49: 0.00655373
B50: 2003-06-01 | C50: 240 | D50: 2003-06-01 | E50: 240 | G50: 2004-06-01 | H50: 0.0056 | I50: 2004-06-01 | J50: 0.0056 | L50: 2004-06-01 | M50: 0.0071 | N50: 2004-06-01 | O50: 0.0071 | Q50: 2004-06-01 | R50: 0.001761 | S50: 2004-06-01 | T50: 0.001761 | V50: 2010-02-01 | W50: 0.007 | X50: 2010-02-01 | Y50: 0.007 | AF50: 1999-06-01 | AG50: 0.005581 | AH50: 0.006391 | AI50: 0.007194 | AJ50: 0.00799 | AL50: 2004-06-01 | AM50: 0.0056 | AO50: 2004-06-01 | AP50: 0.002466 | AQ50: 0.003273 | AR50: 0.004074 | AS50: 0.004867 | AU50: 50 | BM50: 42 | BN50: AP | BT50: 1999-06-01 | BU50: 0.005 | BW50: 1999-06-01 | BX50: 0.0167 | BY50: 1999-06-01 | BZ50: 1999-06-01 | CA50: 0.0167 | CC50: 1999-06-01 | CD50: 1999-06-01 | CH50: 0.0167 | CI50: 0.0167 | CJ50: 2.5798 | CX50: 2004-06-01 | CY50: 0.0056 | DA50: 2004-06-01 | DB50: 0.006769805
B51: 2003-07-01 | C51: 240 | D51: 2003-07-01 | E51: 240 | G51: 2004-07-01 | H51: 0.0093 | I51: 2004-07-01 | J51: 0.0093 | L51: 2004-07-01 | M51: 0.0091 | N51: 2004-07-01 | O51: 0.0091 | Q51: 2004-07-01 | R51: 0.001952 | S51: 2004-07-01 | T51: 0.001952 | V51: 2010-03-01 | W51: 0.0071 | X51: 2010-03-01 | Y51: 0.0071 | AF51: 1999-07-01 | AG51: 0.005406 | AH51: 0.006216 | AI51: 0.007019 | AJ51: 0.007814 | AL51: 2004-07-01 | AM51: 0.0093 | AO51: 2004-07-01 | AP51: 0.002466 | AQ51: 0.003273 | AR51: 0.004074 | AS51: 0.004867 | AU51: 51 | BM51: 43 | BN51: AQ | BT51: 1999-07-01 | BU51: 0.005 | BW51: 1999-07-01 | BX51: 0.0166 | BY51: 1999-07-01 | BZ51: 1999-07-01 | CA51: 0.0166 | CC51: 1999-07-01 | CD51: 1999-07-01 | CH51: 0.0166 | CI51: 0.0166 | CJ51: 2.5632 | CX51: 2004-07-01 | CY51: 0.0093 | DA51: 2004-07-01 | DB51: 0.00696176
B52: 2003-08-01 | C52: 240 | D52: 2003-08-01 | E52: 240 | G52: 2004-08-01 | H52: 0.0079 | I52: 2004-08-01 | J52: 0.0079 | L52: 2004-08-01 | M52: 0.0069 | N52: 2004-08-01 | O52: 0.0069 | Q52: 2004-08-01 | R52: 0.002005 | S52: 2004-08-01 | T52: 0.002005 | V52: 2010-04-01 | W52: 0.0073 | X52: 2010-04-01 | Y52: 0.0073 | AF52: 1999-08-01 | AG52: 0.005418 | AH52: 0.006228 | AI52: 0.007031 | AJ52: 0.007826 | AL52: 2004-08-01 | AM52: 0.0079 | AO52: 2004-08-01 | AP52: 0.002466 | AQ52: 0.003273 | AR52: 0.004074 | AS52: 0.004867 | AU52: 52 | BM52: 44 | BN52: AR | BT52: 1999-08-01 | BU52: 0.005 | BW52: 1999-08-01 | BX52: 0.0157 | BY52: 1999-08-01 | BZ52: 1999-08-01 | CA52: 0.0157 | CC52: 1999-08-01 | CD52: 1999-08-01 | CH52: 0.0157 | CI52: 0.0157 | CJ52: 2.5475 | CX52: 2004-08-01 | CY52: 0.0079 | DA52: 2004-08-01 | DB52: 0.007015025
B53: 2003-09-01 | C53: 240 | D53: 2003-09-01 | E53: 240 | G53: 2004-09-01 | H53: 0.0049 | I53: 2004-09-01 | J53: 0.0049 | L53: 2004-09-01 | M53: 0.0033 | N53: 2004-09-01 | O53: 0.0033 | Q53: 2004-09-01 | R53: 0.001728 | S53: 2004-09-01 | T53: 0.001728 | V53: 2010-05-01 | W53: 0.0043 | X53: 2010-05-01 | Y53: 0.0043 | AF53: 1999-09-01 | AG53: 0.005187 | AH53: 0.005997 | AI53: 0.0068 | AJ53: 0.007595 | AL53: 2004-09-01 | AM53: 0.0049 | AO53: 2004-09-01 | AP53: 0.002466 | AQ53: 0.003273 | AR53: 0.004074 | AS53: 0.004867 | AU53: 53 | BM53: 45 | BN53: AS | BT53: 1999-09-01 | BU53: 0.005 | BW53: 1999-09-01 | BX53: 0.0149 | BY53: 1999-09-01 | BZ53: 1999-09-01 | CA53: 0.0149 | CC53: 1999-09-01 | CD53: 1999-09-01 | CH53: 0.0149 | CI53: 0.0149 | CJ53: 2.5326 | CX53: 2004-09-01 | CY53: 0.0049 | DA53: 2004-09-01 | DB53: 0.00673664
B54: 2003-10-01 | C54: 240 | D54: 2003-10-01 | E54: 240 | G54: 2004-10-01 | H54: 0.0032 | I54: 2004-10-01 | J54: 0.0032 | L54: 2004-10-01 | M54: 0.0044 | N54: 2004-10-01 | O54: 0.0044 | Q54: 2004-10-01 | R54: 0.001108 | S54: 2004-10-01 | T54: 0.001108 | V54: 2010-06-01 | W54: -0.0011 | X54: 2010-06-01 | Y54: -0.0011 | AF54: 1999-10-01 | AG54: 0.004736 | AH54: 0.005546 | AI54: 0.006348 | AJ54: 0.007143 | AL54: 2004-10-01 | AM54: 0.0032 | AO54: 2004-10-01 | AP54: 0.002466 | AQ54: 0.003273 | AR54: 0.004074 | AS54: 0.004867 | AU54: 54 | BM54: 46 | BN54: AT | BT54: 1999-10-01 | BU54: 0.005 | BW54: 1999-10-01 | BX54: 0.0138 | BY54: 1999-10-01 | BZ54: 1999-10-01 | CA54: 0.0138 | CC54: 1999-10-01 | CD54: 1999-10-01 | CH54: 0.0138 | CI54: 0.0138 | CJ54: 2.5188 | CX54: 2004-10-01 | CY54: 0.0032 | DA54: 2004-10-01 | DB54: 0.00611354
B55: 2003-11-01 | C55: 240 | D55: 2003-11-01 | E55: 240 | G55: 2004-11-01 | H55: 0.0063 | I55: 2004-11-01 | J55: 0.0063 | L55: 2004-11-01 | M55: 0.0069 | N55: 2004-11-01 | O55: 0.0069 | Q55: 2004-11-01 | R55: 0.001146 | S55: 2004-11-01 | T55: 0.001146 | V55: 2010-07-01 | W55: -0.0007 | X55: 2010-07-01 | Y55: -0.0007 | AF55: 1999-11-01 | AG55: 0.004469 | AH55: 0.005278 | AI55: 0.00608 | AJ55: 0.006875 | AL55: 2004-11-01 | AM55: 0.0063 | AO55: 2004-11-01 | AP55: 0.002466 | AQ55: 0.003273 | AR55: 0.004074 | AS55: 0.004867 | AU55: 55 | BM55: 47 | BN55: AU | BT55: 1999-11-01 | BU55: 0.005 | BW55: 1999-11-01 | BX55: 0.0139 | BY55: 1999-11-01 | BZ55: 1999-11-01 | CA55: 0.0139 | CC55: 1999-11-01 | CD55: 1999-11-01 | CH55: 0.0139 | CI55: 0.0139 | CJ55: 2.5049 | CX55: 2004-11-01 | CY55: 0.0063 | DA55: 2004-11-01 | DB55: 0.00615173
B56: 2003-12-01 | C56: 240 | D56: 2003-12-01 | E56: 240 | G56: 2004-12-01 | H56: 0.0084 | I56: 2004-12-01 | J56: 0.0084 | L56: 2004-12-01 | M56: 0.0086 | N56: 2004-12-01 | O56: 0.0086 | Q56: 2004-12-01 | R56: 0.0024 | S56: 2004-12-01 | T56: 0.0024 | V56: 2010-08-01 | W56: -0.0007 | X56: 2010-08-01 | Y56: -0.0007 | AF56: 1999-12-01 | AG56: 0.005471 | AH56: 0.006281 | AI56: 0.007084 | AJ56: 0.00788 | AL56: 2004-12-01 | AM56: 0.0084 | AO56: 2004-12-01 | AP56: 0.002466 | AQ56: 0.003273 | AR56: 0.004074 | AS56: 0.004867 | AU56: 56 | BM56: 48 | BN56: AV | BT56: 1999-12-01 | BU56: 0.005 | BW56: 1999-12-01 | BX56: 0.016 | BY56: 1999-12-01 | BZ56: 1999-12-01 | CA56: 0.016 | CC56: 1999-12-01 | CD56: 1999-12-01 | CH56: 0.016 | CI56: 0.016 | CJ56: 2.4889 | CX56: 2004-12-01 | CY56: 0.0084 | DA56: 2004-12-01 | DB56: 0.007412
B57: 2004-01-01 | C57: 240 | D57: 2004-01-01 | E57: 240 | G57: 2005-01-01 | H57: 0.0068 | I57: 2005-01-01 | J57: 0.0068 | L57: 2005-01-01 | M57: 0.0058 | N57: 2005-01-01 | O57: 0.0058 | Q57: 2005-01-01 | R57: 0.00188 | S57: 2005-01-01 | T57: 0.00188 | V57: 2010-09-01 | W57: 0.0054 | X57: 2010-09-01 | Y57: 0.0054 | AF57: 2000-01-01 | AG57: 0.00462 | AH57: 0.005429 | AI57: 0.006231 | AJ57: 0.007027 | AL57: 2005-01-01 | AM57: 0.0068 | AO57: 2005-01-01 | AP57: 0.002466 | AQ57: 0.003273 | AR57: 0.004074 | AS57: 0.004867 | AU57: 57 | BM57: 49 | BN57: AW | BT57: 2000-01-01 | BU57: 0.005 | BW57: 2000-01-01 | BX57: 0.0146 | BY57: 2000-01-01 | BZ57: 2000-01-01 | CA57: 0.0146 | CC57: 2000-01-01 | CD57: 2000-01-01 | CH57: 0.0146 | CI57: 0.0146 | CJ57: 2.4743 | CX57: 2005-01-01 | CY57: 0.0068 | DA57: 2005-01-01 | DB57: 0.0068894
B58: 2004-02-01 | C58: 240 | D58: 2004-02-01 | E58: 240 | G58: 2005-02-01 | H58: 0.0074 | I58: 2005-02-01 | J58: 0.0074 | L58: 2005-02-01 | M58: 0.0059 | N58: 2005-02-01 | O58: 0.0059 | Q58: 2005-02-01 | R58: 0.000962 | S58: 2005-02-01 | T58: 0.000962 | V58: 2010-10-01 | W58: 0.0092 | X58: 2010-10-01 | Y58: 0.0092 | AF58: 2000-02-01 | AG58: 0.0048 | AH58: 0.005609 | AI58: 0.006411 | AJ58: 0.007206 | AL58: 2005-02-01 | AM58: 0.0074 | AO58: 2005-02-01 | AP58: 0.002466 | AQ58: 0.003273 | AR58: 0.004074 | AS58: 0.004867 | AU58: 58 | BM58: 50 | BN58: AX | BT58: 2000-02-01 | BU58: 0.005 | BW58: 2000-02-01 | BX58: 0.0145 | BY58: 2000-02-01 | BZ58: 2000-02-01 | CA58: 0.0145 | CC58: 2000-02-01 | CD58: 2000-02-01 | CH58: 0.0145 | CI58: 0.0145 | CJ58: 2.4598 | CX58: 2005-02-01 | CY58: 0.0074 | DA58: 2005-02-01 | DB58: 0.00596681
B59: 2004-03-01 | C59: 240 | D59: 2004-03-01 | E59: 240 | G59: 2005-03-01 | H59: 0.0035 | I59: 2005-03-01 | J59: 0.0035 | L59: 2005-03-01 | M59: 0.0061 | N59: 2005-03-01 | O59: 0.0061 | Q59: 2005-03-01 | R59: 0.002635 | S59: 2005-03-01 | T59: 0.002635 | V59: 2010-11-01 | W59: 0.0103 | X59: 2010-11-01 | Y59: 0.0103 | AF59: 2000-03-01 | AG59: 0.004713 | AH59: 0.005523 | AI59: 0.006325 | AJ59: 0.00712 | AL59: 2005-03-01 | AM59: 0.0035 | AO59: 2005-03-01 | AP59: 0.002466 | AQ59: 0.003273 | AR59: 0.004074 | AS59: 0.004867 | AU59: 59 | BM59: 51 | BN59: AY | BT59: 2000-03-01 | BU59: 0.005 | BW59: 2000-03-01 | BX59: 0.0145 | BY59: 2000-03-01 | BZ59: 2000-03-01 | CA59: 0.0145 | CC59: 2000-03-01 | CD59: 2000-03-01 | CH59: 0.0145 | CI59: 0.0145 | CJ59: 2.4453 | CX59: 2005-03-01 | CY59: 0.0035 | DA59: 2005-03-01 | DB59: 0.007648175
B60: 2004-04-01 | C60: 240 | D60: 2004-04-01 | E60: 240 | G60: 2005-04-01 | H60: 0.0074 | I60: 2005-04-01 | J60: 0.0074 | L60: 2005-04-01 | M60: 0.0087 | N60: 2005-04-01 | O60: 0.0087 | Q60: 2005-04-01 | R60: 0.002003 | S60: 2005-04-01 | T60: 0.002003 | V60: 2010-12-01 | W60: 0.006 | X60: 2010-12-01 | Y60: 0.006 | AF60: 2000-04-01 | AG60: 0.00377 | AH60: 0.004578 | AI60: 0.00538 | AJ60: 0.006174 | AL60: 2005-04-01 | AM60: 0.0074 | AO60: 2005-04-01 | AP60: 0.002466 | AQ60: 0.003273 | AR60: 0.004074 | AS60: 0.004867 | AU60: 60 | BM60: 52 | BN60: AZ | BT60: 2000-04-01 | BU60: 0.005 | BW60: 2000-04-01 | BX60: 0.013 | BY60: 2000-04-01 | BZ60: 2000-04-01 | CA60: 0.013 | CC60: 2000-04-01 | CD60: 2000-04-01 | CH60: 0.013 | CI60: 0.013 | CJ60: 2.4323 | CX60: 2005-04-01 | CY60: 0.0074 | DA60: 2005-04-01 | DB60: 0.007013015
B61: 2004-05-01 | C61: 260 | D61: 2004-05-01 | E61: 260 | G61: 2005-05-01 | H61: 0.0083 | I61: 2005-05-01 | J61: 0.0083 | L61: 2005-05-01 | M61: 0.0049 | N61: 2005-05-01 | O61: 0.0049 | Q61: 2005-05-01 | R61: 0.002527 | S61: 2005-05-01 | T61: 0.002527 | V61: 2011-01-01 | W61: 0.0094 | X61: 2011-01-01 | Y61: 0.0094 | AF61: 2000-05-01 | AG61: 0.004964 | AH61: 0.005773 | AI61: 0.006576 | AJ61: 0.007371 | AL61: 2005-05-01 | AM61: 0.0083 | AO61: 2005-05-01 | AP61: 0.002466 | AQ61: 0.003273 | AR61: 0.004074 | AS61: 0.004867 | AU61: 61 | BM61: 53 | BN61: BA | BT61: 2000-05-01 | BU61: 0.005 | BW61: 2000-05-01 | BX61: 0.0149 | BY61: 2000-05-01 | BZ61: 2000-05-01 | CA61: 0.0149 | CC61: 2000-05-01 | CD61: 2000-05-01 | CH61: 0.0149 | CI61: 0.0149 | CJ61: 2.4174 | CX61: 2005-05-01 | CY61: 0.0083 | DA61: 2005-05-01 | DB61: 0.007539635
B62: 2004-06-01 | C62: 260 | D62: 2004-06-01 | E62: 260 | G62: 2005-06-01 | H62: 0.0012 | I62: 2005-06-01 | J62: 0.0012 | L62: 2005-06-01 | M62: -0.0002 | N62: 2005-06-01 | O62: -0.0002 | Q62: 2005-06-01 | R62: 0.002993 | S62: 2005-06-01 | T62: 0.002993 | V62: 2011-02-01 | W62: 0.0054 | X62: 2011-02-01 | Y62: 0.0054 | AF62: 2000-06-01 | AG62: 0.004611 | AH62: 0.00542 | AI62: 0.006222 | AJ62: 0.007017 | AL62: 2005-06-01 | AM62: 0.0012 | AO62: 2005-06-01 | AP62: 0.002466 | AQ62: 0.003273 | AR62: 0.004074 | AS62: 0.004867 | AU62: 62 | BM62: 54 | BN62: BB | BT62: 2000-06-01 | BU62: 0.005 | BW62: 2000-06-01 | BX62: 0.0139 | BY62: 2000-06-01 | BZ62: 2000-06-01 | CA62: 0.0139 | CC62: 2000-06-01 | CD62: 2000-06-01 | CH62: 0.0139 | CI62: 0.0139 | CJ62: 2.4035 | CX62: 2005-06-01 | CY62: 0.0012 | DA62: 2005-06-01 | DB62: 0.008007965
B63: 2004-07-01 | C63: 260 | D63: 2004-07-01 | E63: 260 | G63: 2005-07-01 | H63: 0.0011 | I63: 2005-07-01 | J63: 0.0011 | L63: 2005-07-01 | M63: 0.0025 | N63: 2005-07-01 | O63: 0.0025 | Q63: 2005-07-01 | R63: 0.002575 | S63: 2005-07-01 | T63: 0.002575 | V63: 2011-03-01 | W63: 0.0066 | X63: 2011-03-01 | Y63: 0.0066 | AF63: 2000-07-01 | AG63: 0.004017 | AH63: 0.004825 | AI63: 0.005627 | AJ63: 0.006422 | AL63: 2005-07-01 | AM63: 0.0011 | AO63: 2005-07-01 | AP63: 0.002466 | AQ63: 0.003273 | AR63: 0.004074 | AS63: 0.004867 | AU63: 63 | BM63: 55 | BN63: BC | BT63: 2000-07-01 | BU63: 0.005 | BW63: 2000-07-01 | BX63: 0.0131 | BY63: 2000-07-01 | BZ63: 2000-07-01 | CA63: 0.0131 | CC63: 2000-07-01 | CD63: 2000-07-01 | CH63: 0.0131 | CI63: 0.0131 | CJ63: 2.3904 | CX63: 2005-07-01 | CY63: 0.0011 | DA63: 2005-07-01 | DB63: 0.007587875
B64: 2004-08-01 | C64: 260 | D64: 2004-08-01 | E64: 260 | G64: 2005-08-01 | H64: 0.0028 | I64: 2005-08-01 | J64: 0.0028 | L64: 2005-08-01 | M64: 0.0017 | N64: 2005-08-01 | O64: 0.0017 | Q64: 2005-08-01 | R64: 0.003466 | S64: 2005-08-01 | T64: 0.003466 | V64: 2011-04-01 | W64: 0.0072 | X64: 2011-04-01 | Y64: 0.0072 | AF64: 2000-08-01 | AG64: 0.004496 | AH64: 0.005305 | AI64: 0.006107 | AJ64: 0.006902 | AL64: 2005-08-01 | AM64: 0.0028 | AO64: 2005-08-01 | AP64: 0.002466 | AQ64: 0.003273 | AR64: 0.004074 | AS64: 0.004867 | AU64: 64 | BM64: 56 | BN64: BD | BT64: 2000-08-01 | BU64: 0.005 | BW64: 2000-08-01 | BX64: 0.0141 | BY64: 2000-08-01 | BZ64: 2000-08-01 | CA64: 0.0141 | CC64: 2000-08-01 | CD64: 2000-08-01 | CH64: 0.0141 | CI64: 0.0141 | CJ64: 2.3763 | CX64: 2005-08-01 | CY64: 0.0028 | DA64: 2005-08-01 | DB64: 0.00848333
B65: 2004-09-01 | C65: 260 | D65: 2004-09-01 | E65: 260 | G65: 2005-09-01 | H65: 0.0016 | I65: 2005-09-01 | J65: 0.0016 | L65: 2005-09-01 | M65: 0.0035 | N65: 2005-09-01 | O65: 0.0035 | Q65: 2005-09-01 | R65: 0.002637 | S65: 2005-09-01 | T65: 0.002637 | V65: 2011-05-01 | W65: 0.0057 | X65: 2011-05-01 | Y65: 0.0057 | AF65: 2000-09-01 | AG65: 0.003506 | AH65: 0.004315 | AI65: 0.005116 | AJ65: 0.00591 | AL65: 2005-09-01 | AM65: 0.0016 | AO65: 2005-09-01 | AP65: 0.002466 | AQ65: 0.003273 | AR65: 0.004074 | AS65: 0.004867 | AU65: 65 | BM65: 57 | BN65: BE | BT65: 2000-09-01 | BU65: 0.005 | BW65: 2000-09-01 | BX65: 0.0122 | BY65: 2000-09-01 | BZ65: 2000-09-01 | CA65: 0.0122 | CC65: 2000-09-01 | CD65: 2000-09-01 | CH65: 0.0122 | CI65: 0.0122 | CJ65: 2.3641 | CX65: 2005-09-01 | CY65: 0.0016 | DA65: 2005-09-01 | DB65: 0.007650185
B66: 2004-10-01 | C66: 260 | D66: 2004-10-01 | E66: 260 | G66: 2005-10-01 | H66: 0.0056 | I66: 2005-10-01 | J66: 0.0056 | L66: 2005-10-01 | M66: 0.0075 | N66: 2005-10-01 | O66: 0.0075 | Q66: 2005-10-01 | R66: 0.0021 | S66: 2005-10-01 | T66: 0.0021 | V66: 2011-06-01 | W66: 0.0022 | X66: 2011-06-01 | Y66: 0.0022 | AF66: 2000-10-01 | AG66: 0.003785 | AH66: 0.004594 | AI66: 0.005395 | AJ66: 0.006189 | AL66: 2005-10-01 | AM66: 0.0056 | AO66: 2005-10-01 | AP66: 0.002466 | AQ66: 0.003273 | AR66: 0.004074 | AS66: 0.004867 | AU66: 66 | BM66: 58 | BN66: BF | BT66: 2000-10-01 | BU66: 0.005 | BW66: 2000-10-01 | BX66: 0.0129 | BY66: 2000-10-01 | BZ66: 2000-10-01 | CA66: 0.0129 | CC66: 2000-10-01 | CD66: 2000-10-01 | CH66: 0.0129 | CI66: 0.0129 | CJ66: 2.3512 | CX66: 2005-10-01 | CY66: 0.0056 | DA66: 2005-10-01 | DB66: 0.0071105
B67: 2004-11-01 | C67: 260 | D67: 2004-11-01 | E67: 260 | G67: 2005-11-01 | H67: 0.0078 | I67: 2005-11-01 | J67: 0.0078 | L67: 2005-11-01 | M67: 0.0055 | N67: 2005-11-01 | O67: 0.0055 | Q67: 2005-11-01 | R67: 0.001929 | S67: 2005-11-01 | T67: 0.001929 | V67: 2011-07-01 | W67: 0 | X67: 2011-07-01 | Y67: 0 | AF67: 2000-11-01 | AG67: 0.003666 | AH67: 0.004474 | AI67: 0.005275 | AJ67: 0.00607 | AL67: 2005-11-01 | AM67: 0.0078 | AO67: 2005-11-01 | AP67: 0.002466 | AQ67: 0.003273 | AR67: 0.004074 | AS67: 0.004867 | AU67: 67 | BM67: 59 | BN67: BG | BT67: 2000-11-01 | BU67: 0.005 | BW67: 2000-11-01 | BX67: 0.0122 | BY67: 2000-11-01 | BZ67: 2000-11-01 | CA67: 0.0122 | CC67: 2000-11-01 | CD67: 2000-11-01 | CH67: 0.0122 | CI67: 0.0122 | CJ67: 2.339 | CX67: 2005-11-01 | CY67: 0.0078 | DA67: 2005-11-01 | DB67: 0.006938645
B68: 2004-12-01 | C68: 260 | D68: 2004-12-01 | E68: 260 | G68: 2005-12-01 | H68: 0.0038 | I68: 2005-12-01 | J68: 0.0038 | L68: 2005-12-01 | M68: 0.0036 | N68: 2005-12-01 | O68: 0.0036 | Q68: 2005-12-01 | R68: 0.002269 | S68: 2005-12-01 | T68: 0.002269 | V68: 2011-08-01 | W68: 0.0042 | X68: 2011-08-01 | Y68: 0.0042 | AF68: 2000-12-01 | AG68: 0.003459 | AH68: 0.004267 | AI68: 0.005069 | AJ68: 0.005863 | AL68: 2005-12-01 | AM68: 0.0038 | AO68: 2005-12-01 | AP68: 0.002466 | AQ68: 0.003273 | AR68: 0.004074 | AS68: 0.004867 | AU68: 68 | BM68: 60 | BN68: BH | BT68: 2000-12-01 | BU68: 0.005 | BW68: 2000-12-01 | BX68: 0.012 | BY68: 2000-12-01 | BZ68: 2000-12-01 | CA68: 0.012 | CC68: 2000-12-01 | CD68: 2000-12-01 | CH68: 0.012 | CI68: 0.012 | CJ68: 2.327 | CX68: 2005-12-01 | CY68: 0.0038 | DA68: 2005-12-01 | DB68: 0.007280345
B69: 2005-01-01 | C69: 260 | D69: 2005-01-01 | E69: 260 | G69: 2006-01-01 | H69: 0.0051 | I69: 2006-01-01 | J69: 0.0051 | L69: 2006-01-01 | M69: 0.0059 | N69: 2006-01-01 | O69: 0.0059 | Q69: 2006-01-01 | R69: 0.002326 | S69: 2006-01-01 | T69: 0.002326 | V69: 2011-09-01 | W69: 0.0045 | X69: 2011-09-01 | Y69: 0.0045 | AF69: 2001-01-01 | AG69: 0.003838 | AH69: 0.004647 | AI69: 0.005448 | AJ69: 0.006243 | AL69: 2006-01-01 | AM69: 0.0051 | AO69: 2006-01-01 | AP69: 0.002466 | AQ69: 0.003273 | AR69: 0.004074 | AS69: 0.004867 | AU69: 69 | BM69: 61 | BN69: BI | BR69: 2001-01-01 | BS69: 0.005 | BT69: =+IF(AND(TRIM(BR69)="",TRIM(BR68)<>""),"",IF(TRIM(BR69)="","",TRUNC(BR69,0))) -> 2001-01-01 | BU69: =IF(TRIM(BS69)="","",BS69) -> 0.005 | BW69: 2001-01-01 | BX69: 0.0127 | BY69: 2001-01-01 | BZ69: 2001-01-01 | CA69: 0.0127 | CC69: =+IF(BT69="","",BT69) -> 2001-01-01 | CD69: 2001-01-01 | CH69: 0.0127 | CI69: 0.0127 | CJ69: 2.3143 | CX69: 2006-01-01 | CY69: 0.0051 | DA69: 2006-01-01 | DB69: 0.00733763
B70: 2005-02-01 | C70: 260 | D70: 2005-02-01 | E70: 260 | G70: 2006-02-01 | H70: 0.0052 | I70: 2006-02-01 | J70: 0.0052 | L70: 2006-02-01 | M70: 0.0041 | N70: 2006-02-01 | O70: 0.0041 | Q70: 2006-02-01 | R70: 0.000725 | S70: 2006-02-01 | T70: 0.000725 | V70: 2011-10-01 | W70: 0.0032 | X70: 2011-10-01 | Y70: 0.0032 | AF70: 2001-02-01 | AG70: 0.002835 | AH70: 0.003642 | AI70: 0.004443 | AJ70: 0.005237 | AL70: 2006-02-01 | AM70: 0.0052 | AO70: 2006-02-01 | AP70: 0.002466 | AQ70: 0.003273 | AR70: 0.004074 | AS70: 0.004867 | AU70: 70 | BM70: 62 | BN70: BJ | BR70: 2001-02-01 | BS70: 0.005 | BT70: 2001-02-01 | BU70: =IF(TRIM(BS70)="","",BS70) -> 0.005 | BW70: 2001-02-01 | BX70: 0.0102 | BY70: 2001-02-01 | BZ70: 2001-02-01 | CA70: 0.0102 | CC70: =+IF(BT70="","",BT70) -> 2001-02-01 | CD70: 2001-02-01 | CH70: 0.0102 | CI70: 0.0102 | CJ70: 2.3041 | CX70: 2006-02-01 | CY70: 0.0052 | DA70: 2006-02-01 | DB70: 0.005728625
B71: 2005-03-01 | C71: 260 | D71: 2005-03-01 | E71: 260 | G71: 2006-03-01 | H71: 0.0037 | I71: 2006-03-01 | J71: 0.0037 | L71: 2006-03-01 | M71: 0.0043 | N71: 2006-03-01 | O71: 0.0043 | Q71: 2006-03-01 | R71: 0.002073 | S71: 2006-03-01 | T71: 0.002073 | V71: 2011-11-01 | W71: 0.0057 | X71: 2011-11-01 | Y71: 0.0057 | AF71: 2001-03-01 | AG71: 0.004194 | AH71: 0.005003 | AI71: 0.005805 | AJ71: 0.006599 | AL71: 2006-03-01 | AM71: 0.0037 | AO71: 2006-03-01 | AP71: 0.002466 | AQ71: 0.003273 | AR71: 0.004074 | AS71: 0.004867 | AU71: 71 | BM71: 63 | BN71: BK | BR71: 2001-03-01 | BS71: 0.005 | BT71: 2001-03-01 | BU71: 0.005 | BW71: 2001-03-01 | BX71: 0.0126 | BY71: 2001-03-01 | BZ71: 2001-03-01 | CA71: 0.0126 | CC71: 2001-03-01 | CD71: 2001-03-01 | CH71: 0.0126 | CI71: 0.0126 | CJ71: 2.2915 | CX71: 2006-03-01 | CY71: 0.0037 | DA71: 2006-03-01 | DB71: 0.007083365
B72: 2005-04-01 | C72: 260 | D72: 2005-04-01 | E72: 260 | G72: 2006-04-01 | H72: 0.0017 | I72: 2006-04-01 | J72: 0.0017 | L72: 2006-04-01 | M72: 0.0021 | N72: 2006-04-01 | O72: 0.0021 | Q72: 2006-04-01 | R72: 0.000855 | S72: 2006-04-01 | T72: 0.000855 | V72: 2011-12-01 | W72: 0.0051 | X72: 2011-12-01 | Y72: 0.0051 | AF72: 2001-04-01 | AG72: 0.004016 | AH72: 0.004824 | AI72: 0.005626 | AJ72: 0.006421 | AL72: 2006-04-01 | AM72: 0.0017 | AO72: 2006-04-01 | AP72: 0.002466 | AQ72: 0.003273 | AR72: 0.004074 | AS72: 0.004867 | AU72: 72 | BM72: 64 | BN72: BL | BR72: 2001-04-01 | BS72: 0.005 | BT72: 2001-04-01 | BU72: 0.005 | BW72: 2001-04-01 | BX72: 0.0119 | BY72: 2001-04-01 | BZ72: 2001-04-01 | CA72: 0.0119 | CC72: 2001-04-01 | CD72: 2001-04-01 | CH72: 0.0119 | CI72: 0.0119 | CJ72: 2.2796 | CX72: 2006-04-01 | CY72: 0.0017 | DA72: 2006-04-01 | DB72: 0.005859275
B73: 2005-05-01 | C73: 300 | D73: 2005-05-01 | E73: 300 | G73: 2006-05-01 | H73: 0.0027 | I73: =+IF(AND(TRIM(G73)="",TRIM(G72)<>""),EDATE(I72,1),IF(TRIM(G73)="","",TRUNC(G73,0))) -> 2006-05-01 | J73: =+IF(AND(H73="",H72<>""),0,IF(TRIM(H73)="","",H73)) -> 0.0027 | L73: 2006-05-01 | M73: 0.001 | N73: =+IF(TRIM(L73)="","",TRUNC(L73,0)) -> 2006-05-01 | O73: 0.001 | Q73: 2006-05-01 | R73: 0.001888 | S73: =+IF(AND(TRIM(Q73)="",TRIM(Q72)<>""),EDATE(S72,1),IF(TRIM(Q73)="","",TRUNC(Q73,0))) -> 2006-05-01 | T73: =+IF(AND(R73="",R72<>""),0,IF(TRIM(R73)="","",R73)) -> 0.001888 | V73: 2012-01-01 | W73: 0.0051 | X73: =+IF(AND(TRIM(V73)="",TRIM(V72)<>""),EDATE(X72,1),IF(TRIM(V73)="","",TRUNC(V73,0))) -> 2012-01-01 | Y73: =+IF(AND(W73="",W72<>""),0,IF(TRIM(W73)="","",W73)) -> 0.0051 | AF73: 2001-05-01 | AG73: 0.004297 | AH73: 0.005106 | AI73: 0.005908 | AJ73: 0.006703 | AL73: =+I73 -> 2006-05-01 | AM73: =+J73 -> 0.0027 | AO73: 2006-05-01 | AP73: 0.002466 | AQ73: 0.003273 | AR73: 0.004074 | AS73: 0.004867 | AU73: 73 | AV73: =IF(INDIRECT(CONCATENATE(VLET_DT,TEXT(AU73,"#0")))="","",INDIRECT(CONCATENATE(VLET_DT,TEXT(AU73,"#0")))) ->  | AW73: =+IF(AV73="","",IF(AV73<=VDAT_AT,AV73,"")) ->  | AX73: =IF(OR(AW73="",INDIRECT(CONCATENATE(VLET_COT,TEXT(AU73,"#0")))=""),"",IF(AW73=VDAT_AT,1+IF(COD_CM=4,0.01,0),INDIRECT(CONCATENATE(VLET_COT,TEXT(AU73,"#0"))))) ->  | AY73: =+IF(COD_CM=4,IF(AX73="","",AX73+IF(AY74="",0,AY74)),IF(OR(AV73>VDAT_AT,AV73=""),"",IF(AV73=VDAT_AT,1,IF(AY74="",1,AY74)*(1+AX73)/AZ73))) ->  | AZ73: =+IF(AW73="","",LOOKUP(AW73,COL_DAT_CORTE,COL_VAL_CORTE)) ->  | BM73: 65 | BN73: BM | BR73: 2001-05-01 | BS73: 0.005 | BT73: 2001-05-01 | BU73: 0.005 | BW73: 2001-05-01 | BX73: 0.0134 | BY73: =+IF(AND(TRIM(BW73)="",TRIM(BW72)<>""),EDATE(BY72,1),IF(TRIM(BW73)="","",TRUNC(BW73,0))) -> 2001-05-01 | BZ73: =+IF(BY73="","",IF(BY73<=VDAT_AT,BY73,"")) -> 2001-05-01 | CA73: =+IF(BY73>VDAT_AT,"",IF(AND(BZ73<>"",BZ74=""),0.01,IF(TRIM(BX73)="","",BX73))) -> 0.0134 | CC73: 2001-05-01 | CD73: 2001-05-01 | CE73: =+IF(CC73="","",IF(COD_JUROS=1,0.5%,IF(COD_JUROS=4,1%,IF(COD_JUROS=11,0%,"")))) ->  | CF73: =+IF(OR(COD_JUROS<>2,CD73=""),"",BU73) ->  | CG73: =+IF(OR(COD_JUROS<>3,CD73=""),"",0.5%) ->  | CH73: =+IF(OR(COD_JUROS<>10,CD73=""),"",CA73) -> 0.0134 | CI73: 0.0134 | CJ73: =+IF(CI73="","",IF(CD73=VDAT_AT1,0,CI74+IF(CJ74="",0,CJ74))) -> 2.2662 | CX73: =+I73 -> 2006-05-01 | CY73: =+J73 -> 0.0027 | DA73: =+S73 -> 2006-05-01 | DB73: =+IF(OR(T73="",BU133=""),"",((1+T73)*(1+BU133)-1)) -> 0.00689744
B74: 2005-06-01 | C74: 300 | D74: =+IF(TRIM(B74)="","",B74) -> 2005-06-01 | E74: 300 | G74: 2006-06-01 | H74: -0.0015 | I74: 2006-06-01 | J74: -0.0015 | L74: 2006-06-01 | M74: -0.0021 | N74: 2006-06-01 | O74: =+IF(TRIM(M74)="","",M74) -> -0.0021 | Q74: 2006-06-01 | R74: 0.001937 | S74: 2006-06-01 | T74: 0.001937 | V74: 2012-02-01 | W74: 0.0039 | X74: 2012-02-01 | Y74: 0.0039 | AF74: 2001-06-01 | AG74: 0.003927 | AH74: 0.004736 | AI74: 0.005538 | AJ74: 0.006332 | AL74: 2006-06-01 | AM74: -0.0015 | AO74: 2006-06-01 | AP74: 0.002466 | AQ74: 0.003273 | AR74: 0.004074 | AS74: 0.004867 | AU74: 74 | BM74: 66 | BN74: BN | BR74: 2001-06-01 | BS74: 0.005 | BT74: 2001-06-01 | BU74: 0.005 | BW74: 2001-06-01 | BX74: 0.0127 | BY74: 2001-06-01 | BZ74: 2001-06-01 | CA74: 0.0127 | CC74: 2001-06-01 | CD74: =+IF(CD73="","",IF(EDATE(CD73,1)<=VDAT_AT1,EDATE(CD73,1),"")) -> 2001-06-01 | CH74: 0.0127 | CI74: =+IF(CD74="","",SUM(CE74:CH74)) -> 0.0127 | CJ74: 2.2535 | CV74: =+IF(CU74="","",TRIM(CU74)) ->  | CX74: 2006-06-01 | CY74: -0.0015 | DA74: 2006-06-01 | DB74: 0.006946685
B75: 2005-07-01 | C75: 300 | D75: 2005-07-01 | E75: 300 | G75: 2006-07-01 | H75: -0.0002 | I75: 2006-07-01 | J75: -0.0002 | L75: 2006-07-01 | M75: 0.0019 | N75: 2006-07-01 | O75: 0.0019 | Q75: 2006-07-01 | R75: 0.001751 | S75: 2006-07-01 | T75: 0.001751 | V75: 2012-03-01 | W75: 0.0018 | X75: 2012-03-01 | Y75: 0.0018 | AF75: 2001-07-01 | AG75: 0.004913 | AH75: 0.005722 | AI75: 0.006525 | AJ75: 0.00732 | AL75: 2006-07-01 | AM75: -0.0002 | AO75: 2006-07-01 | AP75: 0.002466 | AQ75: 0.003273 | AR75: 0.004074 | AS75: 0.004867 | AU75: 75 | BM75: 67 | BN75: BO | BR75: 2001-07-01 | BS75: 0.005 | BT75: 2001-07-01 | BU75: 0.005 | BW75: 2001-07-01 | BX75: 0.015 | BY75: 2001-07-01 | BZ75: 2001-07-01 | CA75: 0.015 | CC75: 2001-07-01 | CD75: 2001-07-01 | CH75: 0.015 | CI75: 0.015 | CJ75: 2.2385 | CX75: 2006-07-01 | CY75: -0.0002 | DA75: 2006-07-01 | DB75: 0.006759755
B76: 2005-08-01 | C76: 300 | D76: 2005-08-01 | E76: 300 | G76: 2006-08-01 | H76: 0.0019 | I76: 2006-08-01 | J76: 0.0019 | L76: 2006-08-01 | M76: 0.0005 | N76: 2006-08-01 | O76: 0.0005 | Q76: 2006-08-01 | R76: 0.002436 | S76: 2006-08-01 | T76: 0.002436 | V76: 2012-04-01 | W76: 0.0064 | X76: 2012-04-01 | Y76: 0.0064 | AF76: 2001-08-01 | AG76: 0.00591 | AH76: 0.00672 | AI76: 0.007524 | AJ76: 0.00832 | AL76: 2006-08-01 | AM76: 0.0019 | AO76: 2006-08-01 | AP76: 0.002466 | AQ76: 0.003273 | AR76: 0.004074 | AS76: 0.004867 | AU76: 76 | BM76: 68 | BN76: BP | BR76: 2001-08-01 | BS76: 0.005 | BT76: 2001-08-01 | BU76: 0.005 | BW76: 2001-08-01 | BX76: 0.016 | BY76: 2001-08-01 | BZ76: 2001-08-01 | CA76: 0.016 | CC76: 2001-08-01 | CD76: 2001-08-01 | CH76: 0.016 | CI76: 0.016 | CJ76: 2.2225 | CX76: 2006-08-01 | CY76: 0.0019 | DA76: 2006-08-01 | DB76: 0.00744818
B77: 2005-09-01 | C77: 300 | D77: 2005-09-01 | E77: 300 | G77: 2006-09-01 | H77: 0.0005 | I77: 2006-09-01 | J77: 0.0005 | L77: 2006-09-01 | M77: 0.0021 | N77: 2006-09-01 | O77: 0.0021 | Q77: 2006-09-01 | R77: 0.001521 | S77: 2006-09-01 | T77: 0.001521 | V77: 2012-05-01 | W77: 0.0055 | X77: 2012-05-01 | Y77: 0.0055 | AF77: 2001-09-01 | AG77: 0.004097 | AH77: 0.004906 | AI77: 0.005707 | AJ77: 0.006502 | AL77: 2006-09-01 | AM77: 0.0005 | AO77: 2006-09-01 | AP77: 0.002466 | AQ77: 0.003273 | AR77: 0.004074 | AS77: 0.004867 | AU77: 77 | BM77: 69 | BN77: BQ | BR77: 2001-09-01 | BS77: 0.005 | BT77: 2001-09-01 | BU77: 0.005 | BW77: 2001-09-01 | BX77: 0.0132 | BY77: 2001-09-01 | BZ77: 2001-09-01 | CA77: 0.0132 | CC77: 2001-09-01 | CD77: 2001-09-01 | CH77: 0.0132 | CI77: 0.0132 | CJ77: 2.2093 | CX77: 2006-09-01 | CY77: 0.0005 | DA77: 2006-09-01 | DB77: 0.006528605
B78: 2005-10-01 | C78: 300 | D78: 2005-10-01 | E78: 300 | G78: 2006-10-01 | H78: 0.0029 | I78: 2006-10-01 | J78: 0.0029 | L78: 2006-10-01 | M78: 0.0033 | N78: 2006-10-01 | O78: 0.0033 | Q78: 2006-10-01 | R78: 0.001875 | S78: 2006-10-01 | T78: 0.001875 | V78: 2012-06-01 | W78: 0.0026 | X78: 2012-06-01 | Y78: 0.0026 | AF78: 2001-10-01 | AG78: 0.005386 | AH78: 0.006196 | AI78: 0.006998 | AJ78: 0.007794 | AL78: 2006-10-01 | AM78: 0.0029 | AO78: 2006-10-01 | AP78: 0.002466 | AQ78: 0.003273 | AR78: 0.004074 | AS78: 0.004867 | AU78: 78 | BM78: 70 | BN78: BR | BR78: 2001-10-01 | BS78: 0.005 | BT78: 2001-10-01 | BU78: 0.005 | BW78: 2001-10-01 | BX78: 0.0153 | BY78: 2001-10-01 | BZ78: 2001-10-01 | CA78: 0.0153 | CC78: 2001-10-01 | CD78: 2001-10-01 | CH78: 0.0153 | CI78: 0.0153 | CJ78: 2.194 | CX78: 2006-10-01 | CY78: 0.0029 | DA78: 2006-10-01 | DB78: 0.006884375
B79: 2005-11-01 | C79: 300 | D79: 2005-11-01 | E79: 300 | G79: 2006-11-01 | H79: 0.0037 | I79: 2006-11-01 | J79: 0.0037 | L79: 2006-11-01 | M79: 0.0031 | N79: 2006-11-01 | O79: 0.0031 | Q79: 2006-11-01 | R79: 0.001282 | S79: 2006-11-01 | T79: 0.001282 | V79: 2012-07-01 | W79: 0.0043 | X79: 2012-07-01 | Y79: 0.0043 | AF79: 2001-11-01 | AG79: 0.004399 | AH79: 0.005208 | AI79: 0.006009 | AJ79: 0.006804 | AL79: 2006-11-01 | AM79: 0.0037 | AO79: 2006-11-01 | AP79: 0.002466 | AQ79: 0.003273 | AR79: 0.004074 | AS79: 0.004867 | AU79: 79 | BM79: 71 | BN79: BS | BR79: 2001-11-01 | BS79: 0.005 | BT79: 2001-11-01 | BU79: 0.005 | BW79: 2001-11-01 | BX79: 0.0139 | BY79: 2001-11-01 | BZ79: 2001-11-01 | CA79: 0.0139 | CC79: 2001-11-01 | CD79: 2001-11-01 | CH79: 0.0139 | CI79: 0.0139 | CJ79: 2.1801 | CX79: 2006-11-01 | CY79: 0.0037 | DA79: 2006-11-01 | DB79: 0.00628841
B80: 2005-12-01 | C80: 300 | D80: 2005-12-01 | E80: 300 | G80: 2006-12-01 | H80: 0.0035 | I80: 2006-12-01 | J80: 0.0035 | L80: 2006-12-01 | M80: 0.0048 | N80: 2006-12-01 | O80: 0.0048 | Q80: 2006-12-01 | R80: 0.001522 | S80: 2006-12-01 | T80: 0.001522 | V80: 2012-08-01 | W80: 0.0045 | X80: 2012-08-01 | Y80: 0.0045 | AF80: 2001-12-01 | AG80: 0.004454 | AH80: 0.005263 | AI80: 0.006065 | AJ80: 0.00686 | AL80: 2006-12-01 | AM80: 0.0035 | AO80: 2006-12-01 | AP80: 0.002466 | AQ80: 0.003273 | AR80: 0.004074 | AS80: 0.004867 | AU80: 80 | BM80: 72 | BN80: BT | BR80: 2001-12-01 | BS80: 0.005 | BT80: 2001-12-01 | BU80: 0.005 | BW80: 2001-12-01 | BX80: 0.0139 | BY80: 2001-12-01 | BZ80: 2001-12-01 | CA80: 0.0139 | CC80: 2001-12-01 | CD80: 2001-12-01 | CH80: 0.0139 | CI80: 0.0139 | CJ80: 2.1662 | CX80: 2006-12-01 | CY80: 0.0035 | DA80: 2006-12-01 | DB80: 0.00652961
B81: 2006-01-01 | C81: 300 | D81: 2006-01-01 | E81: 300 | G81: 2007-01-01 | H81: 0.0052 | I81: 2007-01-01 | J81: 0.0052 | L81: 2007-01-01 | M81: 0.0044 | N81: 2007-01-01 | O81: 0.0044 | Q81: 2007-01-01 | R81: 0.002189 | S81: 2007-01-01 | T81: 0.002189 | V81: 2012-09-01 | W81: 0.0063 | X81: 2012-09-01 | Y81: 0.0063 | AF81: 2002-01-01 | AG81: 0.005063 | AH81: 0.005873 | AI81: 0.006675 | AJ81: 0.007471 | AL81: 2007-01-01 | AM81: 0.0052 | AO81: 2007-01-01 | AP81: 0.002466 | AQ81: 0.003273 | AR81: 0.004074 | AS81: 0.004867 | AU81: 81 | BM81: 73 | BN81: BU | BR81: 2002-01-01 | BS81: 0.005 | BT81: 2002-01-01 | BU81: 0.005 | BW81: 2002-01-01 | BX81: 0.0153 | BY81: 2002-01-01 | BZ81: 2002-01-01 | CA81: 0.0153 | CC81: 2002-01-01 | CD81: 2002-01-01 | CH81: 0.0153 | CI81: 0.0153 | CJ81: 2.1509 | CX81: 2007-01-01 | CY81: 0.0052 | DA81: 2007-01-01 | DB81: 0.007199945
B82: 2006-02-01 | C82: 300 | D82: 2006-02-01 | E82: 300 | G82: 2007-02-01 | H82: 0.0046 | I82: 2007-02-01 | J82: 0.0046 | L82: 2007-02-01 | M82: 0.0044 | N82: 2007-02-01 | O82: 0.0044 | Q82: 2007-02-01 | R82: 0.000721 | S82: 2007-02-01 | T82: 0.000721 | V82: 2012-10-01 | W82: 0.0071 | X82: 2012-10-01 | Y82: 0.0071 | AF82: 2002-02-01 | AG82: 0.00364 | AH82: 0.004448 | AI82: 0.005249 | AJ82: 0.006044 | AL82: 2007-02-01 | AM82: 0.0046 | AO82: 2007-02-01 | AP82: 0.002466 | AQ82: 0.003273 | AR82: 0.004074 | AS82: 0.004867 | AU82: 82 | BM82: 74 | BN82: BV | BR82: 2002-02-01 | BS82: 0.005 | BT82: 2002-02-01 | BU82: 0.005 | BW82: 2002-02-01 | BX82: 0.0125 | BY82: 2002-02-01 | BZ82: 2002-02-01 | CA82: 0.0125 | CC82: 2002-02-01 | CD82: 2002-02-01 | CH82: 0.0125 | CI82: 0.0125 | CJ82: 2.1384 | CX82: 2007-02-01 | CY82: 0.0046 | DA82: 2007-02-01 | DB82: 0.005724605
B83: 2006-03-01 | C83: 300 | D83: 2006-03-01 | E83: 300 | G83: 2007-03-01 | H83: 0.0041 | I83: 2007-03-01 | J83: 0.0041 | L83: 2007-03-01 | M83: 0.0037 | N83: 2007-03-01 | O83: 0.0037 | Q83: 2007-03-01 | R83: 0.001876 | S83: 2007-03-01 | T83: 0.001876 | V83: 2012-11-01 | W83: 0.0054 | X83: 2012-11-01 | Y83: 0.0054 | AF83: 2002-03-01 | AG83: 0.004228 | AH83: 0.005037 | AI83: 0.005839 | AJ83: 0.006634 | AL83: 2007-03-01 | AM83: 0.0041 | AO83: 2007-03-01 | AP83: 0.002466 | AQ83: 0.003273 | AR83: 0.004074 | AS83: 0.004867 | AU83: 83 | BM83: 75 | BN83: BW | BR83: 2002-03-01 | BS83: 0.005 | BT83: 2002-03-01 | BU83: 0.005 | BW83: 2002-03-01 | BX83: 0.0137 | BY83: 2002-03-01 | BZ83: 2002-03-01 | CA83: 0.0137 | CC83: 2002-03-01 | CD83: 2002-03-01 | CH83: 0.0137 | CI83: 0.0137 | CJ83: 2.1247 | CX83: 2007-03-01 | CY83: 0.0041 | DA83: 2007-03-01 | DB83: 0.00688538
B84: 2006-04-01 | C84: 350 | D84: 2006-04-01 | E84: 350 | G84: 2007-04-01 | H84: 0.0022 | I84: 2007-04-01 | J84: 0.0022 | L84: 2007-04-01 | M84: 0.0025 | N84: 2007-04-01 | O84: 0.0025 | Q84: 2007-04-01 | R84: 0.001272 | S84: 2007-04-01 | T84: 0.001272 | V84: 2012-12-01 | W84: 0.0074 | X84: 2012-12-01 | Y84: 0.0074 | AF84: 2002-04-01 | AG84: 0.004829 | AH84: 0.005638 | AI84: 0.00644 | AJ84: 0.007236 | AL84: 2007-04-01 | AM84: 0.0022 | AO84: 2007-04-01 | AP84: 0.002466 | AQ84: 0.003273 | AR84: 0.004074 | AS84: 0.004867 | AU84: 84 | BM84: 76 | BN84: BX | BR84: 2002-04-01 | BS84: 0.005 | BT84: 2002-04-01 | BU84: 0.005 | BW84: 2002-04-01 | BX84: 0.0148 | BY84: 2002-04-01 | BZ84: 2002-04-01 | CA84: 0.0148 | CC84: 2002-04-01 | CD84: 2002-04-01 | CH84: 0.0148 | CI84: 0.0148 | CJ84: 2.1099 | CX84: 2007-04-01 | CY84: 0.0022 | DA84: 2007-04-01 | DB84: 0.00627836
B85: 2006-05-01 | C85: 350 | D85: 2006-05-01 | E85: 350 | G85: 2007-05-01 | H85: 0.0026 | I85: 2007-05-01 | J85: 0.0026 | L85: 2007-05-01 | M85: 0.0028 | N85: 2007-05-01 | O85: 0.0028 | Q85: 2007-05-01 | R85: 0.001689 | S85: 2007-05-01 | T85: 0.001689 | V85: 2013-01-01 | W85: 0.0092 | X85: 2013-01-01 | Y85: 0.0092 | AF85: 2002-05-01 | AG85: 0.004573 | AH85: 0.005382 | AI85: 0.006184 | AJ85: 0.006979 | AL85: 2007-05-01 | AM85: 0.0026 | AO85: 2007-05-01 | AP85: 0.002466 | AQ85: 0.003273 | AR85: 0.004074 | AS85: 0.004867 | AU85: 85 | BM85: 77 | BN85: BY | BR85: 2002-05-01 | BS85: 0.005 | BT85: 2002-05-01 | BU85: 0.005 | BW85: 2002-05-01 | BX85: 0.0141 | BY85: 2002-05-01 | BZ85: 2002-05-01 | CA85: 0.0141 | CC85: 2002-05-01 | CD85: 2002-05-01 | CH85: 0.0141 | CI85: 0.0141 | CJ85: 2.0958 | CX85: 2007-05-01 | CY85: 0.0026 | DA85: 2007-05-01 | DB85: 0.006697445
B86: 2006-06-01 | C86: 350 | D86: 2006-06-01 | E86: 350 | G86: 2007-06-01 | H86: 0.0029 | I86: 2007-06-01 | J86: 0.0029 | L86: 2007-06-01 | M86: 0.0028 | N86: 2007-06-01 | O86: 0.0028 | Q86: 2007-06-01 | R86: 0.000954 | S86: 2007-06-01 | T86: 0.000954 | V86: 2013-02-01 | W86: 0.0052 | X86: 2013-02-01 | Y86: 0.0052 | AF86: 2002-06-01 | AG86: 0.004052 | AH86: 0.00486 | AI86: 0.005662 | AJ86: 0.006457 | AL86: 2007-06-01 | AM86: 0.0029 | AO86: 2007-06-01 | AP86: 0.002466 | AQ86: 0.003273 | AR86: 0.004074 | AS86: 0.004867 | AU86: 86 | BM86: 78 | BN86: BZ | BR86: 2002-06-01 | BS86: 0.005 | BT86: 2002-06-01 | BU86: 0.005 | BW86: 2002-06-01 | BX86: 0.0133 | BY86: 2002-06-01 | BZ86: 2002-06-01 | CA86: 0.0133 | CC86: 2002-06-01 | CD86: 2002-06-01 | CH86: 0.0133 | CI86: 0.0133 | CJ86: 2.0825 | CX86: 2007-06-01 | CY86: 0.0029 | DA86: 2007-06-01 | DB86: 0.00595877
B87: 2006-07-01 | C87: 350 | D87: 2006-07-01 | E87: 350 | G87: 2007-07-01 | H87: 0.0024 | I87: 2007-07-01 | J87: 0.0024 | L87: 2007-07-01 | M87: 0.0024 | N87: 2007-07-01 | O87: 0.0024 | Q87: 2007-07-01 | R87: 0.001469 | S87: 2007-07-01 | T87: 0.001469 | V87: 2013-03-01 | W87: 0.006 | X87: 2013-03-01 | Y87: 0.006 | AF87: 2002-07-01 | AG87: 0.005128 | AH87: 0.005938 | AI87: 0.00674 | AJ87: 0.007536 | AL87: 2007-07-01 | AM87: 0.0024 | AO87: 2007-07-01 | AP87: 0.002466 | AQ87: 0.003273 | AR87: 0.004074 | AS87: 0.004867 | AU87: 87 | BM87: 79 | BR87: 2002-07-01 | BS87: 0.005 | BT87: 2002-07-01 | BU87: 0.005 | BW87: 2002-07-01 | BX87: 0.0154 | BY87: 2002-07-01 | BZ87: 2002-07-01 | CA87: 0.0154 | CC87: 2002-07-01 | CD87: 2002-07-01 | CH87: 0.0154 | CI87: 0.0154 | CJ87: 2.0671 | CX87: 2007-07-01 | CY87: 0.0024 | DA87: 2007-07-01 | DB87: 0.006476345
B88: 2006-08-01 | C88: 350 | D88: 2006-08-01 | E88: 350 | G88: 2007-08-01 | H88: 0.0042 | I88: 2007-08-01 | J88: 0.0042 | L88: 2007-08-01 | M88: 0.0047 | N88: 2007-08-01 | O88: 0.0047 | Q88: 2007-08-01 | R88: 0.001466 | S88: 2007-08-01 | T88: 0.001466 | V88: 2013-04-01 | W88: 0.0059 | X88: 2013-04-01 | Y88: 0.0059 | AF88: 2002-08-01 | AG88: 0.004953 | AH88: 0.005762 | AI88: 0.006565 | AJ88: 0.00736 | AL88: 2007-08-01 | AM88: 0.0042 | AO88: 2007-08-01 | AP88: 0.002466 | AQ88: 0.003273 | AR88: 0.004074 | AS88: 0.004867 | AU88: 88 | BM88: 80 | BR88: 2002-08-01 | BS88: 0.005 | BT88: 2002-08-01 | BU88: 0.005 | BW88: 2002-08-01 | BX88: 0.0144 | BY88: 2002-08-01 | BZ88: 2002-08-01 | CA88: 0.0144 | CC88: 2002-08-01 | CD88: 2002-08-01 | CH88: 0.0144 | CI88: 0.0144 | CJ88: 2.0527 | CX88: 2007-08-01 | CY88: 0.0042 | DA88: 2007-08-01 | DB88: 0.00647333
B89: 2006-09-01 | C89: 350 | D89: 2006-09-01 | E89: 350 | G89: 2007-09-01 | H89: 0.0029 | I89: 2007-09-01 | J89: 0.0029 | L89: 2007-09-01 | M89: 0.0018 | N89: 2007-09-01 | O89: 0.0018 | Q89: 2007-09-01 | R89: 0.000352 | S89: 2007-09-01 | T89: 0.000352 | V89: 2013-05-01 | W89: 0.0035 | X89: 2013-05-01 | Y89: 0.0035 | AF89: 2002-09-01 | AG89: 0.004426 | AH89: 0.005235 | AI89: 0.006037 | AJ89: 0.006832 | AL89: 2007-09-01 | AM89: 0.0029 | AO89: 2007-09-01 | AP89: 0.002466 | AQ89: 0.003273 | AR89: 0.004074 | AS89: 0.004867 | AU89: 89 | BM89: 81 | BR89: 2002-09-01 | BS89: 0.005 | BT89: 2002-09-01 | BU89: 0.005 | BW89: 2002-09-01 | BX89: 0.0138 | BY89: 2002-09-01 | BZ89: 2002-09-01 | CA89: 0.0138 | CC89: 2002-09-01 | CD89: 2002-09-01 | CH89: 0.0138 | CI89: 0.0138 | CJ89: 2.0389 | CX89: 2007-09-01 | CY89: 0.0029 | DA89: 2007-09-01 | DB89: 0.00535376
B90: 2006-10-01 | C90: 350 | D90: 2006-10-01 | E90: 350 | G90: 2007-10-01 | H90: 0.0024 | I90: 2007-10-01 | J90: 0.0024 | L90: 2007-10-01 | M90: 0.003 | N90: 2007-10-01 | O90: 0.003 | Q90: 2007-10-01 | R90: 0.001142 | S90: 2007-10-01 | T90: 0.001142 | V90: 2013-06-01 | W90: 0.0028 | X90: 2013-06-01 | Y90: 0.0028 | AF90: 2002-10-01 | AG90: 0.005241 | AH90: 0.00605 | AI90: 0.006853 | AJ90: 0.007649 | AL90: 2007-10-01 | AM90: 0.0024 | AO90: 2007-10-01 | AP90: 0.002466 | AQ90: 0.003273 | AR90: 0.004074 | AS90: 0.004867 | AU90: 90 | BM90: 82 | BR90: 2002-10-01 | BS90: 0.005 | BT90: 2002-10-01 | BU90: 0.005 | BW90: 2002-10-01 | BX90: 0.0165 | BY90: 2002-10-01 | BZ90: 2002-10-01 | CA90: 0.0165 | CC90: 2002-10-01 | CD90: 2002-10-01 | CH90: 0.0165 | CI90: 0.0165 | CJ90: 2.0224 | CX90: 2007-10-01 | CY90: 0.0024 | DA90: 2007-10-01 | DB90: 0.00614771
B91: 2006-11-01 | C91: 350 | D91: 2006-11-01 | E91: 350 | G91: 2007-11-01 | H91: 0.0023 | I91: 2007-11-01 | J91: 0.0023 | L91: 2007-11-01 | M91: 0.0038 | N91: 2007-11-01 | O91: 0.0038 | Q91: 2007-11-01 | R91: 0.00059 | S91: 2007-11-01 | T91: 0.00059 | V91: 2013-07-01 | W91: -0.0013 | X91: 2013-07-01 | Y91: -0.0013 | AF91: 2002-11-01 | AG91: 0.005116 | AH91: 0.005926 | AI91: 0.006728 | AJ91: 0.007524 | AL91: 2007-11-01 | AM91: 0.0023 | AO91: 2007-11-01 | AP91: 0.002466 | AQ91: 0.003273 | AR91: 0.004074 | AS91: 0.004867 | AU91: 91 | BR91: 2002-11-01 | BS91: 0.005 | BT91: 2002-11-01 | BU91: 0.005 | BW91: 2002-11-01 | BX91: 0.0154 | BY91: 2002-11-01 | BZ91: 2002-11-01 | CA91: 0.0154 | CC91: 2002-11-01 | CD91: 2002-11-01 | CH91: 0.0154 | CI91: 0.0154 | CJ91: 2.007 | CX91: 2007-11-01 | CY91: 0.0023 | DA91: 2007-11-01 | DB91: 0.00559295
B92: 2006-12-01 | C92: 350 | D92: 2006-12-01 | E92: 350 | G92: 2007-12-01 | H92: 0.007 | I92: 2007-12-01 | J92: 0.007 | L92: 2007-12-01 | M92: 0.0074 | N92: 2007-12-01 | O92: 0.0074 | Q92: 2007-12-01 | R92: 0.00064 | S92: 2007-12-01 | T92: 0.00064 | V92: 2013-08-01 | W92: 0.0016 | X92: 2013-08-01 | Y92: 0.0016 | AF92: 2002-12-01 | AG92: 0.006084 | AH92: 0.006894 | AI92: 0.007697 | AJ92: 0.008494 | AL92: 2007-12-01 | AM92: 0.007 | AO92: 2007-12-01 | AP92: 0.002466 | AQ92: 0.003273 | AR92: 0.004074 | AS92: 0.004867 | AU92: 92 | BR92: 2002-12-01 | BS92: 0.005 | BT92: 2002-12-01 | BU92: 0.005 | BW92: 2002-12-01 | BX92: 0.0174 | BY92: 2002-12-01 | BZ92: 2002-12-01 | CA92: 0.0174 | CC92: 2002-12-01 | CD92: 2002-12-01 | CH92: 0.0174 | CI92: 0.0174 | CJ92: 1.9896 | CX92: 2007-12-01 | CY92: 0.007 | DA92: 2007-12-01 | DB92: 0.0056432
B93: 2007-01-01 | C93: 350 | D93: 2007-01-01 | E93: 350 | G93: 2008-01-01 | H93: 0.007 | I93: 2008-01-01 | J93: 0.007 | L93: 2008-01-01 | M93: 0.0054 | N93: 2008-01-01 | O93: 0.0054 | Q93: 2008-01-01 | R93: 0.00101 | S93: 2008-01-01 | T93: 0.00101 | V93: 2013-09-01 | W93: 0.0027 | X93: 2013-09-01 | Y93: 0.0027 | AF93: 2003-01-01 | AG93: 0.007356 | AH93: 0.008167 | AI93: 0.008971 | AJ93: 0.009769 | AL93: 2008-01-01 | AM93: 0.007 | AO93: 2008-01-01 | AP93: 0.002466 | AQ93: 0.003273 | AR93: 0.004074 | AS93: 0.004867 | AU93: 93 | BR93: 2003-01-01 | BS93: 0.005 | BT93: 2003-01-01 | BU93: 0.005 | BW93: 2003-01-01 | BX93: 0.0197 | BY93: 2003-01-01 | BZ93: 2003-01-01 | CA93: 0.0197 | CC93: 2003-01-01 | CD93: 2003-01-01 | CG93: =+IF(OR(COD_JUROS<>3,CD92=""),"",1%) ->  | CH93: 0.0197 | CI93: 0.0197 | CJ93: 1.9699 | CX93: 2008-01-01 | CY93: 0.007 | DA93: 2008-01-01 | DB93: 0.00601505
B94: 2007-02-01 | C94: 350 | D94: 2007-02-01 | E94: 350 | G94: 2008-02-01 | H94: 0.0064 | I94: 2008-02-01 | J94: 0.0064 | L94: 2008-02-01 | M94: 0.0049 | N94: 2008-02-01 | O94: 0.0049 | Q94: 2008-02-01 | R94: 0.000243 | S94: 2008-02-01 | T94: 0.000243 | V94: 2013-10-01 | W94: 0.0061 | X94: 2013-10-01 | Y94: 0.0061 | AF94: 2003-02-01 | AG94: 0.006592 | AH94: 0.007403 | AI94: 0.008206 | AJ94: 0.009003 | AL94: 2008-02-01 | AM94: 0.0064 | AO94: 2008-02-01 | AP94: 0.002466 | AQ94: 0.003273 | AR94: 0.004074 | AS94: 0.004867 | AU94: 94 | BR94: 2003-02-01 | BS94: 0.005 | BT94: 2003-02-01 | BU94: 0.005 | BW94: 2003-02-01 | BX94: 0.0183 | BY94: 2003-02-01 | BZ94: 2003-02-01 | CA94: 0.0183 | CC94: 2003-02-01 | CD94: 2003-02-01 | CH94: 0.0183 | CI94: 0.0183 | CJ94: 1.9516 | CX94: 2008-02-01 | CY94: 0.0064 | DA94: 2008-02-01 | DB94: 0.005244215
B95: 2007-03-01 | C95: 350 | D95: 2007-03-01 | E95: 350 | G95: 2008-03-01 | H95: 0.0023 | I95: 2008-03-01 | J95: 0.0023 | L95: 2008-03-01 | M95: 0.0048 | N95: 2008-03-01 | O95: 0.0048 | Q95: 2008-03-01 | R95: 0.000409 | S95: 2008-03-01 | T95: 0.000409 | V95: 2013-11-01 | W95: 0.0054 | X95: 2013-11-01 | Y95: 0.0054 | AF95: 2003-03-01 | AG95: 0.006257 | AH95: 0.007068 | AI95: 0.007871 | AJ95: 0.008667 | AL95: 2008-03-01 | AM95: 0.0023 | AO95: 2008-03-01 | AP95: 0.002466 | AQ95: 0.003273 | AR95: 0.004074 | AS95: 0.004867 | AU95: 95 | BR95: 2003-03-01 | BS95: 0.005 | BT95: 2003-03-01 | BU95: 0.005 | BW95: 2003-03-01 | BX95: 0.0178 | BY95: 2003-03-01 | BZ95: 2003-03-01 | CA95: 0.0178 | CC95: 2003-03-01 | CD95: 2003-03-01 | CH95: 0.0178 | CI95: 0.0178 | CJ95: 1.9338 | CX95: 2008-03-01 | CY95: 0.0023 | DA95: 2008-03-01 | DB95: 0.005411045
B96: 2007-04-01 | C96: 380 | D96: 2007-04-01 | E96: 380 | G96: 2008-04-01 | H96: 0.0059 | I96: 2008-04-01 | J96: 0.0059 | L96: 2008-04-01 | M96: 0.0055 | N96: 2008-04-01 | O96: 0.0055 | Q96: 2008-04-01 | R96: 0.000955 | S96: 2008-04-01 | T96: 0.000955 | V96: 2013-12-01 | W96: 0.0072 | X96: 2013-12-01 | Y96: 0.0072 | AF96: 2003-04-01 | AG96: 0.00666 | AH96: 0.007471 | AI96: 0.008275 | AJ96: 0.009071 | AL96: 2008-04-01 | AM96: 0.0059 | AO96: 2008-04-01 | AP96: 0.002466 | AQ96: 0.003273 | AR96: 0.004074 | AS96: 0.004867 | AU96: 96 | BR96: 2003-04-01 | BS96: 0.005 | BT96: 2003-04-01 | BU96: 0.005 | BW96: 2003-04-01 | BX96: 0.0187 | BY96: 2003-04-01 | BZ96: 2003-04-01 | CA96: 0.0187 | CC96: 2003-04-01 | CD96: 2003-04-01 | CH96: 0.0187 | CI96: 0.0187 | CJ96: 1.9151 | CX96: 2008-04-01 | CY96: 0.0059 | DA96: 2008-04-01 | DB96: 0.005959775
B97: 2007-05-01 | C97: 380 | D97: 2007-05-01 | E97: 380 | G97: 2008-05-01 | H97: 0.0056 | I97: 2008-05-01 | J97: 0.0056 | L97: 2008-05-01 | M97: 0.0079 | N97: 2008-05-01 | O97: 0.0079 | Q97: 2008-05-01 | R97: 0.000736 | S97: 2008-05-01 | T97: 0.000736 | V97: 2014-01-01 | W97: 0.0063 | X97: 2014-01-01 | Y97: 0.0063 | AF97: 2003-05-01 | AG97: 0.007127 | AH97: 0.007938 | AI97: 0.008743 | AJ97: 0.00954 | AL97: 2008-05-01 | AM97: 0.0056 | AO97: 2008-05-01 | AP97: 0.002466 | AQ97: 0.003273 | AR97: 0.004074 | AS97: 0.004867 | AU97: 97 | BR97: 2003-05-01 | BS97: 0.005 | BT97: 2003-05-01 | BU97: 0.005 | BW97: 2003-05-01 | BX97: 0.0197 | BY97: 2003-05-01 | BZ97: 2003-05-01 | CA97: 0.0197 | CC97: 2003-05-01 | CD97: 2003-05-01 | CH97: 0.0197 | CI97: 0.0197 | CJ97: 1.8954 | CX97: 2008-05-01 | CY97: 0.0056 | DA97: 2008-05-01 | DB97: 0.00573968
B98: 2007-06-01 | C98: 380 | D98: 2007-06-01 | E98: 380 | G98: 2008-06-01 | H98: 0.009 | I98: 2008-06-01 | J98: 0.009 | L98: 2008-06-01 | M98: 0.0074 | N98: 2008-06-01 | O98: 0.0074 | Q98: 2008-06-01 | R98: 0.001146 | S98: 2008-06-01 | T98: 0.001146 | V98: 2014-02-01 | W98: 0.0064 | X98: 2014-02-01 | Y98: 0.0064 | AF98: 2003-06-01 | AG98: 0.006642 | AH98: 0.007453 | AI98: 0.008257 | AJ98: 0.009053 | AL98: 2008-06-01 | AM98: 0.009 | AO98: 2008-06-01 | AP98: 0.002466 | AQ98: 0.003273 | AR98: 0.004074 | AS98: 0.004867 | AU98: 98 | BR98: 2003-06-01 | BS98: 0.005 | BT98: 2003-06-01 | BU98: 0.005 | BW98: 2003-06-01 | BX98: 0.0186 | BY98: 2003-06-01 | BZ98: 2003-06-01 | CA98: 0.0186 | CC98: 2003-06-01 | CD98: 2003-06-01 | CH98: 0.0186 | CI98: 0.0186 | CJ98: 1.8768 | CX98: 2008-06-01 | CY98: 0.009 | DA98: 2008-06-01 | DB98: 0.00615173
B99: 2007-07-01 | C99: 380 | D99: 2007-07-01 | E99: 380 | G99: 2008-07-01 | H99: 0.0063 | I99: 2008-07-01 | J99: 0.0063 | L99: 2008-07-01 | M99: 0.0053 | N99: 2008-07-01 | O99: 0.0053 | Q99: 2008-07-01 | R99: 0.001914 | S99: 2008-07-01 | T99: 0.001914 | V99: 2014-03-01 | W99: 0.0082 | X99: 2014-03-01 | Y99: 0.0082 | AF99: 2003-07-01 | AG99: 0.007944 | AH99: 0.008756 | AI99: 0.009561 | AJ99: 0.010359 | AL99: 2008-07-01 | AM99: 0.0063 | AO99: 2008-07-01 | AP99: 0.002466 | AQ99: 0.003273 | AR99: 0.004074 | AS99: 0.004867 | AU99: 99 | BR99: 2003-07-01 | BS99: 0.005 | BT99: 2003-07-01 | BU99: 0.005 | BW99: 2003-07-01 | BX99: 0.0208 | BY99: 2003-07-01 | BZ99: 2003-07-01 | CA99: 0.0208 | CC99: 2003-07-01 | CD99: 2003-07-01 | CH99: 0.0208 | CI99: 0.0208 | CJ99: 1.856 | CX99: 2008-07-01 | CY99: 0.0063 | DA99: 2008-07-01 | DB99: 0.00692357
B100: 2007-08-01 | C100: 380 | D100: 2007-08-01 | E100: 380 | G100: 2008-08-01 | H100: 0.0035 | I100: 2008-08-01 | J100: 0.0035 | L100: 2008-08-01 | M100: 0.0028 | N100: 2008-08-01 | O100: 0.0028 | Q100: 2008-08-01 | R100: 0.001574 | S100: 2008-08-01 | T100: 0.001574 | V100: 2014-04-01 | W100: 0.0078 | X100: 2014-04-01 | Y100: 0.0078 | AF100: 2003-08-01 | AG100: 0.006514 | AH100: 0.007324 | AI100: 0.008128 | AJ100: 0.008925 | AL100: 2008-08-01 | AM100: 0.0035 | AO100: 2008-08-01 | AP100: 0.002466 | AQ100: 0.003273 | AR100: 0.004074 | AS100: 0.004867 | AU100: 100 | BR100: 2003-08-01 | BS100: 0.005 | BT100: 2003-08-01 | BU100: 0.005 | BW100: 2003-08-01 | BX100: 0.0177 | BY100: 2003-08-01 | BZ100: 2003-08-01 | CA100: 0.0177 | CC100: 2003-08-01 | CD100: 2003-08-01 | CH100: 0.0177 | CI100: 0.0177 | CJ100: 1.8383 | CX100: 2008-08-01 | CY100: 0.0035 | DA100: 2008-08-01 | DB100: 0.00658187
B101: 2007-09-01 | C101: 380 | D101: 2007-09-01 | E101: 380 | G101: 2008-09-01 | H101: 0.0026 | I101: 2008-09-01 | J101: 0.0026 | L101: 2008-09-01 | M101: 0.0026 | N101: 2008-09-01 | O101: 0.0026 | Q101: 2008-09-01 | R101: 0.00197 | S101: 2008-09-01 | T101: 0.00197 | V101: 2014-05-01 | W101: 0.006 | X101: 2014-05-01 | Y101: 0.006 | AF101: 2003-09-01 | AG101: 0.005838 | AH101: 0.006648 | AI101: 0.007451 | AJ101: 0.008247 | AL101: 2008-09-01 | AM101: 0.0026 | AO101: 2008-09-01 | AP101: 0.002466 | AQ101: 0.003273 | AR101: 0.004074 | AS101: 0.004867 | AU101: 101 | BR101: 2003-09-01 | BS101: 0.005 | BT101: 2003-09-01 | BU101: 0.005 | BW101: 2003-09-01 | BX101: 0.0168 | BY101: 2003-09-01 | BZ101: 2003-09-01 | CA101: 0.0168 | CC101: 2003-09-01 | CD101: 2003-09-01 | CH101: 0.0168 | CI101: 0.0168 | CJ101: 1.8215 | CX101: 2008-09-01 | CY101: 0.0026 | DA101: 2008-09-01 | DB101: 0.00697985
B102: 2007-10-01 | C102: 380 | D102: 2007-10-01 | E102: 380 | G102: 2008-10-01 | H102: 0.003 | I102: 2008-10-01 | J102: 0.003 | L102: 2008-10-01 | M102: 0.0045 | N102: 2008-10-01 | O102: 0.0045 | Q102: 2008-10-01 | R102: 0.002506 | S102: 2008-10-01 | T102: 0.002506 | V102: 2014-06-01 | W102: 0.0026 | X102: 2014-06-01 | Y102: 0.0026 | AF102: 2003-10-01 | AG102: 0.005687 | AH102: 0.006497 | AI102: 0.0073 | AJ102: 0.008096 | AL102: 2008-10-01 | AM102: 0.003 | AO102: 2008-10-01 | AP102: 0.002466 | AQ102: 0.003273 | AR102: 0.004074 | AS102: 0.004867 | AU102: 102 | BR102: 2003-10-01 | BS102: 0.005 | BT102: 2003-10-01 | BU102: 0.005 | BW102: 2003-10-01 | BX102: 0.0164 | BY102: 2003-10-01 | BZ102: 2003-10-01 | CA102: 0.0164 | CC102: 2003-10-01 | CD102: 2003-10-01 | CH102: 0.0164 | CI102: 0.0164 | CJ102: 1.8051 | CX102: 2008-10-01 | CY102: 0.003 | DA102: 2008-10-01 | DB102: 0.00751853
B103: 2007-11-01 | C103: 380 | D103: 2007-11-01 | E103: 380 | G103: 2008-11-01 | H103: 0.0049 | I103: 2008-11-01 | J103: 0.0049 | L103: 2008-11-01 | M103: 0.0036 | N103: 2008-11-01 | O103: 0.0036 | Q103: 2008-11-01 | R103: 0.001618 | S103: 2008-11-01 | T103: 0.001618 | V103: 2014-07-01 | W103: 0.0013 | X103: 2014-07-01 | Y103: 0.0013 | AF103: 2003-11-01 | AG103: 0.004246 | AH103: 0.005055 | AI103: 0.005857 | AJ103: 0.006652 | AL103: 2008-11-01 | AM103: 0.0049 | AO103: 2008-11-01 | AP103: 0.002466 | AQ103: 0.003273 | AR103: 0.004074 | AS103: 0.004867 | AU103: 103 | BR103: 2003-11-01 | BS103: 0.005 | BT103: 2003-11-01 | BU103: 0.005 | BW103: 2003-11-01 | BX103: 0.0134 | BY103: 2003-11-01 | BZ103: 2003-11-01 | CA103: 0.0134 | CC103: 2003-11-01 | CD103: 2003-11-01 | CH103: 0.0134 | CI103: 0.0134 | CJ103: 1.7917 | CX103: 2008-11-01 | CY103: 0.0049 | DA103: 2008-11-01 | DB103: 0.00662609
B104: 2007-12-01 | C104: 380 | D104: 2007-12-01 | E104: 380 | G104: 2008-12-01 | H104: 0.0029 | I104: 2008-12-01 | J104: 0.0029 | L104: 2008-12-01 | M104: 0.0028 | N104: 2008-12-01 | O104: 0.0028 | Q104: 2008-12-01 | R104: 0.002149 | S104: 2008-12-01 | T104: 0.002149 | V104: 2014-08-01 | W104: 0.0018 | X104: 2014-08-01 | Y104: 0.0018 | AF104: 2003-12-01 | AG104: 0.004369 | AH104: 0.005178 | AI104: 0.00598 | AJ104: 0.006775 | AL104: 2008-12-01 | AM104: 0.0029 | AO104: 2008-12-01 | AP104: 0.002466 | AQ104: 0.003273 | AR104: 0.004074 | AS104: 0.004867 | AU104: 104 | BR104: 2003-12-01 | BS104: 0.005 | BT104: 2003-12-01 | BU104: 0.005 | BW104: 2003-12-01 | BX104: 0.0137 | BY104: 2003-12-01 | BZ104: 2003-12-01 | CA104: 0.0137 | CC104: 2003-12-01 | CD104: 2003-12-01 | CH104: 0.0137 | CI104: 0.0137 | CJ104: 1.778 | CX104: 2008-12-01 | CY104: 0.0029 | DA104: 2008-12-01 | DB104: 0.007159745
B105: 2008-01-01 | C105: 380 | D105: 2008-01-01 | E105: 380 | G105: 2009-01-01 | H105: 0.004 | I105: 2009-01-01 | J105: 0.004 | L105: 2009-01-01 | M105: 0.0048 | N105: 2009-01-01 | O105: 0.0048 | Q105: 2009-01-01 | R105: 0.00184 | S105: 2009-01-01 | T105: 0.00184 | V105: 2014-09-01 | W105: 0.0049 | X105: 2014-09-01 | Y105: 0.0049 | AF105: 2004-01-01 | AG105: 0.003749 | AH105: 0.004557 | AI105: 0.005359 | AJ105: 0.006153 | AL105: =+I105 -> 2009-01-01 | AM105: =+J105 -> 0.004 | AO105: 2009-01-01 | AP105: 0.002466 | AQ105: 0.003273 | AR105: 0.004074 | AS105: 0.004867 | AU105: 105 | BR105: 2004-01-01 | BS105: 0.005 | BT105: 2004-01-01 | BU105: 0.005 | BW105: 2004-01-01 | BX105: 0.0127 | BY105: 2004-01-01 | BZ105: 2004-01-01 | CA105: 0.0127 | CC105: 2004-01-01 | CD105: 2004-01-01 | CH105: 0.0127 | CI105: 0.0127 | CJ105: 1.7653 | CX105: =+I105 -> 2009-01-01 | CY105: =+J105 -> 0.004 | DA105: 2009-01-01 | DB105: 0.0068492
B106: 2008-02-01 | C106: 380 | D106: 2008-02-01 | E106: 380 | G106: 2009-02-01 | H106: 0.0063 | I106: 2009-02-01 | J106: 0.0063 | L106: 2009-02-01 | M106: 0.0055 | N106: 2009-02-01 | O106: 0.0055 | Q106: 2009-02-01 | R106: 0.000451 | S106: 2009-02-01 | T106: 0.000451 | V106: 2014-10-01 | W106: 0.0038 | X106: 2014-10-01 | Y106: 0.0038 | AF106: 2004-02-01 | AG106: 0.002925 | AH106: 0.003733 | AI106: 0.004533 | AJ106: 0.005327 | AL106: 2009-02-01 | AM106: 0.0063 | AO106: 2009-02-01 | AP106: 0.002466 | AQ106: 0.003273 | AR106: 0.004074 | AS106: 0.004867 | AU106: 106 | BR106: 2004-02-01 | BS106: 0.005 | BT106: 2004-02-01 | BU106: 0.005 | BW106: 2004-02-01 | BX106: 0.0108 | BY106: 2004-02-01 | BZ106: 2004-02-01 | CA106: 0.0108 | CC106: 2004-02-01 | CD106: 2004-02-01 | CH106: 0.0108 | CI106: 0.0108 | CJ106: 1.7545 | CX106: 2009-02-01 | CY106: 0.0063 | DA106: 2009-02-01 | DB106: 0.005453255
B107: 2008-03-01 | C107: 415 | D107: 2008-03-01 | E107: 415 | G107: 2009-03-01 | H107: 0.0011 | I107: 2009-03-01 | J107: 0.0011 | L107: 2009-03-01 | M107: 0.002 | N107: 2009-03-01 | O107: 0.002 | Q107: 2009-03-01 | R107: 0.001438 | S107: 2009-03-01 | T107: 0.001438 | V107: 2014-11-01 | W107: 0.0053 | X107: 2014-11-01 | Y107: 0.0053 | AF107: 2004-03-01 | AG107: 0.004248 | AH107: 0.005057 | AI107: 0.005859 | AJ107: 0.006654 | AL107: 2009-03-01 | AM107: 0.0011 | AO107: 2009-03-01 | AP107: 0.002466 | AQ107: 0.003273 | AR107: 0.004074 | AS107: 0.004867 | AU107: 107 | BR107: 2004-03-01 | BS107: 0.005 | BT107: 2004-03-01 | BU107: 0.005 | BW107: 2004-03-01 | BX107: 0.0138 | BY107: 2004-03-01 | BZ107: 2004-03-01 | CA107: 0.0138 | CC107: 2004-03-01 | CD107: 2004-03-01 | CH107: 0.0138 | CI107: 0.0138 | CJ107: 1.7407 | CX107: 2009-03-01 | CY107: 0.0011 | DA107: 2009-03-01 | DB107: 0.00644519
B108: 2008-04-01 | C108: 415 | D108: 2008-04-01 | E108: 415 | G108: 2009-04-01 | H108: 0.0036 | I108: 2009-04-01 | J108: 0.0036 | L108: 2009-04-01 | M108: 0.0048 | N108: 2009-04-01 | O108: 0.0048 | Q108: 2009-04-01 | R108: 0.000454 | S108: 2009-04-01 | T108: 0.000454 | V108: 2014-12-01 | W108: 0.0062 | X108: 2014-12-01 | Y108: 0.0062 | AF108: 2004-04-01 | AG108: 0.003342 | AH108: 0.00415 | AI108: 0.004951 | AJ108: 0.005745 | AL108: 2009-04-01 | AM108: 0.0036 | AO108: 2009-04-01 | AP108: 0.002466 | AQ108: 0.003273 | AR108: 0.004074 | AS108: 0.004867 | AU108: 108 | BR108: 2004-04-01 | BS108: 0.005 | BT108: 2004-04-01 | BU108: 0.005 | BW108: 2004-04-01 | BX108: 0.0118 | BY108: 2004-04-01 | BZ108: 2004-04-01 | CA108: 0.0118 | CC108: 2004-04-01 | CD108: 2004-04-01 | CH108: 0.0118 | CI108: 0.0118 | CJ108: 1.7289 | CX108: 2009-04-01 | CY108: 0.0036 | DA108: 2009-04-01 | DB108: 0.00545627
B109: 2008-05-01 | C109: 415 | D109: 2008-05-01 | E109: 415 | G109: 2009-05-01 | H109: 0.0059 | I109: 2009-05-01 | J109: 0.0059 | L109: 2009-05-01 | M109: 0.0047 | N109: 2009-05-01 | O109: 0.0047 | Q109: 2009-05-01 | R109: 0.000449 | S109: 2009-05-01 | T109: 0.000449 | V109: 2015-01-01 | W109: 0.0148 | X109: 2015-01-01 | Y109: 0.0148 | AF109: 2004-05-01 | AG109: 0.004016 | AH109: 0.004824 | AI109: 0.005626 | AJ109: 0.006421 | AL109: 2009-05-01 | AM109: 0.0059 | AO109: 2009-05-01 | AP109: 0.002466 | AQ109: 0.003273 | AR109: 0.004074 | AS109: 0.004867 | AU109: 109 | BR109: 2004-05-01 | BS109: 0.005 | BT109: 2004-05-01 | BU109: 0.005 | BW109: 2004-05-01 | BX109: 0.0123 | BY109: 2004-05-01 | BZ109: 2004-05-01 | CA109: 0.0123 | CC109: 2004-05-01 | CD109: 2004-05-01 | CH109: 0.0123 | CI109: 0.0123 | CJ109: 1.7166 | CX109: 2009-05-01 | CY109: 0.0059 | DA109: 2009-05-01 | DB109: 0.005451245
B110: 2008-06-01 | C110: 415 | D110: 2008-06-01 | E110: 415 | G110: 2009-06-01 | H110: 0.0038 | I110: 2009-06-01 | J110: 0.0038 | L110: 2009-06-01 | M110: 0.0036 | N110: 2009-06-01 | O110: 0.0036 | Q110: 2009-06-01 | R110: 0.000656 | S110: 2009-06-01 | T110: 0.000656 | V110: 2015-02-01 | W110: 0.0116 | X110: 2015-02-01 | Y110: 0.0116 | AF110: 2004-06-01 | AG110: 0.004231 | AH110: 0.00504 | AI110: 0.005842 | AJ110: 0.006637 | AL110: 2009-06-01 | AM110: 0.0038 | AO110: 2009-06-01 | AP110: 0.002466 | AQ110: 0.003273 | AR110: 0.004074 | AS110: 0.004867 | AU110: 110 | BR110: 2004-06-01 | BS110: 0.005 | BT110: 2004-06-01 | BU110: 0.005 | BW110: 2004-06-01 | BX110: 0.0123 | BY110: 2004-06-01 | BZ110: 2004-06-01 | CA110: 0.0123 | CC110: 2004-06-01 | CD110: 2004-06-01 | CH110: 0.0123 | CI110: 0.0123 | CJ110: 1.7043 | CX110: 2009-06-01 | CY110: 0.0038 | DA110: 2009-06-01 | DB110: 0.00565928
B111: 2008-07-01 | C111: 415 | D111: 2008-07-01 | E111: 415 | G111: 2009-07-01 | H111: 0.0022 | I111: 2009-07-01 | J111: 0.0022 | L111: 2009-07-01 | M111: 0.0024 | N111: 2009-07-01 | O111: 0.0024 | Q111: 2009-07-01 | R111: 0.001051 | S111: 2009-07-01 | T111: 0.001051 | V111: 2015-03-01 | W111: 0.0151 | X111: 2015-03-01 | Y111: 0.0151 | AF111: 2004-07-01 | AG111: 0.004423 | AH111: 0.005232 | AI111: 0.006034 | AJ111: 0.006829 | AL111: =+S111 -> 2009-07-01 | AM111: =+T111 -> 0.001051 | AO111: 2009-07-01 | AP111: 0.002466 | AQ111: 0.003273 | AR111: 0.004074 | AS111: 0.004867 | AU111: 111 | BR111: 2004-07-01 | BS111: 0.005 | BT111: 2004-07-01 | BU111: 0.005 | BW111: 2004-07-01 | BX111: 0.0129 | BY111: 2004-07-01 | BZ111: 2004-07-01 | CA111: 0.0129 | CC111: 2004-07-01 | CD111: 2004-07-01 | CH111: 0.0129 | CI111: 0.0129 | CJ111: 1.6914 | CX111: =+S111 -> 2009-07-01 | CY111: =+T111 -> 0.001051 | DA111: 2009-07-01 | DB111: 0.006056255
B112: 2008-08-01 | C112: 415 | D112: 2008-08-01 | E112: 415 | G112: 2009-08-01 | H112: 0.0023 | I112: 2009-08-01 | J112: 0.0023 | L112: 2009-08-01 | M112: 0.0015 | N112: 2009-08-01 | O112: 0.0015 | Q112: 2009-08-01 | R112: 0.000197 | S112: 2009-08-01 | T112: 0.000197 | V112: 2015-04-01 | W112: 0.0071 | X112: 2015-04-01 | Y112: 0.0071 | AF112: 2004-08-01 | AG112: 0.004476 | AH112: 0.005285 | AI112: 0.006087 | AJ112: 0.006882 | AL112: 2009-08-01 | AM112: 0.000197 | AO112: 2009-08-01 | AP112: 0.002466 | AQ112: 0.003273 | AR112: 0.004074 | AS112: 0.004867 | AU112: 112 | BR112: 2004-08-01 | BS112: 0.005 | BT112: 2004-08-01 | BU112: 0.005 | BW112: 2004-08-01 | BX112: 0.0129 | BY112: 2004-08-01 | BZ112: 2004-08-01 | CA112: 0.0129 | CC112: 2004-08-01 | CD112: 2004-08-01 | CH112: 0.0129 | CI112: 0.0129 | CJ112: 1.6785 | CX112: 2009-08-01 | CY112: 0.000197 | DA112: 2009-08-01 | DB112: 0.005197985
B113: 2008-09-01 | C113: 415 | D113: 2008-09-01 | E113: 415 | G113: 2009-09-01 | H113: 0.0019 | I113: 2009-09-01 | J113: 0.0019 | L113: 2009-09-01 | M113: 0.0024 | N113: 2009-09-01 | O113: 0.0024 | Q113: 2009-09-01 | R113: 0 | S113: 2009-09-01 | T113: 0 | V113: 2015-05-01 | W113: 0.0099 | X113: 2015-05-01 | Y113: 0.0099 | AF113: 2004-09-01 | AG113: 0.004198 | AH113: 0.005007 | AI113: 0.005809 | AJ113: 0.006603 | AL113: 2009-09-01 | AM113: 0 | AO113: 2009-09-01 | AP113: 0.002466 | AQ113: 0.003273 | AR113: 0.004074 | AS113: 0.004867 | AU113: 113 | BR113: 2004-09-01 | BS113: 0.005 | BT113: 2004-09-01 | BU113: 0.005 | BW113: 2004-09-01 | BX113: 0.0125 | BY113: 2004-09-01 | BZ113: 2004-09-01 | CA113: 0.0125 | CC113: 2004-09-01 | CD113: 2004-09-01 | CH113: 0.0125 | CI113: 0.0125 | CJ113: 1.666 | CX113: 2009-09-01 | CY113: 0 | DA113: 2009-09-01 | DB113: 0.005
B114: 2008-10-01 | C114: 415 | D114: 2008-10-01 | E114: 415 | G114: 2009-10-01 | H114: 0.0018 | I114: 2009-10-01 | J114: 0.0018 | L114: 2009-10-01 | M114: 0.0028 | N114: 2009-10-01 | O114: 0.0028 | Q114: 2009-10-01 | R114: 0 | S114: 2009-10-01 | T114: 0 | V114: 2015-06-01 | W114: 0.0077 | X114: 2015-06-01 | Y114: 0.0077 | AF114: 2004-10-01 | AG114: 0.003576 | AH114: 0.004385 | AI114: 0.005186 | AJ114: 0.00598 | AL114: 2009-10-01 | AM114: 0 | AO114: 2009-10-01 | AP114: 0.002466 | AQ114: 0.003273 | AR114: 0.004074 | AS114: 0.004867 | AU114: 114 | BR114: 2004-10-01 | BS114: 0.005 | BT114: 2004-10-01 | BU114: 0.005 | BW114: 2004-10-01 | BX114: 0.0121 | BY114: 2004-10-01 | BZ114: 2004-10-01 | CA114: 0.0121 | CC114: 2004-10-01 | CD114: 2004-10-01 | CH114: 0.0121 | CI114: 0.0121 | CJ114: 1.6539 | CX114: 2009-10-01 | CY114: 0 | DA114: 2009-10-01 | DB114: 0.005
B115: 2008-11-01 | C115: 415 | D115: 2008-11-01 | E115: 415 | G115: 2009-11-01 | H115: 0.0044 | I115: 2009-11-01 | J115: 0.0044 | L115: 2009-11-01 | M115: 0.0041 | N115: 2009-11-01 | O115: 0.0041 | Q115: 2009-11-01 | R115: 0 | S115: 2009-11-01 | T115: 0 | V115: 2015-07-01 | W115: 0.0058 | X115: 2015-07-01 | Y115: 0.0058 | AF115: 2004-11-01 | AG115: 0.003615 | AH115: 0.004423 | AI115: 0.005224 | AJ115: 0.006019 | AL115: 2009-11-01 | AM115: 0 | AO115: 2009-11-01 | AP115: 0.002466 | AQ115: 0.003273 | AR115: 0.004074 | AS115: 0.004867 | AU115: 115 | BR115: 2004-11-01 | BS115: 0.005 | BT115: 2004-11-01 | BU115: 0.005 | BW115: 2004-11-01 | BX115: 0.0125 | BY115: 2004-11-01 | BZ115: 2004-11-01 | CA115: 0.0125 | CC115: 2004-11-01 | CD115: 2004-11-01 | CH115: 0.0125 | CI115: 0.0125 | CJ115: 1.6414 | CX115: 2009-11-01 | CY115: 0 | DA115: 2009-11-01 | DB115: 0.005
B116: 2008-12-01 | C116: 415 | D116: 2008-12-01 | E116: 415 | G116: 2009-12-01 | H116: 0.0038 | I116: 2009-12-01 | J116: 0.0038 | L116: 2009-12-01 | M116: 0.0037 | N116: 2009-12-01 | O116: 0.0037 | Q116: 2009-12-01 | R116: 0.000533 | S116: 2009-12-01 | T116: 0.000533 | V116: 2015-08-01 | W116: 0.0025 | X116: 2015-08-01 | Y116: 0.0025 | AF116: 2004-12-01 | AG116: 0.004872 | AH116: 0.005681 | AI116: 0.006483 | AJ116: 0.007279 | AL116: 2009-12-01 | AM116: 0.000533 | AO116: 2009-12-01 | AP116: 0.002466 | AQ116: 0.003273 | AR116: 0.004074 | AS116: 0.004867 | AU116: 116 | BR116: 2004-12-01 | BS116: 0.005 | BT116: 2004-12-01 | BU116: 0.005 | BW116: 2004-12-01 | BX116: 0.0148 | BY116: 2004-12-01 | BZ116: 2004-12-01 | CA116: 0.0148 | CC116: 2004-12-01 | CD116: 2004-12-01 | CH116: 0.0148 | CI116: 0.0148 | CJ116: 1.6266 | CX116: 2009-12-01 | CY116: 0.000533 | DA116: 2009-12-01 | DB116: 0.005535665
B117: 2009-01-01 | C117: 415 | D117: 2009-01-01 | E117: 415 | G117: 2010-01-01 | H117: 0.0052 | I117: 2010-01-01 | J117: 0.0052 | L117: 2010-01-01 | M117: 0.0075 | N117: 2010-01-01 | O117: 0.0075 | Q117: 2010-01-01 | R117: 0 | S117: 2010-01-01 | T117: 0 | V117: 2015-09-01 | W117: 0.0051 | X117: 2015-09-01 | Y117: 0.0051 | AF117: 2005-01-01 | AG117: 0.00435 | AH117: 0.005159 | AI117: 0.005961 | AJ117: 0.006756 | AL117: 2010-01-01 | AM117: 0 | AO117: 2010-01-01 | AP117: 0.002466 | AQ117: 0.003273 | AR117: 0.004074 | AS117: 0.004867 | AU117: 117 | BR117: 2005-01-01 | BS117: 0.005 | BT117: 2005-01-01 | BU117: 0.005 | BW117: 2005-01-01 | BX117: 0.0138 | BY117: 2005-01-01 | BZ117: 2005-01-01 | CA117: 0.0138 | CC117: 2005-01-01 | CD117: 2005-01-01 | CH117: 0.0138 | CI117: 0.0138 | CJ117: 1.6128 | CX117: 2010-01-01 | CY117: 0 | DA117: 2010-01-01 | DB117: 0.005
B118: 2009-02-01 | C118: 465 | D118: 2009-02-01 | E118: 465 | G118: 2010-02-01 | H118: 0.0094 | I118: 2010-02-01 | J118: 0.0094 | L118: 2010-02-01 | M118: 0.0078 | N118: 2010-02-01 | O118: 0.0078 | Q118: 2010-02-01 | R118: 0 | S118: 2010-02-01 | T118: 0 | V118: 2015-10-01 | W118: 0.0077 | X118: 2015-10-01 | Y118: 0.0077 | AF118: 2005-02-01 | AG118: 0.00343 | AH118: 0.004238 | AI118: 0.00504 | AJ118: 0.005834 | AL118: 2010-02-01 | AM118: 0 | AO118: 2010-02-01 | AP118: 0.002466 | AQ118: 0.003273 | AR118: 0.004074 | AS118: 0.004867 | AU118: 118 | BR118: 2005-02-01 | BS118: 0.005 | BT118: 2005-02-01 | BU118: 0.005 | BW118: 2005-02-01 | BX118: 0.0122 | BY118: 2005-02-01 | BZ118: 2005-02-01 | CA118: 0.0122 | CC118: 2005-02-01 | CD118: 2005-02-01 | CH118: 0.0122 | CI118: 0.0122 | CJ118: 1.6006 | CX118: 2010-02-01 | CY118: 0 | DA118: 2010-02-01 | DB118: 0.005
B119: 2009-03-01 | C119: 465 | D119: 2009-03-01 | E119: 465 | G119: 2010-03-01 | H119: 0.0055 | I119: 2010-03-01 | J119: 0.0055 | L119: 2010-03-01 | M119: 0.0052 | N119: 2010-03-01 | O119: 0.0052 | Q119: 2010-03-01 | R119: 0.000792 | S119: 2010-03-01 | T119: 0.000792 | V119: 2015-11-01 | W119: 0.0111 | X119: 2015-11-01 | Y119: 0.0111 | AF119: 2005-03-01 | AG119: 0.005107 | AH119: 0.005917 | AI119: 0.006719 | AJ119: 0.007515 | AL119: 2010-03-01 | AM119: 0.000792 | AO119: 2010-03-01 | AP119: 0.002466 | AQ119: 0.003273 | AR119: 0.004074 | AS119: 0.004867 | AU119: 119 | BR119: 2005-03-01 | BS119: 0.005 | BT119: 2005-03-01 | BU119: 0.005 | BW119: 2005-03-01 | BX119: 0.0153 | BY119: 2005-03-01 | BZ119: 2005-03-01 | CA119: 0.0153 | CC119: 2005-03-01 | CD119: 2005-03-01 | CH119: 0.0153 | CI119: 0.0153 | CJ119: 1.5853 | CX119: 2010-03-01 | CY119: 0.000792 | DA119: 2010-03-01 | DB119: 0.00579596
B120: 2009-04-01 | C120: 465 | D120: 2009-04-01 | E120: 465 | G120: 2010-04-01 | H120: 0.0048 | I120: 2010-04-01 | J120: 0.0048 | L120: 2010-04-01 | M120: 0.0057 | N120: 2010-04-01 | O120: 0.0057 | Q120: 2010-04-01 | R120: 0 | S120: 2010-04-01 | T120: 0 | V120: 2015-12-01 | W120: 0.009 | X120: 2015-12-01 | Y120: 0.009 | AF120: 2005-04-01 | AG120: 0.004474 | AH120: 0.005283 | AI120: 0.006085 | AJ120: 0.00688 | AL120: 2010-04-01 | AM120: 0 | AO120: 2010-04-01 | AP120: 0.002466 | AQ120: 0.003273 | AR120: 0.004074 | AS120: 0.004867 | AU120: 120 | BR120: 2005-04-01 | BS120: 0.005 | BT120: 2005-04-01 | BU120: 0.005 | BW120: 2005-04-01 | BX120: 0.0141 | BY120: 2005-04-01 | BZ120: 2005-04-01 | CA120: 0.0141 | CC120: 2005-04-01 | CD120: 2005-04-01 | CH120: 0.0141 | CI120: 0.0141 | CJ120: 1.5712 | CX120: 2010-04-01 | CY120: 0 | DA120: 2010-04-01 | DB120: 0.005
B121: 2009-05-01 | C121: 465 | D121: 2009-05-01 | E121: 465 | G121: 2010-05-01 | H121: 0.0063 | I121: 2010-05-01 | J121: 0.0063 | L121: 2010-05-01 | M121: 0.0043 | N121: 2010-05-01 | O121: 0.0043 | Q121: 2010-05-01 | R121: 0.00051 | S121: 2010-05-01 | T121: 0.00051 | V121: 2016-01-01 | W121: 0.0151 | X121: 2016-01-01 | Y121: 0.0151 | AF121: 2005-05-01 | AG121: 0.004999 | AH121: 0.005809 | AI121: 0.006611 | AJ121: 0.007406 | AL121: 2010-05-01 | AM121: 0.00051 | AO121: 2010-05-01 | AP121: 0.002466 | AQ121: 0.003273 | AR121: 0.004074 | AS121: 0.004867 | AU121: 121 | BR121: 2005-05-01 | BS121: 0.005 | BT121: 2005-05-01 | BU121: 0.005 | BW121: 2005-05-01 | BX121: 0.015 | BY121: 2005-05-01 | BZ121: 2005-05-01 | CA121: 0.015 | CC121: 2005-05-01 | CD121: 2005-05-01 | CH121: 0.015 | CI121: 0.015 | CJ121: 1.5562 | CX121: 2010-05-01 | CY121: 0.00051 | DA121: 2010-05-01 | DB121: 0.00551255
B122: 2009-06-01 | C122: 465 | D122: 2009-06-01 | E122: 465 | G122: 2010-06-01 | H122: 0.0019 | I122: 2010-06-01 | J122: 0.0019 | L122: 2010-06-01 | M122: 0 | N122: 2010-06-01 | O122: 0 | Q122: 2010-06-01 | R122: 0.000589 | S122: 2010-06-01 | T122: 0.000589 | V122: 2016-02-01 | W122: 0.0095 | X122: 2016-02-01 | Y122: 0.0095 | AF122: 2005-06-01 | AG122: 0.005466 | AH122: 0.006276 | AI122: 0.007079 | AJ122: 0.007875 | AL122: 2010-06-01 | AM122: 0.000589 | AO122: 2010-06-01 | AP122: 0.002466 | AQ122: 0.003273 | AR122: 0.004074 | AS122: 0.004867 | AU122: 122 | BR122: 2005-06-01 | BS122: 0.005 | BT122: 2005-06-01 | BU122: 0.005 | BW122: 2005-06-01 | BX122: 0.0159 | BY122: 2005-06-01 | BZ122: 2005-06-01 | CA122: 0.0159 | CC122: 2005-06-01 | CD122: 2005-06-01 | CH122: 0.0159 | CI122: 0.0159 | CJ122: 1.5403 | CX122: 2010-06-01 | CY122: 0.000589 | DA122: 2010-06-01 | DB122: 0.005591945
B123: 2009-07-01 | C123: 465 | D123: 2009-07-01 | E123: 465 | G123: 2010-07-01 | H123: -0.0009 | I123: 2010-07-01 | J123: -0.0009 | L123: 2010-07-01 | M123: 0.0001 | N123: 2010-07-01 | O123: 0.0001 | Q123: 2010-07-01 | R123: 0.001151 | S123: 2010-07-01 | T123: 0.001151 | V123: 2016-03-01 | W123: 0.0044 | X123: 2016-03-01 | Y123: 0.0044 | AF123: 2005-07-01 | AG123: 0.005047 | AH123: 0.005857 | AI123: 0.006659 | AJ123: 0.007455 | AL123: 2010-07-01 | AM123: 0.001151 | AO123: 2010-07-01 | AP123: 0.002466 | AQ123: 0.003273 | AR123: 0.004074 | AS123: 0.004867 | AU123: 123 | BR123: 2005-07-01 | BS123: 0.005 | BT123: 2005-07-01 | BU123: 0.005 | BW123: 2005-07-01 | BX123: 0.0151 | BY123: 2005-07-01 | BZ123: 2005-07-01 | CA123: 0.0151 | CC123: 2005-07-01 | CD123: 2005-07-01 | CH123: 0.0151 | CI123: 0.0151 | CJ123: 1.5252 | CX123: 2010-07-01 | CY123: 0.001151 | DA123: 2010-07-01 | DB123: 0.006156755
B124: 2009-08-01 | C124: 465 | D124: 2009-08-01 | E124: 465 | G124: 2010-08-01 | H124: -0.0005 | I124: 2010-08-01 | J124: -0.0005 | L124: 2010-08-01 | M124: 0.0004 | N124: 2010-08-01 | O124: 0.0004 | Q124: 2010-08-01 | R124: 0.000909 | S124: 2010-08-01 | T124: 0.000909 | V124: 2016-04-01 | W124: 0.0064 | X124: 2016-04-01 | Y124: 0.0064 | AF124: 2005-08-01 | AG124: 0.00594 | AH124: 0.006751 | AI124: 0.007554 | AJ124: 0.00835 | AL124: 2010-08-01 | AM124: 0.000909 | AO124: 2010-08-01 | AP124: 0.002466 | AQ124: 0.003273 | AR124: 0.004074 | AS124: 0.004867 | AU124: 124 | BR124: 2005-08-01 | BS124: 0.005 | BT124: 2005-08-01 | BU124: 0.005 | BW124: 2005-08-01 | BX124: 0.0166 | BY124: 2005-08-01 | BZ124: 2005-08-01 | CA124: 0.0166 | CC124: 2005-08-01 | CD124: 2005-08-01 | CH124: 0.0166 | CI124: 0.0166 | CJ124: 1.5086 | CX124: 2010-08-01 | CY124: 0.000909 | DA124: 2010-08-01 | DB124: 0.005913545
B125: 2009-09-01 | C125: 465 | D125: 2009-09-01 | E125: 465 | G125: 2010-09-01 | H125: 0.0031 | I125: 2010-09-01 | J125: 0.0031 | L125: 2010-09-01 | M125: 0.0045 | N125: 2010-09-01 | O125: 0.0045 | Q125: 2010-09-01 | R125: 0.000702 | S125: 2010-09-01 | T125: 0.000702 | V125: 2016-05-01 | W125: 0.0098 | X125: 2016-05-01 | Y125: 0.0098 | AF125: 2005-09-01 | AG125: 0.005109 | AH125: 0.005919 | AI125: 0.006721 | AJ125: 0.007517 | AL125: 2010-09-01 | AM125: 0.000702 | AO125: 2010-09-01 | AP125: 0.002466 | AQ125: 0.003273 | AR125: 0.004074 | AS125: 0.004867 | AU125: 125 | BR125: 2005-09-01 | BS125: 0.005 | BT125: 2005-09-01 | BU125: 0.005 | BW125: 2005-09-01 | BX125: 0.015 | BY125: 2005-09-01 | BZ125: 2005-09-01 | CA125: 0.015 | CC125: 2005-09-01 | CD125: 2005-09-01 | CG125: =+IF(OR(COD_JUROS<>3,CD124=""),"",1%) ->  | CH125: 0.015 | CI125: 0.015 | CJ125: 1.4936 | CX125: 2010-09-01 | CY125: 0.000702 | DA125: 2010-09-01 | DB125: 0.00570551
B126: 2009-10-01 | C126: 465 | D126: 2009-10-01 | E126: 465 | G126: 2010-10-01 | H126: 0.0062 | I126: 2010-10-01 | J126: 0.0062 | L126: 2010-10-01 | M126: 0.0075 | N126: 2010-10-01 | O126: 0.0075 | Q126: 2010-10-01 | R126: 0.000472 | S126: 2010-10-01 | T126: 0.000472 | V126: 2016-06-01 | W126: 0.0047 | X126: 2016-06-01 | Y126: 0.0047 | AF126: 2005-10-01 | AG126: 0.004571 | AH126: 0.00538 | AI126: 0.006182 | AJ126: 0.006977 | AL126: 2010-10-01 | AM126: 0.000472 | AO126: 2010-10-01 | AP126: 0.002466 | AQ126: 0.003273 | AR126: 0.004074 | AS126: 0.004867 | AU126: 126 | BR126: 2005-10-01 | BS126: 0.005 | BT126: 2005-10-01 | BU126: 0.005 | BW126: 2005-10-01 | BX126: 0.0141 | BY126: 2005-10-01 | BZ126: 2005-10-01 | CA126: 0.0141 | CC126: 2005-10-01 | CD126: 2005-10-01 | CH126: 0.0141 | CI126: 0.0141 | CJ126: 1.4795 | CX126: 2010-10-01 | CY126: 0.000472 | DA126: 2010-10-01 | DB126: 0.00547436
B127: 2009-11-01 | C127: 465 | D127: 2009-11-01 | E127: 465 | G127: 2010-11-01 | H127: 0.0086 | I127: 2010-11-01 | J127: 0.0086 | L127: 2010-11-01 | M127: 0.0083 | N127: 2010-11-01 | O127: 0.0083 | Q127: 2010-11-01 | R127: 0.000336 | S127: 2010-11-01 | T127: 0.000336 | V127: 2016-07-01 | W127: 0.0064 | X127: 2016-07-01 | Y127: 0.0064 | AF127: 2005-11-01 | AG127: 0.0044 | AH127: 0.005209 | AI127: 0.00601 | AJ127: 0.006805 | AL127: 2010-11-01 | AM127: 0.000336 | AO127: 2010-11-01 | AP127: 0.002466 | AQ127: 0.003273 | AR127: 0.004074 | AS127: 0.004867 | AU127: 127 | BR127: 2005-11-01 | BS127: 0.005 | BT127: 2005-11-01 | BU127: 0.005 | BW127: 2005-11-01 | BX127: 0.0138 | BY127: 2005-11-01 | BZ127: 2005-11-01 | CA127: 0.0138 | CC127: 2005-11-01 | CD127: 2005-11-01 | CH127: 0.0138 | CI127: 0.0138 | CJ127: 1.4657 | CX127: 2010-11-01 | CY127: 0.000336 | DA127: 2010-11-01 | DB127: 0.00533768
B128: 2009-12-01 | C128: 465 | D128: 2009-12-01 | E128: 465 | G128: 2010-12-01 | H128: 0.0069 | I128: 2010-12-01 | J128: 0.0069 | L128: 2010-12-01 | M128: 0.0063 | N128: 2010-12-01 | O128: 0.0063 | Q128: 2010-12-01 | R128: 0.001406 | S128: 2010-12-01 | T128: 0.001406 | V128: 2016-08-01 | W128: 0.0031 | X128: 2016-08-01 | Y128: 0.0031 | AF128: 2005-12-01 | AG128: 0.00474 | AH128: 0.00555 | AI128: 0.006352 | AJ128: 0.007147 | AL128: 2010-12-01 | AM128: 0.001406 | AO128: 2010-12-01 | AP128: 0.002466 | AQ128: 0.003273 | AR128: 0.004074 | AS128: 0.004867 | AU128: 128 | BR128: 2005-12-01 | BS128: 0.005 | BT128: 2005-12-01 | BU128: 0.005 | BW128: 2005-12-01 | BX128: 0.0147 | BY128: 2005-12-01 | BZ128: 2005-12-01 | CA128: 0.0147 | CC128: 2005-12-01 | CD128: 2005-12-01 | CH128: 0.0147 | CI128: 0.0147 | CJ128: 1.451 | CX128: 2010-12-01 | CY128: 0.001406 | DA128: 2010-12-01 | DB128: 0.00641303
B129: 2010-01-01 | C129: 510 | D129: 2010-01-01 | E129: 510 | G129: 2011-01-01 | H129: 0.0076 | I129: 2011-01-01 | J129: 0.0076 | L129: 2011-01-01 | M129: 0.0083 | N129: 2011-01-01 | O129: 0.0083 | Q129: 2011-01-01 | R129: 0.000715 | S129: 2011-01-01 | T129: 0.000715 | V129: 2016-09-01 | W129: 0.0008 | X129: 2016-09-01 | Y129: 0.0008 | AF129: 2006-01-01 | AG129: 0.004797 | AH129: 0.005607 | AI129: 0.006409 | AJ129: 0.007204 | AL129: 2011-01-01 | AM129: 0.000715 | AO129: 2011-01-01 | AP129: 0.002466 | AQ129: 0.003273 | AR129: 0.004074 | AS129: 0.004867 | AU129: 129 | BR129: 2006-01-01 | BS129: 0.005 | BT129: 2006-01-01 | BU129: 0.005 | BW129: 2006-01-01 | BX129: 0.0143 | BY129: 2006-01-01 | BZ129: 2006-01-01 | CA129: 0.0143 | CC129: 2006-01-01 | CD129: 2006-01-01 | CH129: 0.0143 | CI129: 0.0143 | CJ129: 1.4367 | CX129: 2011-01-01 | CY129: 0.000715 | DA129: 2011-01-01 | DB129: 0.005718575
B130: 2010-02-01 | C130: 510 | D130: 2010-02-01 | E130: 510 | G130: 2011-02-01 | H130: 0.0097 | I130: 2011-02-01 | J130: 0.0097 | L130: 2011-02-01 | M130: 0.008 | N130: 2011-02-01 | O130: 0.008 | Q130: 2011-02-01 | R130: 0.000524 | S130: 2011-02-01 | T130: 0.000524 | V130: 2016-10-01 | W130: 0.0017 | X130: 2016-10-01 | Y130: 0.0017 | AF130: 2006-02-01 | AG130: 0.003193 | AH130: 0.004001 | AI130: 0.004802 | AJ130: 0.005596 | AL130: 2011-02-01 | AM130: 0.000524 | AO130: 2011-02-01 | AP130: 0.002466 | AQ130: 0.003273 | AR130: 0.004074 | AS130: 0.004867 | AU130: 130 | BR130: 2006-02-01 | BS130: 0.005 | BT130: 2006-02-01 | BU130: 0.005 | BW130: 2006-02-01 | BX130: 0.0115 | BY130: 2006-02-01 | BZ130: 2006-02-01 | CA130: 0.0115 | CC130: 2006-02-01 | CD130: 2006-02-01 | CH130: 0.0115 | CI130: 0.0115 | CJ130: 1.4252 | CX130: 2011-02-01 | CY130: 0.000524 | DA130: 2011-02-01 | DB130: 0.00552662
B131: 2010-03-01 | C131: 510 | D131: 2010-03-01 | E131: 510 | G131: 2011-03-01 | H131: 0.006 | I131: 2011-03-01 | J131: 0.006 | L131: 2011-03-01 | M131: 0.0079 | N131: 2011-03-01 | O131: 0.0079 | Q131: 2011-03-01 | R131: 0.001212 | S131: 2011-03-01 | T131: 0.001212 | V131: 2016-11-01 | W131: 0.0007 | X131: 2016-11-01 | Y131: 0.0007 | AF131: 2006-03-01 | AG131: 0.004544 | AH131: 0.005353 | AI131: 0.006155 | AJ131: 0.00695 | AL131: 2011-03-01 | AM131: 0.001212 | AO131: 2011-03-01 | AP131: 0.002466 | AQ131: 0.003273 | AR131: 0.004074 | AS131: 0.004867 | AU131: 131 | BR131: 2006-03-01 | BS131: 0.005 | BT131: 2006-03-01 | BU131: 0.005 | BW131: 2006-03-01 | BX131: 0.0142 | BY131: 2006-03-01 | BZ131: 2006-03-01 | CA131: 0.0142 | CC131: 2006-03-01 | CD131: 2006-03-01 | CH131: 0.0142 | CI131: 0.0142 | CJ131: 1.411 | CX131: 2011-03-01 | CY131: 0.001212 | DA131: 2011-03-01 | DB131: 0.00621806
B132: 2010-04-01 | C132: 510 | D132: 2010-04-01 | E132: 510 | G132: 2011-04-01 | H132: 0.0077 | I132: 2011-04-01 | J132: 0.0077 | L132: 2011-04-01 | M132: 0.0077 | N132: 2011-04-01 | O132: 0.0077 | Q132: 2011-04-01 | R132: 0.000369 | S132: 2011-04-01 | T132: 0.000369 | V132: 2016-12-01 | W132: 0.0014 | X132: 2016-12-01 | Y132: 0.0014 | AF132: 2006-04-01 | AG132: 0.003323 | AH132: 0.004131 | AI132: 0.004932 | AJ132: 0.005726 | AL132: 2011-04-01 | AM132: 0.000369 | AO132: 2011-04-01 | AP132: 0.002466 | AQ132: 0.003273 | AR132: 0.004074 | AS132: 0.004867 | AU132: 132 | BR132: 2006-04-01 | BS132: 0.005 | BT132: 2006-04-01 | BU132: 0.005 | BW132: 2006-04-01 | BX132: 0.0108 | BY132: 2006-04-01 | BZ132: 2006-04-01 | CA132: 0.0108 | CC132: 2006-04-01 | CD132: 2006-04-01 | CH132: 0.0108 | CI132: 0.0108 | CJ132: 1.4002 | CX132: 2011-04-01 | CY132: 0.000369 | DA132: 2011-04-01 | DB132: 0.005370845
B133: 2010-05-01 | C133: 510 | D133: 2010-05-01 | E133: 510 | G133: 2011-05-01 | H133: 0.007 | I133: 2011-05-01 | J133: 0.007 | L133: 2011-05-01 | M133: 0.0047 | N133: 2011-05-01 | O133: 0.0047 | Q133: 2011-05-01 | R133: 0.00157 | S133: 2011-05-01 | T133: 0.00157 | V133: 2017-01-01 | W133: 0.0042 | X133: 2017-01-01 | Y133: 0.0042 | AF133: 2006-05-01 | AG133: 0.004358 | AH133: 0.005167 | AI133: 0.005969 | AJ133: 0.006764 | AL133: 2011-05-01 | AM133: 0.00157 | AO133: 2011-05-01 | AP133: 0.002466 | AQ133: 0.003273 | AR133: 0.004074 | AS133: 0.004867 | AU133: 133 | BR133: 2006-05-01 | BS133: 0.005 | BT133: =+IF(AND(TRIM(BR133)="",TRIM(BR132)<>""),"",IF(TRIM(BR133)="","",TRUNC(BR133,0))) -> 2006-05-01 | BU133: 0.005 | BW133: 2006-05-01 | BX133: 0.0128 | BY133: 2006-05-01 | BZ133: 2006-05-01 | CA133: 0.0128 | CC133: 2006-05-01 | CD133: 2006-05-01 | CH133: 0.0128 | CI133: 0.0128 | CJ133: 1.3874 | CX133: 2011-05-01 | CY133: 0.00157 | DA133: 2011-05-01 | DB133: 0.00657785
B134: 2010-06-01 | C134: 510 | D134: 2010-06-01 | E134: 510 | G134: 2011-06-01 | H134: 0.0023 | I134: 2011-06-01 | J134: 0.0023 | L134: 2011-06-01 | M134: 0.0015 | N134: 2011-06-01 | O134: 0.0015 | Q134: 2011-06-01 | R134: 0.001114 | S134: 2011-06-01 | T134: 0.001114 | V134: 2017-02-01 | W134: 0.0024 | X134: 2017-02-01 | Y134: 0.0024 | AF134: 2006-06-01 | AG134: 0.004408 | AH134: 0.005217 | AI134: 0.006019 | AJ134: 0.006813 | AL134: 2011-06-01 | AM134: 0.001114 | AO134: 2011-06-01 | AP134: 0.002466 | AQ134: 0.003273 | AR134: 0.004074 | AS134: 0.004867 | AU134: 134 | BR134: 2006-06-01 | BS134: 0.005 | BT134: 2006-06-01 | BU134: =IF(TRIM(BS134)="","",BS134) -> 0.005 | BW134: 2006-06-01 | BX134: 0.0118 | BY134: 2006-06-01 | BZ134: 2006-06-01 | CA134: 0.0118 | CC134: =+IF(BT134="","",BT134) -> 2006-06-01 | CD134: 2006-06-01 | CH134: 0.0118 | CI134: 0.0118 | CJ134: 1.3756 | CX134: 2011-06-01 | CY134: 0.001114 | DA134: 2011-06-01 | DB134: 0.00611957
B135: 2010-07-01 | C135: 510 | D135: 2010-07-01 | E135: 510 | G135: 2011-07-01 | H135: 0.001 | I135: 2011-07-01 | J135: 0.001 | L135: 2011-07-01 | M135: 0.0016 | N135: 2011-07-01 | O135: 0.0016 | Q135: 2011-07-01 | R135: 0.001229 | S135: 2011-07-01 | T135: 0.001229 | V135: 2017-03-01 | W135: 0.0032 | X135: 2017-03-01 | Y135: 0.0032 | AF135: 2006-07-01 | AG135: 0.004221 | AH135: 0.00503 | AI135: 0.005832 | AJ135: 0.006627 | AL135: 2011-07-01 | AM135: 0.001229 | AO135: 2011-07-01 | AP135: 0.002466 | AQ135: 0.003273 | AR135: 0.004074 | AS135: 0.004867 | AU135: 135 | BR135: 2006-07-01 | BS135: 0.005 | BT135: 2006-07-01 | BU135: 0.005 | BW135: 2006-07-01 | BX135: 0.0117 | BY135: 2006-07-01 | BZ135: 2006-07-01 | CA135: 0.0117 | CC135: 2006-07-01 | CD135: 2006-07-01 | CH135: 0.0117 | CI135: 0.0117 | CJ135: 1.3639 | CX135: 2011-07-01 | CY135: 0.001229 | DA135: 2011-07-01 | DB135: 0.006235145
B136: 2010-08-01 | C136: 510 | D136: 2010-08-01 | E136: 510 | G136: 2011-08-01 | H136: 0.0027 | I136: 2011-08-01 | J136: 0.0027 | L136: 2011-08-01 | M136: 0.0037 | N136: 2011-08-01 | O136: 0.0037 | Q136: 2011-08-01 | R136: 0.002076 | S136: 2011-08-01 | T136: 0.002076 | V136: 2017-04-01 | W136: 0.0008 | X136: 2017-04-01 | Y136: 0.0008 | AF136: 2006-08-01 | AG136: 0.004908 | AH136: 0.005717 | AI136: 0.00652 | AJ136: 0.007315 | AL136: 2011-08-01 | AM136: 0.002076 | AO136: 2011-08-01 | AP136: 0.002466 | AQ136: 0.003273 | AR136: 0.004074 | AS136: 0.004867 | AU136: 136 | BR136: 2006-08-01 | BS136: 0.005 | BT136: 2006-08-01 | BU136: 0.005 | BW136: 2006-08-01 | BX136: 0.0126 | BY136: 2006-08-01 | BZ136: 2006-08-01 | CA136: 0.0126 | CC136: 2006-08-01 | CD136: 2006-08-01 | CH136: 0.0126 | CI136: 0.0126 | CJ136: 1.3513 | CX136: 2011-08-01 | CY136: 0.002076 | DA136: 2011-08-01 | DB136: 0.00708638
B137: 2010-09-01 | C137: 510 | D137: 2010-09-01 | E137: 510 | G137: 2011-09-01 | H137: 0.0053 | I137: =+IF(AND(TRIM(G137)="",TRIM(G136)<>""),EDATE(I136,1),IF(TRIM(G137)="","",TRUNC(G137,0))) -> 2011-09-01 | J137: =+IF(AND(H137="",H136<>""),0,IF(TRIM(H137)="","",H137)) -> 0.0053 | L137: 2011-09-01 | M137: 0.0053 | N137: =+IF(TRIM(L137)="","",TRUNC(L137,0)) -> 2011-09-01 | O137: 0.0053 | Q137: 2011-09-01 | R137: 0.001003 | S137: =+IF(AND(TRIM(Q137)="",TRIM(Q136)<>""),EDATE(S136,1),IF(TRIM(Q137)="","",TRUNC(Q137,0))) -> 2011-09-01 | T137: =+IF(AND(R137="",R136<>""),0,IF(TRIM(R137)="","",R137)) -> 0.001003 | V137: 2017-05-01 | W137: 0.0036 | X137: =+IF(AND(TRIM(V137)="",TRIM(V136)<>""),EDATE(X136,1),IF(TRIM(V137)="","",TRUNC(V137,0))) -> 2017-05-01 | Y137: =+IF(AND(W137="",W136<>""),0,IF(TRIM(W137)="","",W137)) -> 0.0036 | AF137: 2006-09-01 | AG137: 0.003991 | AH137: 0.004799 | AI137: 0.005601 | AJ137: 0.006395 | AL137: 2011-09-01 | AM137: 0.001003 | AO137: 2011-09-01 | AP137: 0.002466 | AQ137: 0.003273 | AR137: 0.004074 | AS137: 0.004867 | AU137: 137 | AV137: =IF(INDIRECT(CONCATENATE(VLET_DT,TEXT(AU137,"#0")))="","",INDIRECT(CONCATENATE(VLET_DT,TEXT(AU137,"#0")))) ->  | AW137: =+IF(AV137="","",IF(AV137<=VDAT_AT,AV137,"")) ->  | AX137: =IF(OR(AW137="",INDIRECT(CONCATENATE(VLET_COT,TEXT(AU137,"#0")))=""),"",IF(AW137=VDAT_AT,1+IF(COD_CM=4,0.01,0),INDIRECT(CONCATENATE(VLET_COT,TEXT(AU137,"#0"))))) ->  | AY137: =+IF(COD_CM=4,IF(AX137="","",AX137+IF(AY138="",0,AY138)),IF(OR(AV137>VDAT_AT,AV137=""),"",IF(AV137=VDAT_AT,1,IF(AY138="",1,AY138)*(1+AX137)/AZ137))) ->  | AZ137: =+IF(AW137="","",LOOKUP(AW137,COL_DAT_CORTE,COL_VAL_CORTE)) ->  | BR137: 2006-09-01 | BS137: 0.005 | BT137: 2006-09-01 | BU137: 0.005 | BW137: 2006-09-01 | BX137: 0.0106 | BY137: =+IF(AND(TRIM(BW137)="",TRIM(BW136)<>""),EDATE(BY136,1),IF(TRIM(BW137)="","",TRUNC(BW137,0))) -> 2006-09-01 | BZ137: =+IF(BY137="","",IF(BY137<=VDAT_AT,BY137,"")) -> 2006-09-01 | CA137: =+IF(BY137>VDAT_AT,"",IF(AND(BZ137<>"",BZ138=""),0.01,IF(TRIM(BX137)="","",BX137))) -> 0.0106 | CC137: 2006-09-01 | CD137: 2006-09-01 | CE137: =+IF(CC137="","",IF(COD_JUROS=1,0.5%,IF(COD_JUROS=4,1%,IF(COD_JUROS=11,0%,"")))) ->  | CF137: =+IF(OR(COD_JUROS<>2,CD137=""),"",BU137) ->  | CH137: =+IF(OR(COD_JUROS<>10,CD137=""),"",CA137) -> 0.0106 | CI137: 0.0106 | CJ137: =+IF(CI137="","",IF(CD137=VDAT_AT1,0,CI138+IF(CJ138="",0,CJ138))) -> 1.3407 | CX137: 2011-09-01 | CY137: 0.001003 | DA137: =+S137 -> 2011-09-01 | DB137: =+IF(OR(T137="",BU197=""),"",((1+T137)*(1+BU197)-1)) -> 0.006008015
B138: 2010-10-01 | C138: 510 | D138: =+IF(TRIM(B138)="","",B138) -> 2010-10-01 | E138: 510 | G138: 2011-10-01 | H138: 0.0042 | I138: 2011-10-01 | J138: 0.0042 | L138: 2011-10-01 | M138: 0.0043 | N138: 2011-10-01 | O138: =+IF(TRIM(M138)="","",M138) -> 0.0043 | Q138: 2011-10-01 | R138: 0.00062 | S138: 2011-10-01 | T138: 0.00062 | V138: 2017-06-01 | W138: -0.003 | X138: 2017-06-01 | Y138: -0.003 | AF138: 2006-10-01 | AG138: 0.004345 | AH138: 0.005154 | AI138: 0.005956 | AJ138: 0.006751 | AL138: 2011-10-01 | AM138: 0.00062 | AO138: 2011-10-01 | AP138: 0.002466 | AQ138: 0.003273 | AR138: 0.004074 | AS138: 0.004867 | AU138: 138 | BR138: 2006-10-01 | BS138: 0.005 | BT138: 2006-10-01 | BU138: 0.005 | BW138: 2006-10-01 | BX138: 0.0109 | BY138: 2006-10-01 | BZ138: 2006-10-01 | CA138: 0.0109 | CC138: 2006-10-01 | CD138: =+IF(CD137="","",IF(EDATE(CD137,1)<=VDAT_AT1,EDATE(CD137,1),"")) -> 2006-10-01 | CH138: 0.0109 | CI138: =+IF(CD138="","",SUM(CE138:CH138)) -> 0.0109 | CJ138: 1.3298 | CV138: =+IF(CU138="","",TRIM(CU138)) ->  | CX138: 2011-10-01 | CY138: 0.00062 | DA138: 2011-10-01 | DB138: 0.0056231
B139: 2010-11-01 | C139: 510 | D139: 2010-11-01 | E139: 510 | G139: 2011-11-01 | H139: 0.0046 | I139: 2011-11-01 | J139: 0.0046 | L139: 2011-11-01 | M139: 0.0052 | N139: 2011-11-01 | O139: 0.0052 | Q139: 2011-11-01 | R139: 0.000645 | S139: 2011-11-01 | T139: 0.000645 | V139: 2017-07-01 | W139: 0.0017 | X139: 2017-07-01 | Y139: 0.0017 | AF139: 2006-11-01 | AG139: 0.003751 | AH139: 0.004559 | AI139: 0.005361 | AJ139: 0.006155 | AL139: 2011-11-01 | AM139: 0.000645 | AO139: 2011-11-01 | AP139: 0.002466 | AQ139: 0.003273 | AR139: 0.004074 | AS139: 0.004867 | AU139: 139 | BR139: 2006-11-01 | BS139: 0.005 | BT139: 2006-11-01 | BU139: 0.005 | BW139: 2006-11-01 | BX139: 0.0102 | BY139: 2006-11-01 | BZ139: 2006-11-01 | CA139: 0.0102 | CC139: 2006-11-01 | CD139: 2006-11-01 | CH139: 0.0102 | CI139: 0.0102 | CJ139: 1.3196 | CX139: 2011-11-01 | CY139: 0.000645 | DA139: 2011-11-01 | DB139: 0.005648225
B140: 2010-12-01 | C140: 510 | D140: 2010-12-01 | E140: 510 | G140: 2011-12-01 | H140: 0.0056 | I140: 2011-12-01 | J140: 0.0056 | L140: 2011-12-01 | M140: 0.005 | N140: 2011-12-01 | O140: 0.005 | Q140: 2011-12-01 | R140: 0.000937 | S140: 2011-12-01 | T140: 0.000937 | V140: 2017-08-01 | W140: -0.0003 | X140: 2017-08-01 | Y140: -0.0003 | AF140: 2006-12-01 | AG140: 0.003992 | AH140: 0.0048 | AI140: 0.005602 | AJ140: 0.006396 | AL140: 2011-12-01 | AM140: 0.000937 | AO140: 2011-12-01 | AP140: 0.002466 | AQ140: 0.003273 | AR140: 0.004074 | AS140: 0.004867 | AU140: 140 | BR140: 2006-12-01 | BS140: 0.005 | BT140: 2006-12-01 | BU140: 0.005 | BW140: 2006-12-01 | BX140: 0.0099 | BY140: 2006-12-01 | BZ140: 2006-12-01 | CA140: 0.0099 | CC140: 2006-12-01 | CD140: 2006-12-01 | CH140: 0.0099 | CI140: 0.0099 | CJ140: 1.3097 | CX140: 2011-12-01 | CY140: 0.000937 | DA140: 2011-12-01 | DB140: 0.005941685
B141: 2011-01-01 | C141: 540 | D141: 2011-01-01 | E141: 540 | G141: 2012-01-01 | H141: 0.0065 | I141: 2012-01-01 | J141: 0.0065 | L141: 2012-01-01 | M141: 0.0056 | N141: 2012-01-01 | O141: 0.0056 | Q141: 2012-01-01 | R141: 0.000864 | S141: 2012-01-01 | T141: 0.000864 | V141: 2017-09-01 | W141: -0.0002 | X141: 2017-09-01 | Y141: -0.0002 | AF141: 2007-01-01 | AG141: 0.00466 | AH141: 0.005469 | AI141: 0.006272 | AJ141: 0.007067 | AL141: 2012-01-01 | AM141: 0.000864 | AO141: 2012-01-01 | AP141: 0.002466 | AQ141: 0.003273 | AR141: 0.004074 | AS141: 0.004867 | AU141: 141 | BR141: 2007-01-01 | BS141: 0.005 | BT141: 2007-01-01 | BU141: 0.005 | BW141: 2007-01-01 | BX141: 0.0108 | BY141: 2007-01-01 | BZ141: 2007-01-01 | CA141: 0.0108 | CC141: 2007-01-01 | CD141: 2007-01-01 | CH141: 0.0108 | CI141: 0.0108 | CJ141: 1.2989 | CX141: 2012-01-01 | CY141: 0.000864 | DA141: 2012-01-01 | DB141: 0.00586832
B142: 2011-02-01 | C142: 540 | D142: 2011-02-01 | E142: 540 | G142: 2012-02-01 | H142: 0.0053 | I142: 2012-02-01 | J142: 0.0053 | L142: 2012-02-01 | M142: 0.0045 | N142: 2012-02-01 | O142: 0.0045 | Q142: 2012-02-01 | R142: 0 | S142: 2012-02-01 | T142: 0 | V142: 2017-10-01 | W142: 0.0037 | X142: 2017-10-01 | Y142: 0.0037 | AF142: 2007-02-01 | AG142: 0.003189 | AH142: 0.003997 | AI142: 0.004798 | AJ142: 0.005592 | AL142: 2012-02-01 | AM142: 0 | AO142: 2012-02-01 | AP142: 0.002466 | AQ142: 0.003273 | AR142: 0.004074 | AS142: 0.004867 | AU142: 142 | BR142: 2007-02-01 | BS142: 0.005 | BT142: 2007-02-01 | BU142: 0.005 | BW142: 2007-02-01 | BX142: 0.0087 | BY142: 2007-02-01 | BZ142: 2007-02-01 | CA142: 0.0087 | CC142: 2007-02-01 | CD142: 2007-02-01 | CH142: 0.0087 | CI142: 0.0087 | CJ142: 1.2902 | CX142: 2012-02-01 | CY142: 0 | DA142: 2012-02-01 | DB142: 0.005
B143: 2011-03-01 | C143: 545 | D143: 2011-03-01 | E143: 545 | G143: 2012-03-01 | H143: 0.0025 | I143: 2012-03-01 | J143: 0.0025 | L143: 2012-03-01 | M143: 0.0021 | N143: 2012-03-01 | O143: 0.0021 | Q143: 2012-03-01 | R143: 0.001068 | S143: 2012-03-01 | T143: 0.001068 | V143: 2017-11-01 | W143: 0.0018 | X143: 2017-11-01 | Y143: 0.0018 | AF143: 2007-03-01 | AG143: 0.004346 | AH143: 0.005155 | AI143: 0.005957 | AJ143: 0.006752 | AL143: =+S143 -> 2012-03-01 | AM143: =+T143 -> 0.001068 | AO143: 2012-03-01 | AP143: 0.002466 | AQ143: 0.003273 | AR143: 0.004074 | AS143: 0.004867 | AU143: 143 | BR143: 2007-03-01 | BS143: 0.005 | BT143: 2007-03-01 | BU143: 0.005 | BW143: 2007-03-01 | BX143: 0.0105 | BY143: 2007-03-01 | BZ143: 2007-03-01 | CA143: 0.0105 | CC143: 2007-03-01 | CD143: 2007-03-01 | CH143: 0.0105 | CI143: 0.0105 | CJ143: 1.2797 | CX143: =+S143 -> 2012-03-01 | CY143: =+T143 -> 0.001068 | DA143: 2012-03-01 | DB143: 0.00607334
B144: 2011-04-01 | C144: 545 | D144: 2011-04-01 | E144: 545 | G144: 2012-04-01 | H144: 0.0043 | I144: 2012-04-01 | J144: 0.0043 | L144: 2012-04-01 | M144: 0.0064 | N144: 2012-04-01 | O144: 0.0064 | Q144: 2012-04-01 | R144: 0.000227 | S144: 2012-04-01 | T144: 0.000227 | V144: 2017-12-01 | W144: 0.0026 | X144: 2017-12-01 | Y144: 0.0026 | AF144: 2007-04-01 | AG144: 0.003741 | AH144: 0.004549 | AI144: 0.005351 | AJ144: 0.006145 | AL144: 2012-04-01 | AM144: 0.000227 | AO144: 2012-04-01 | AP144: 0.002466 | AQ144: 0.003273 | AR144: 0.004074 | AS144: 0.004867 | AU144: 144 | BR144: 2007-04-01 | BS144: 0.005 | BT144: 2007-04-01 | BU144: 0.005 | BW144: 2007-04-01 | BX144: 0.0094 | BY144: 2007-04-01 | BZ144: 2007-04-01 | CA144: 0.0094 | CC144: 2007-04-01 | CD144: 2007-04-01 | CH144: 0.0094 | CI144: 0.0094 | CJ144: 1.2703 | CX144: 2012-04-01 | CY144: 0.000227 | DA144: 2012-04-01 | DB144: 0.005228135
B145: 2011-05-01 | C145: 545 | D145: 2011-05-01 | E145: 545 | G145: 2012-05-01 | H145: 0.0051 | I145: 2012-05-01 | J145: 0.0051 | L145: 2012-05-01 | M145: 0.0036 | N145: 2012-05-01 | O145: 0.0036 | Q145: 2012-05-01 | R145: 0.000468 | S145: 2012-05-01 | T145: 0.000468 | V145: 2018-01-01 | W145: 0.0023 | X145: 2018-01-01 | Y145: 0.0023 | AF145: 2007-05-01 | AG145: 0.004159 | AH145: 0.004968 | AI145: 0.00577 | AJ145: 0.006564 | AL145: 2012-05-01 | AM145: 0.000468 | AO145: 2012-05-01 | AP145: 0.002466 | AQ145: 0.003273 | AR145: 0.004074 | AS145: 0.004867 | AU145: 145 | BR145: 2007-05-01 | BS145: 0.005 | BT145: 2007-05-01 | BU145: 0.005 | BW145: 2007-05-01 | BX145: 0.0103 | BY145: 2007-05-01 | BZ145: 2007-05-01 | CA145: 0.0103 | CC145: 2007-05-01 | CD145: 2007-05-01 | CH145: 0.0103 | CI145: 0.0103 | CJ145: 1.26 | CX145: 2012-05-01 | CY145: 0.000468 | DA145: 2012-05-01 | DB145: 0.00547034
B146: 2011-06-01 | C146: 545 | D146: 2011-06-01 | E146: 545 | G146: 2012-06-01 | H146: 0.0018 | I146: 2012-06-01 | J146: 0.0018 | L146: 2012-06-01 | M146: 0.0008 | N146: 2012-06-01 | O146: 0.0008 | Q146: 2012-06-01 | R146: 0 | S146: 2012-06-01 | T146: 0 | V146: 2018-02-01 | W146: 0.0018 | X146: 2018-02-01 | Y146: 0.0018 | AF146: 2007-06-01 | AG146: 0.003422 | AH146: 0.00423 | AI146: 0.005032 | AJ146: 0.005826 | AL146: 2012-06-01 | AM146: 0 | AO146: 2012-06-01 | AP146: 0.002466 | AQ146: 0.003273 | AR146: 0.004074 | AS146: 0.004867 | AU146: 146 | BR146: 2007-06-01 | BS146: 0.005 | BT146: 2007-06-01 | BU146: 0.005 | BW146: 2007-06-01 | BX146: 0.0091 | BY146: 2007-06-01 | BZ146: 2007-06-01 | CA146: 0.0091 | CC146: 2007-06-01 | CD146: 2007-06-01 | CH146: 0.0091 | CI146: 0.0091 | CJ146: 1.2509 | CX146: 2012-06-01 | CY146: 0 | DA146: 2012-06-01 | DB146: 0.005
B147: 2011-07-01 | C147: 545 | D147: 2011-07-01 | E147: 545 | G147: 2012-07-01 | H147: 0.0033 | I147: 2012-07-01 | J147: 0.0033 | L147: 2012-07-01 | M147: 0.0043 | N147: 2012-07-01 | O147: 0.0043 | Q147: 2012-07-01 | R147: 0.000144 | S147: 2012-07-01 | T147: 0.000144 | V147: 2018-03-01 | W147: 0.0007 | X147: 2018-03-01 | Y147: 0.0007 | AF147: 2007-07-01 | AG147: 0.003938 | AH147: 0.004747 | AI147: 0.005549 | AJ147: 0.006343 | AL147: 2012-07-01 | AM147: 0.000144 | AO147: 2012-07-01 | AP147: 0.002466 | AQ147: 0.003273 | AR147: 0.004074 | AS147: 0.004867 | AU147: 147 | BR147: 2007-07-01 | BS147: 0.005 | BT147: 2007-07-01 | BU147: 0.005 | BW147: 2007-07-01 | BX147: 0.0097 | BY147: 2007-07-01 | BZ147: 2007-07-01 | CA147: 0.0097 | CC147: 2007-07-01 | CD147: 2007-07-01 | CH147: 0.0097 | CI147: 0.0097 | CJ147: 1.2412 | CX147: 2012-07-01 | CY147: 0.000144 | DA147: 2012-07-01 | DB147: 0.004972695232
B148: 2011-08-01 | C148: 545 | D148: 2011-08-01 | E148: 545 | G148: 2012-08-01 | H148: 0.0039 | I148: 2012-08-01 | J148: 0.0039 | L148: 2012-08-01 | M148: 0.0041 | N148: 2012-08-01 | O148: 0.0041 | Q148: 2012-08-01 | R148: 0.000123 | S148: 2012-08-01 | T148: 0.000123 | V148: 2018-04-01 | W148: 0.0021 | X148: 2018-04-01 | Y148: 0.0021 | AF148: 2007-08-01 | AG148: 0.003935 | AH148: 0.004744 | AI148: 0.005546 | AJ148: 0.00634 | AL148: 2012-08-01 | AM148: 0.000123 | AO148: 2012-08-01 | AP148: 0.002466 | AQ148: 0.003273 | AR148: 0.004074 | AS148: 0.004867 | AU148: 148 | BR148: 2007-08-01 | BS148: 0.005 | BT148: 2007-08-01 | BU148: 0.005 | BW148: 2007-08-01 | BX148: 0.0099 | BY148: 2007-08-01 | BZ148: 2007-08-01 | CA148: 0.0099 | CC148: 2007-08-01 | CD148: 2007-08-01 | CH148: 0.0099 | CI148: 0.0099 | CJ148: 1.2313 | CX148: 2012-08-01 | CY148: 0.000123 | DA148: 2012-08-01 | DB148: 0.004951593844
B149: 2011-09-01 | C149: 545 | D149: 2011-09-01 | E149: 545 | G149: 2012-09-01 | H149: 0.0048 | I149: 2012-09-01 | J149: 0.0048 | L149: 2012-09-01 | M149: 0.0057 | N149: 2012-09-01 | O149: 0.0057 | Q149: 2012-09-01 | R149: 0 | S149: 2012-09-01 | T149: 0 | V149: 2018-05-01 | W149: 0.0043 | X149: 2018-05-01 | Y149: 0.0043 | AF149: 2007-09-01 | AG149: 0.002819 | AH149: 0.003626 | AI149: 0.004427 | AJ149: 0.005221 | AL149: 2012-09-01 | AM149: 0 | AO149: 2012-09-01 | AP149: 0.002466 | AQ149: 0.003273 | AR149: 0.004074 | AS149: 0.004867 | AU149: 149 | BR149: 2007-09-01 | BS149: 0.005 | BT149: 2007-09-01 | BU149: 0.005 | BW149: 2007-09-01 | BX149: 0.008 | BY149: 2007-09-01 | BZ149: 2007-09-01 | CA149: 0.008 | CC149: 2007-09-01 | CD149: 2007-09-01 | CH149: 0.008 | CI149: 0.008 | CJ149: 1.2233 | CX149: 2012-09-01 | CY149: 0 | DA149: 2012-09-01 | DB149: 0.004551
B150: 2011-10-01 | C150: 545 | D150: 2011-10-01 | E150: 545 | G150: 2012-10-01 | H150: 0.0065 | I150: 2012-10-01 | J150: 0.0065 | L150: 2012-10-01 | M150: 0.0059 | N150: 2012-10-01 | O150: 0.0059 | Q150: 2012-10-01 | R150: 0 | S150: 2012-10-01 | T150: 0 | V150: 2018-06-01 | W150: 0.0143 | X150: 2018-06-01 | Y150: 0.0143 | AF150: 2007-10-01 | AG150: 0.003611 | AH150: 0.004419 | AI150: 0.00522 | AJ150: 0.006015 | AL150: 2012-10-01 | AM150: 0 | AO150: 2012-10-01 | AP150: 0.002466 | AQ150: 0.003273 | AR150: 0.004074 | AS150: 0.004867 | AU150: 150 | BR150: 2007-10-01 | BS150: 0.005 | BT150: 2007-10-01 | BU150: 0.005 | BW150: 2007-10-01 | BX150: 0.0093 | BY150: 2007-10-01 | BZ150: 2007-10-01 | CA150: 0.0093 | CC150: 2007-10-01 | CD150: 2007-10-01 | CH150: 0.0093 | CI150: 0.0093 | CJ150: 1.214 | CX150: 2012-10-01 | CY150: 0 | DA150: 2012-10-01 | DB150: 0.004273
B151: 2011-11-01 | C151: 545 | D151: 2011-11-01 | E151: 545 | G151: 2012-11-01 | H151: 0.0054 | I151: 2012-11-01 | J151: 0.0054 | L151: 2012-11-01 | M151: 0.006 | N151: 2012-11-01 | O151: 0.006 | Q151: 2012-11-01 | R151: 0 | S151: 2012-11-01 | T151: 0 | V151: 2018-07-01 | W151: 0.0025 | X151: 2018-07-01 | Y151: 0.0025 | AF151: 2007-11-01 | AG151: 0.003057 | AH151: 0.003865 | AI151: 0.004666 | AJ151: 0.00546 | AL151: 2012-11-01 | AM151: 0 | AO151: 2012-11-01 | AP151: 0.002466 | AQ151: 0.003273 | AR151: 0.004074 | AS151: 0.004867 | AU151: 151 | BR151: 2007-11-01 | BS151: 0.005 | BT151: 2007-11-01 | BU151: 0.005 | BW151: 2007-11-01 | BX151: 0.0084 | BY151: 2007-11-01 | BZ151: 2007-11-01 | CA151: 0.0084 | CC151: 2007-11-01 | CD151: 2007-11-01 | CH151: 0.0084 | CI151: 0.0084 | CJ151: 1.2056 | CX151: 2012-11-01 | CY151: 0 | DA151: 2012-11-01 | DB151: 0.004273
B152: 2011-12-01 | C152: 545 | D152: 2011-12-01 | E152: 545 | G152: 2012-12-01 | H152: 0.0069 | I152: 2012-12-01 | J152: 0.0069 | L152: 2012-12-01 | M152: 0.0079 | N152: 2012-12-01 | O152: 0.0079 | Q152: 2012-12-01 | R152: 0 | S152: 2012-12-01 | T152: 0 | V152: 2018-08-01 | W152: 0 | X152: 2018-08-01 | Y152: 0 | AF152: 2007-12-01 | AG152: 0.003107 | AH152: 0.003915 | AI152: 0.004716 | AJ152: 0.00551 | AL152: 2012-12-01 | AM152: 0 | AO152: 2012-12-01 | AP152: 0.002466 | AQ152: 0.003273 | AR152: 0.004074 | AS152: 0.004867 | AU152: 152 | BR152: 2007-12-01 | BS152: 0.005 | BT152: 2007-12-01 | BU152: 0.005 | BW152: 2007-12-01 | BX152: 0.0084 | BY152: 2007-12-01 | BZ152: 2007-12-01 | CA152: 0.0084 | CC152: 2007-12-01 | CD152: 2007-12-01 | CH152: 0.0084 | CI152: 0.0084 | CJ152: 1.1972 | CX152: 2012-12-01 | CY152: 0 | DA152: 2012-12-01 | DB152: 0.004134
B153: 2012-01-01 | C153: 622 | D153: 2012-01-01 | E153: 622 | G153: 2013-01-01 | H153: 0.0088 | I153: 2013-01-01 | J153: 0.0088 | L153: 2013-01-01 | M153: 0.0086 | N153: 2013-01-01 | O153: 0.0086 | Q153: 2013-01-01 | R153: 0 | S153: 2013-01-01 | T153: 0 | V153: 2018-09-01 | W153: 0.003 | X153: 2018-09-01 | Y153: 0.003 | AF153: 2008-01-01 | AG153: 0.003478 | AH153: 0.004287 | AI153: 0.005088 | AJ153: 0.005882 | AL153: 2013-01-01 | AM153: 0 | AO153: 2013-01-01 | AP153: 0.002466 | AQ153: 0.003273 | AR153: 0.004074 | AS153: 0.004867 | AU153: 153 | BR153: 2008-01-01 | BS153: 0.005 | BT153: 2008-01-01 | BU153: 0.005 | BW153: 2008-01-01 | BX153: 0.0093 | BY153: 2008-01-01 | BZ153: 2008-01-01 | CA153: 0.0093 | CC153: 2008-01-01 | CD153: 2008-01-01 | CH153: 0.0093 | CI153: 0.0093 | CJ153: 1.1879 | CX153: 2013-01-01 | CY153: 0 | DA153: 2013-01-01 | DB153: 0.004134
B154: 2012-02-01 | C154: 622 | D154: 2012-02-01 | E154: 622 | G154: 2013-02-01 | H154: 0.0068 | I154: 2013-02-01 | J154: 0.0068 | L154: 2013-02-01 | M154: 0.006 | N154: 2013-02-01 | O154: 0.006 | Q154: 2013-02-01 | R154: 0 | S154: 2013-02-01 | T154: 0 | V154: 2018-10-01 | W154: 0.004 | X154: 2018-10-01 | Y154: 0.004 | AF154: 2008-02-01 | AG154: 0.002709 | AH154: 0.003517 | AI154: 0.004318 | AJ154: 0.005111 | AL154: 2013-02-01 | AM154: 0 | AO154: 2013-02-01 | AP154: 0.002466 | AQ154: 0.003273 | AR154: 0.004074 | AS154: 0.004867 | AU154: 154 | BR154: 2008-02-01 | BS154: 0.005 | BT154: 2008-02-01 | BU154: 0.005 | BW154: 2008-02-01 | BX154: 0.008 | BY154: 2008-02-01 | BZ154: 2008-02-01 | CA154: 0.008 | CC154: 2008-02-01 | CD154: 2008-02-01 | CH154: 0.008 | CI154: 0.008 | CJ154: 1.1799 | CX154: 2013-02-01 | CY154: 0 | DA154: 2013-02-01 | DB154: 0.004134
B155: 2012-03-01 | C155: 622 | D155: 2012-03-01 | E155: 622 | G155: 2013-03-01 | H155: 0.0049 | I155: 2013-03-01 | J155: 0.0049 | L155: 2013-03-01 | M155: 0.0047 | N155: 2013-03-01 | O155: 0.0047 | Q155: 2013-03-01 | R155: 0 | S155: 2013-03-01 | T155: 0 | V155: 2018-11-01 | W155: -0.0025 | X155: 2018-11-01 | Y155: -0.0025 | AF155: 2008-03-01 | AG155: 0.002876 | AH155: 0.003684 | AI155: 0.004484 | AJ155: 0.005278 | AL155: 2013-03-01 | AM155: 0 | AO155: 2013-03-01 | AP155: 0.002466 | AQ155: 0.003273 | AR155: 0.004074 | AS155: 0.004867 | AU155: 155 | BR155: 2008-03-01 | BS155: 0.005 | BT155: 2008-03-01 | BU155: 0.005 | BW155: 2008-03-01 | BX155: 0.0084 | BY155: 2008-03-01 | BZ155: 2008-03-01 | CA155: 0.0084 | CC155: 2008-03-01 | CD155: 2008-03-01 | CH155: 0.0084 | CI155: 0.0084 | CJ155: 1.1715 | CX155: 2013-03-01 | CY155: 0 | DA155: 2013-03-01 | DB155: 0.004134
B156: 2012-04-01 | C156: 622 | D156: 2012-04-01 | E156: 622 | G156: 2013-04-01 | H156: 0.0051 | I156: 2013-04-01 | J156: 0.0051 | L156: 2013-04-01 | M156: 0.0055 | N156: 2013-04-01 | O156: 0.0055 | Q156: 2013-04-01 | R156: 0 | S156: 2013-04-01 | T156: 0 | V156: 2018-12-01 | W156: 0.0014 | X156: 2018-12-01 | Y156: 0.0014 | AF156: 2008-04-01 | AG156: 0.003423 | AH156: 0.004231 | AI156: 0.005033 | AJ156: 0.005827 | AL156: 2013-04-01 | AM156: 0 | AO156: 2013-04-01 | AP156: 0.002466 | AQ156: 0.003273 | AR156: 0.004074 | AS156: 0.004867 | AU156: 156 | BR156: 2008-04-01 | BS156: 0.005 | BT156: 2008-04-01 | BU156: 0.005 | BW156: 2008-04-01 | BX156: 0.009 | BY156: 2008-04-01 | BZ156: 2008-04-01 | CA156: 0.009 | CC156: 2008-04-01 | CD156: 2008-04-01 | CH156: 0.009 | CI156: 0.009 | CJ156: 1.1625 | CX156: 2013-04-01 | CY156: 0 | DA156: 2013-04-01 | DB156: 0.004134
B157: 2012-05-01 | C157: 622 | D157: 2012-05-01 | E157: 622 | G157: 2013-05-01 | H157: 0.0046 | I157: 2013-05-01 | J157: 0.0046 | L157: 2013-05-01 | M157: 0.0037 | N157: 2013-05-01 | O157: 0.0037 | Q157: 2013-05-01 | R157: 0 | S157: 2013-05-01 | T157: 0 | V157: 2019-01-01 | W157: 0.0036 | X157: 2019-01-01 | Y157: 0.0036 | AF157: 2008-05-01 | AG157: 0.003204 | AH157: 0.004012 | AI157: 0.004813 | AJ157: 0.005607 | AL157: 2013-05-01 | AM157: 0 | AO157: 2013-05-01 | AP157: 0.002466 | AQ157: 0.003273 | AR157: 0.004074 | AS157: 0.004867 | AU157: 157 | BR157: 2008-05-01 | BS157: 0.005 | BT157: 2008-05-01 | BU157: 0.005 | BW157: 2008-05-01 | BX157: 0.0088 | BY157: 2008-05-01 | BZ157: 2008-05-01 | CA157: 0.0088 | CC157: 2008-05-01 | CD157: 2008-05-01 | CG157: =+IF(OR(COD_JUROS<>3,CD156=""),"",1%) ->  | CH157: 0.0088 | CI157: 0.0088 | CJ157: 1.1537 | CX157: 2013-05-01 | CY157: 0 | DA157: 2013-05-01 | DB157: 0.004134
B158: 2012-06-01 | C158: 622 | D158: 2012-06-01 | E158: 622 | G158: 2013-06-01 | H158: 0.0038 | I158: 2013-06-01 | J158: 0.0038 | L158: 2013-06-01 | M158: 0.0026 | N158: 2013-06-01 | O158: 0.0026 | Q158: 2013-06-01 | R158: 0 | S158: 2013-06-01 | T158: 0 | V158: 2019-02-01 | W158: 0.0054 | X158: 2019-02-01 | Y158: 0.0054 | AF158: 2008-06-01 | AG158: 0.003615 | AH158: 0.004423 | AI158: 0.005224 | AJ158: 0.006019 | AL158: 2013-06-01 | AM158: 0 | AO158: 2013-06-01 | AP158: 0.002466 | AQ158: 0.003273 | AR158: 0.004074 | AS158: 0.004867 | AU158: 158 | BR158: 2008-06-01 | BS158: 0.005 | BT158: 2008-06-01 | BU158: 0.005 | BW158: 2008-06-01 | BX158: 0.0096 | BY158: 2008-06-01 | BZ158: 2008-06-01 | CA158: 0.0096 | CC158: 2008-06-01 | CD158: 2008-06-01 | CH158: 0.0096 | CI158: 0.0096 | CJ158: 1.1441 | CX158: 2013-06-01 | CY158: 0 | DA158: 2013-06-01 | DB158: 0.004273
B159: 2012-07-01 | C159: 622 | D159: 2012-07-01 | E159: 622 | G159: 2013-07-01 | H159: 0.0007 | I159: 2013-07-01 | J159: 0.0007 | L159: 2013-07-01 | M159: 0.0003 | N159: 2013-07-01 | O159: 0.0003 | Q159: 2013-07-01 | R159: 0.000209 | S159: 2013-07-01 | T159: 0.000209 | V159: 2019-03-01 | W159: 0.0077 | X159: 2019-03-01 | Y159: 0.0077 | AF159: 2008-07-01 | AG159: 0.004384 | AH159: 0.005193 | AI159: 0.005995 | AJ159: 0.00679 | AL159: 2013-07-01 | AM159: 0.000209 | AO159: 2013-07-01 | AP159: 0.002466 | AQ159: 0.003273 | AR159: 0.004074 | AS159: 0.004867 | AU159: 159 | BR159: 2008-07-01 | BS159: 0.005 | BT159: 2008-07-01 | BU159: 0.005 | BW159: 2008-07-01 | BX159: 0.0107 | BY159: 2008-07-01 | BZ159: 2008-07-01 | CA159: 0.0107 | CC159: 2008-07-01 | CD159: 2008-07-01 | CH159: 0.0107 | CI159: 0.0107 | CJ159: 1.1334 | CX159: 2013-07-01 | CY159: 0.000209 | DA159: 2013-07-01 | DB159: 0.004760951159
B160: 2012-08-01 | C160: 622 | D160: 2012-08-01 | E160: 622 | G160: 2013-08-01 | H160: 0.0016 | I160: 2013-08-01 | J160: 0.0016 | L160: 2013-08-01 | M160: 0.0024 | N160: 2013-08-01 | O160: 0.0024 | Q160: 2013-08-01 | R160: 0 | S160: 2013-08-01 | T160: 0 | V160: 2019-04-01 | W160: 0.006 | X160: 2019-04-01 | Y160: 0.006 | AF160: 2008-08-01 | AG160: 0.004044 | AH160: 0.004852 | AI160: 0.005654 | AJ160: 0.006449 | AL160: 2013-08-01 | AM160: 0 | AO160: 2013-08-01 | AP160: 0.002466 | AQ160: 0.003273 | AR160: 0.004074 | AS160: 0.004867 | AU160: 160 | BR160: 2008-08-01 | BS160: 0.005 | BT160: 2008-08-01 | BU160: 0.005 | BW160: 2008-08-01 | BX160: 0.0102 | BY160: 2008-08-01 | BZ160: 2008-08-01 | CA160: 0.0102 | CC160: 2008-08-01 | CD160: 2008-08-01 | CH160: 0.0102 | CI160: 0.0102 | CJ160: 1.1232 | CX160: 2013-08-01 | CY160: 0 | DA160: 2013-08-01 | DB160: 0.004551
B161: 2012-09-01 | C161: 622 | D161: 2012-09-01 | E161: 622 | G161: 2013-09-01 | H161: 0.0027 | I161: 2013-09-01 | J161: 0.0027 | L161: 2013-09-01 | M161: 0.0035 | N161: 2013-09-01 | O161: 0.0035 | Q161: 2013-09-01 | R161: 7.9e-05 | S161: 2013-09-01 | T161: 7.9e-05 | V161: 2019-05-01 | W161: 0.0015 | X161: 2019-05-01 | Y161: 0.0015 | AF161: 2008-09-01 | AG161: 0.004441 | AH161: 0.00525 | AI161: 0.006052 | AJ161: 0.006847 | AL161: 2013-09-01 | AM161: 7.9e-05 | AO161: 2013-09-01 | AP161: 0.002466 | AQ161: 0.003273 | AR161: 0.004074 | AS161: 0.004867 | AU161: 161 | BR161: 2008-09-01 | BS161: 0.005 | BT161: 2008-09-01 | BU161: 0.005 | BW161: 2008-09-01 | BX161: 0.011 | BY161: 2008-09-01 | BZ161: 2008-09-01 | CA161: 0.011 | CC161: 2008-09-01 | CD161: 2008-09-01 | CH161: 0.011 | CI161: 0.011 | CJ161: 1.1122 | CX161: 2013-09-01 | CY161: 7.9e-05 | DA161: 2013-09-01 | DB161: 0.004907381412
B162: 2012-10-01 | C162: 622 | D162: 2012-10-01 | E162: 622 | G162: 2013-10-01 | H162: 0.0048 | I162: 2013-10-01 | J162: 0.0048 | L162: 2013-10-01 | M162: 0.0057 | N162: 2013-10-01 | O162: 0.0057 | Q162: 2013-10-01 | R162: 0.00092 | S162: 2013-10-01 | T162: 0.00092 | V162: 2019-06-01 | W162: 0.0001 | X162: 2019-06-01 | Y162: 0.0001 | AF162: 2008-10-01 | AG162: 0.004978 | AH162: 0.005787 | AI162: 0.00659 | AJ162: 0.007385 | AL162: 2013-10-01 | AM162: 0.00092 | AO162: 2013-10-01 | AP162: 0.002466 | AQ162: 0.003273 | AR162: 0.004074 | AS162: 0.004867 | AU162: 162 | BR162: 2008-10-01 | BS162: 0.005 | BT162: 2008-10-01 | BU162: 0.005 | BW162: 2008-10-01 | BX162: 0.0118 | BY162: 2008-10-01 | BZ162: 2008-10-01 | CA162: 0.0118 | CC162: 2008-10-01 | CD162: 2008-10-01 | CH162: 0.0118 | CI162: 0.0118 | CJ162: 1.1004 | CX162: 2013-10-01 | CY162: 0.00092 | DA162: 2013-10-01 | DB162: 0.0059246
B163: 2012-11-01 | C163: 622 | D163: 2012-11-01 | E163: 622 | G163: 2013-11-01 | H163: 0.0057 | I163: 2013-11-01 | J163: 0.0057 | L163: 2013-11-01 | M163: 0.0054 | N163: 2013-11-01 | O163: 0.0054 | Q163: 2013-11-01 | R163: 0.000207 | S163: 2013-11-01 | T163: 0.000207 | V163: 2019-07-01 | W163: 0.001 | X163: 2019-07-01 | Y163: 0.001 | AF163: 2008-11-01 | AG163: 0.004088 | AH163: 0.004897 | AI163: 0.005698 | AJ163: 0.006493 | AL163: 2013-11-01 | AM163: 0.000207 | AO163: 2013-11-01 | AP163: 0.002466 | AQ163: 0.003273 | AR163: 0.004074 | AS163: 0.004867 | AU163: 163 | BR163: 2008-11-01 | BS163: 0.005 | BT163: 2008-11-01 | BU163: 0.005 | BW163: 2008-11-01 | BX163: 0.0102 | BY163: 2008-11-01 | BZ163: 2008-11-01 | CA163: 0.0102 | CC163: 2008-11-01 | CD163: 2008-11-01 | CH163: 0.0102 | CI163: 0.0102 | CJ163: 1.0902 | CX163: 2013-11-01 | CY163: 0.000207 | DA163: 2013-11-01 | DB163: 0.005208035
B164: 2012-12-01 | C164: 622 | D164: 2012-12-01 | E164: 622 | G164: 2013-12-01 | H164: 0.0075 | I164: 2013-12-01 | J164: 0.0075 | L164: 2013-12-01 | M164: 0.0092 | N164: 2013-12-01 | O164: 0.0092 | Q164: 2013-12-01 | R164: 0.000494 | S164: 2013-12-01 | T164: 0.000494 | V164: 2019-08-01 | W164: 0.0012 | X164: 2019-08-01 | Y164: 0.0012 | AF164: 2008-12-01 | AG164: 0.00462 | AH164: 0.005429 | AI164: 0.006231 | AJ164: 0.007027 | AL164: 2013-12-01 | AM164: 0.000494 | AO164: 2013-12-01 | AP164: 0.002466 | AQ164: 0.003273 | AR164: 0.004074 | AS164: 0.004867 | AU164: 164 | BR164: 2008-12-01 | BS164: 0.005 | BT164: 2008-12-01 | BU164: 0.005 | BW164: 2008-12-01 | BX164: 0.0112 | BY164: 2008-12-01 | BZ164: 2008-12-01 | CA164: 0.0112 | CC164: 2008-12-01 | CD164: 2008-12-01 | CH164: 0.0112 | CI164: 0.0112 | CJ164: 1.079 | CX164: 2013-12-01 | CY164: 0.000494 | DA164: 2013-12-01 | DB164: 0.00549647
B165: 2013-01-01 | C165: 678 | D165: 2013-01-01 | E165: 678 | G165: 2014-01-01 | H165: 0.0067 | I165: 2014-01-01 | J165: 0.0067 | L165: 2014-01-01 | M165: 0.0055 | N165: 2014-01-01 | O165: 0.0055 | Q165: 2014-01-01 | R165: 0.001126 | S165: 2014-01-01 | T165: 0.001126 | V165: 2019-09-01 | W165: -0.0005 | X165: 2019-09-01 | Y165: -0.0005 | AF165: 2009-01-01 | AG165: 0.00431 | AH165: 0.005119 | AI165: 0.005921 | AJ165: 0.006716 | AL165: 2014-01-01 | AM165: 0.001126 | AO165: 2014-01-01 | AP165: 0.002466 | AQ165: 0.003273 | AR165: 0.004074 | AS165: 0.004867 | AU165: 165 | BR165: 2009-01-01 | BS165: 0.005 | BT165: 2009-01-01 | BU165: 0.005 | BW165: 2009-01-01 | BX165: 0.0105 | BY165: 2009-01-01 | BZ165: 2009-01-01 | CA165: 0.0105 | CC165: 2009-01-01 | CD165: 2009-01-01 | CH165: 0.0105 | CI165: 0.0105 | CJ165: 1.0685 | CX165: 2014-01-01 | CY165: 0.001126 | DA165: 2014-01-01 | DB165: 0.00613163
B166: 2013-02-01 | C166: 678 | D166: 2013-02-01 | E166: 678 | G166: 2014-02-01 | H166: 0.007 | I166: 2014-02-01 | J166: 0.007 | L166: 2014-02-01 | M166: 0.0069 | N166: 2014-02-01 | O166: 0.0069 | Q166: 2014-02-01 | R166: 0.000537 | S166: 2014-02-01 | T166: 0.000537 | V166: 2019-10-01 | W166: 0.0004 | X166: 2019-10-01 | Y166: 0.0004 | AF166: 2009-02-01 | AG166: 0.002918 | AH166: 0.003726 | AI166: 0.004526 | AJ166: 0.00532 | AL166: 2014-02-01 | AM166: 0.000537 | AO166: 2014-02-01 | AP166: 0.002466 | AQ166: 0.003273 | AR166: 0.004074 | AS166: 0.004867 | AU166: 166 | BR166: 2009-02-01 | BS166: 0.005 | BT166: 2009-02-01 | BU166: 0.005 | BW166: 2009-02-01 | BX166: 0.0086 | BY166: 2009-02-01 | BZ166: 2009-02-01 | CA166: 0.0086 | CC166: 2009-02-01 | CD166: 2009-02-01 | CH166: 0.0086 | CI166: 0.0086 | CJ166: 1.0599 | CX166: 2014-02-01 | CY166: 0.000537 | DA166: 2014-02-01 | DB166: 0.005539685
B167: 2013-03-01 | C167: 678 | D167: 2013-03-01 | E167: 678 | G167: 2014-03-01 | H167: 0.0073 | I167: 2014-03-01 | J167: 0.0073 | L167: 2014-03-01 | M167: 0.0092 | N167: 2014-03-01 | O167: 0.0092 | Q167: 2014-03-01 | R167: 0.000266 | S167: 2014-03-01 | T167: 0.000266 | V167: 2019-11-01 | W167: 0.0054 | X167: 2019-11-01 | Y167: 0.0054 | AF167: 2009-03-01 | AG167: 0.003907 | AH167: 0.004716 | AI167: 0.005517 | AJ167: 0.006312 | AL167: 2014-03-01 | AM167: 0.000266 | AO167: 2014-03-01 | AP167: 0.002466 | AQ167: 0.003273 | AR167: 0.004074 | AS167: 0.004867 | AU167: 167 | BR167: 2009-03-01 | BS167: 0.005 | BT167: 2009-03-01 | BU167: 0.005 | BW167: 2009-03-01 | BX167: 0.0097 | BY167: 2009-03-01 | BZ167: 2009-03-01 | CA167: 0.0097 | CC167: 2009-03-01 | CD167: 2009-03-01 | CH167: 0.0097 | CI167: 0.0097 | CJ167: 1.0502 | CX167: 2014-03-01 | CY167: 0.000266 | DA167: 2014-03-01 | DB167: 0.00526733
B168: 2013-04-01 | C168: 678 | D168: 2013-04-01 | E168: 678 | G168: 2014-04-01 | H168: 0.0078 | I168: 2014-04-01 | J168: 0.0078 | L168: 2014-04-01 | M168: 0.0067 | N168: 2014-04-01 | O168: 0.0067 | Q168: 2014-04-01 | R168: 0.000459 | S168: 2014-04-01 | T168: 0.000459 | V168: 2019-12-01 | W168: 0.0122 | X168: 2019-12-01 | Y168: 0.0122 | AF168: 2009-04-01 | AG168: 0.002921 | AH168: 0.003729 | AI168: 0.004529 | AJ168: 0.005323 | AL168: 2014-04-01 | AM168: 0.000459 | AO168: 2014-04-01 | AP168: 0.002466 | AQ168: 0.003273 | AR168: 0.004074 | AS168: 0.004867 | AU168: 168 | BR168: 2009-04-01 | BS168: 0.005 | BT168: 2009-04-01 | BU168: 0.005 | BW168: 2009-04-01 | BX168: 0.0084 | BY168: 2009-04-01 | BZ168: 2009-04-01 | CA168: 0.0084 | CC168: 2009-04-01 | CD168: 2009-04-01 | CH168: 0.0084 | CI168: 0.0084 | CJ168: 1.0418 | CX168: 2014-04-01 | CY168: 0.000459 | DA168: 2014-04-01 | DB168: 0.005461295
B169: 2013-05-01 | C169: 678 | D169: 2013-05-01 | E169: 678 | G169: 2014-05-01 | H169: 0.0058 | I169: 2014-05-01 | J169: 0.0058 | L169: 2014-05-01 | M169: 0.0046 | N169: 2014-05-01 | O169: 0.0046 | Q169: 2014-05-01 | R169: 0.000604 | S169: 2014-05-01 | T169: 0.000604 | V169: 2020-01-01 | W169: 0.0019 | X169: 2020-01-01 | Y169: 0.0019 | AF169: 2009-05-01 | AG169: 0.002916 | AH169: 0.003724 | AI169: 0.004524 | AJ169: 0.005318 | AL169: 2014-05-01 | AM169: 0.000604 | AO169: 2014-05-01 | AP169: 0.002466 | AQ169: 0.003273 | AR169: 0.004074 | AS169: 0.004867 | AU169: 169 | BR169: 2009-05-01 | BS169: 0.005 | BT169: 2009-05-01 | BU169: 0.005 | BW169: 2009-05-01 | BX169: 0.0077 | BY169: 2009-05-01 | BZ169: 2009-05-01 | CA169: 0.0077 | CC169: 2009-05-01 | CD169: 2009-05-01 | CH169: 0.0077 | CI169: 0.0077 | CJ169: 1.0341 | CX169: 2014-05-01 | CY169: 0.000604 | DA169: 2014-05-01 | DB169: 0.00560702
B170: 2013-06-01 | C170: 678 | D170: 2013-06-01 | E170: 678 | G170: 2014-06-01 | H170: 0.0047 | I170: 2014-06-01 | J170: 0.0047 | L170: 2014-06-01 | M170: 0.004 | N170: 2014-06-01 | O170: 0.004 | Q170: 2014-06-01 | R170: 0.000465 | S170: 2014-06-01 | T170: 0.000465 | V170: 2020-02-01 | W170: 0.0017 | X170: 2020-02-01 | Y170: 0.0017 | AF170: 2009-06-01 | AG170: 0.003123 | AH170: 0.003931 | AI170: 0.004732 | AJ170: 0.005526 | AL170: 2014-06-01 | AM170: 0.000465 | AO170: 2014-06-01 | AP170: 0.002466 | AQ170: 0.003273 | AR170: 0.004074 | AS170: 0.004867 | AU170: 170 | BR170: 2009-06-01 | BS170: 0.005 | BT170: 2009-06-01 | BU170: 0.005 | BW170: 2009-06-01 | BX170: 0.0076 | BY170: 2009-06-01 | BZ170: 2009-06-01 | CA170: 0.0076 | CC170: 2009-06-01 | CD170: 2009-06-01 | CH170: 0.0076 | CI170: 0.0076 | CJ170: 1.0265 | CX170: 2014-06-01 | CY170: 0.000465 | DA170: 2014-06-01 | DB170: 0.005467325
B171: 2013-07-01 | C171: 678 | D171: 2013-07-01 | E171: 678 | G171: 2014-07-01 | H171: 0.0017 | I171: 2014-07-01 | J171: 0.0017 | L171: 2014-07-01 | M171: 0.0001 | N171: 2014-07-01 | O171: 0.0001 | Q171: 2014-07-01 | R171: 0.001054 | S171: 2014-07-01 | T171: 0.001054 | V171: 2020-02-01 | W171: 0.0018 | X171: 2020-02-01 | Y171: 0.0018 | AF171: 2009-07-01 | AG171: 0.003519 | AH171: 0.004328 | AI171: 0.005129 | AJ171: 0.005923 | AL171: 2014-07-01 | AM171: 0.001054 | AO171: 2014-07-01 | AP171: 0.002466 | AQ171: 0.003273 | AR171: 0.004074 | AS171: 0.004867 | AU171: 171 | BR171: 2009-07-01 | BS171: 0.005 | BT171: 2009-07-01 | BU171: 0.005 | BW171: 2009-07-01 | BX171: 0.0079 | BY171: 2009-07-01 | BZ171: 2009-07-01 | CA171: 0.0079 | CC171: 2009-07-01 | CD171: 2009-07-01 | CG171: =+IF(OR(COD_JUROS<>3,CD170=""),"",BU171) ->  | CH171: 0.0079 | CI171: 0.0079 | CJ171: 1.0186 | CX171: 2014-07-01 | CY171: 0.001054 | DA171: 2014-07-01 | DB171: 0.00605927
B172: 2013-08-01 | C172: 678 | D172: 2013-08-01 | E172: 678 | G172: 2014-08-01 | H172: 0.0014 | I172: 2014-08-01 | J172: 0.0014 | L172: 2014-08-01 | M172: 0.0025 | N172: 2014-08-01 | O172: 0.0025 | Q172: 2014-08-01 | R172: 0.000602 | S172: 2014-08-01 | T172: 0.000602 | V172: 2020-03-01 | W172: -0.0023 | X172: 2020-03-01 | Y172: -0.0023 | AF172: 2009-08-01 | AG172: 0.002663 | AH172: 0.003471 | AI172: 0.004271 | AJ172: 0.005065 | AL172: 2014-08-01 | AM172: 0.000602 | AO172: 2014-08-01 | AP172: 0.002466 | AQ172: 0.003273 | AR172: 0.004074 | AS172: 0.004867 | AU172: 172 | BR172: 2009-08-01 | BS172: 0.005 | BT172: 2009-08-01 | BU172: 0.005 | BW172: 2009-08-01 | BX172: 0.0069 | BY172: 2009-08-01 | BZ172: 2009-08-01 | CA172: 0.0069 | CC172: 2009-08-01 | CD172: 2009-08-01 | CH172: 0.0069 | CI172: 0.0069 | CJ172: 1.0117 | CX172: 2014-08-01 | CY172: 0.000602 | DA172: 2014-08-01 | DB172: 0.00560501
B173: 2013-09-01 | C173: 678 | D173: 2013-09-01 | E173: 678 | G173: 2014-09-01 | H173: 0.0039 | I173: 2014-09-01 | J173: 0.0039 | L173: 2014-09-01 | M173: 0.0057 | N173: 2014-09-01 | O173: 0.0057 | Q173: 2014-09-01 | R173: 0.000873 | S173: 2014-09-01 | T173: 0.000873 | V173: 2020-04-01 | W173: -0.0025 | X173: 2020-04-01 | Y173: -0.0025 | AF173: 2009-09-01 | AG173: 0.002466 | AH173: 0.003273 | AI173: 0.004074 | AJ173: 0.004867 | AL173: 2014-09-01 | AM173: 0.000873 | AO173: 2014-09-01 | AP173: 0.002466 | AQ173: 0.003273 | AR173: 0.004074 | AS173: 0.004867 | AU173: 173 | BR173: 2009-09-01 | BS173: 0.005 | BT173: 2009-09-01 | BU173: 0.005 | BW173: 2009-09-01 | BX173: 0.0069 | BY173: 2009-09-01 | BZ173: 2009-09-01 | CA173: 0.0069 | CC173: 2009-09-01 | CD173: 2009-09-01 | CH173: 0.0069 | CI173: 0.0069 | CJ173: 1.0048 | CX173: 2014-09-01 | CY173: 0.000873 | DA173: 2014-09-01 | DB173: 0.005877365
B174: 2013-10-01 | C174: 678 | D174: 2013-10-01 | E174: 678 | G174: 2014-10-01 | H174: 0.0048 | I174: 2014-10-01 | J174: 0.0048 | L174: 2014-10-01 | M174: 0.0042 | N174: 2014-10-01 | O174: 0.0042 | Q174: 2014-10-01 | R174: 0.001038 | S174: 2014-10-01 | T174: 0.001038 | V174: 2020-05-01 | W174: 0.003 | X174: 2020-05-01 | Y174: 0.003 | AF174: 2009-10-01 | AG174: 0.002466 | AH174: 0.003273 | AI174: 0.004074 | AJ174: 0.004867 | AL174: 2014-10-01 | AM174: 0.001038 | AO174: 2014-10-01 | AP174: 0.002466 | AQ174: 0.003273 | AR174: 0.004074 | AS174: 0.004867 | AU174: 174 | BR174: 2009-10-01 | BS174: 0.005 | BT174: 2009-10-01 | BU174: 0.005 | BW174: 2009-10-01 | BX174: 0.0069 | BY174: 2009-10-01 | BZ174: 2009-10-01 | CA174: 0.0069 | CC174: 2009-10-01 | CD174: 2009-10-01 | CH174: 0.0069 | CI174: 0.0069 | CJ174: 0.9979 | CX174: 2014-10-01 | CY174: 0.001038 | DA174: 2014-10-01 | DB174: 0.00604319
B175: 2013-11-01 | C175: 678 | D175: 2013-11-01 | E175: 678 | G175: 2014-11-01 | H175: 0.0038 | I175: 2014-11-01 | J175: 0.0038 | L175: 2014-11-01 | M175: 0.0051 | N175: 2014-11-01 | O175: 0.0051 | Q175: 2014-11-01 | R175: 0.000483 | S175: 2014-11-01 | T175: 0.000483 | V175: 2020-06-01 | W175: 0.0044 | X175: 2020-06-01 | Y175: 0.0044 | AF175: 2009-11-01 | AG175: 0.002466 | AH175: 0.003273 | AI175: 0.004074 | AJ175: 0.004867 | AL175: =+S175 -> 2014-11-01 | AM175: =+T175 -> 0.000483 | AO175: 2014-11-01 | AP175: 0.002466 | AQ175: 0.003273 | AR175: 0.004074 | AS175: 0.004867 | AU175: 175 | BR175: 2009-11-01 | BS175: 0.005 | BT175: 2009-11-01 | BU175: 0.005 | BW175: 2009-11-01 | BX175: 0.0066 | BY175: 2009-11-01 | BZ175: 2009-11-01 | CA175: 0.0066 | CC175: 2009-11-01 | CD175: 2009-11-01 | CH175: 0.0066 | CI175: 0.0066 | CJ175: 0.9913 | CX175: 2014-11-01 | CY175: 0.000483 | DA175: 2014-11-01 | DB175: 0.005485415
B176: 2013-12-01 | C176: 678 | D176: 2013-12-01 | E176: 678 | G176: 2014-12-01 | H176: 0.0079 | I176: 2014-12-01 | J176: 0.0079 | L176: 2014-12-01 | M176: 0.0078 | N176: 2014-12-01 | O176: 0.0078 | Q176: 2014-12-01 | R176: 0.001053 | S176: 2014-12-01 | T176: 0.001053 | V176: 2020-07-01 | W176: 0.0036 | X176: 2020-07-01 | Y176: 0.0036 | AA176: 2010-01-10 | AB176: 0.003 | AC176: 0.003808 | AD176: 0.004609 | AE176: 0.005403 | AF176: =+IF(AND(TRIM(AA176)="",TRIM(AA175)<>""),EDATE(AF175,1),IF(TRIM(AA176)="","",EOMONTH(AA176,-2)+1)) -> 2009-12-01 | AG176: =IF(TRIM(AB176)="","",AB176) -> 0.003 | AH176: =IF(TRIM(AC176)="","",AC176) -> 0.003808 | AI176: =IF(TRIM(AD176)="","",AD176) -> 0.004609 | AJ176: =IF(TRIM(AE176)="","",AE176) -> 0.005403 | AL176: 2014-12-01 | AM176: 0.001053 | AO176: 2014-12-01 | AP176: 0.002466 | AQ176: 0.003273 | AR176: 0.004074 | AS176: 0.004867 | AU176: 176 | BR176: 2009-12-01 | BS176: 0.005 | BT176: 2009-12-01 | BU176: 0.005 | BW176: 2009-12-01 | BX176: 0.0073 | BY176: 2009-12-01 | BZ176: 2009-12-01 | CA176: 0.0073 | CC176: 2009-12-01 | CD176: 2009-12-01 | CH176: 0.0073 | CI176: 0.0073 | CJ176: 0.984 | CX176: 2014-12-01 | CY176: 0.001053 | DA176: 2014-12-01 | DB176: 0.006058265
B177: 2014-01-01 | C177: 724 | D177: 2014-01-01 | E177: 724 | G177: 2015-01-01 | H177: 0.0089 | I177: 2015-01-01 | J177: 0.0089 | L177: 2015-01-01 | M177: 0.0124 | N177: =+IF(TRIM(L177)="","",TRUNC(L177,0)) -> 2015-01-01 | O177: 0.0124 | Q177: 2015-01-01 | R177: 0.000878 | S177: 2015-01-01 | T177: 0.000878 | V177: 2020-08-01 | W177: 0.0087 | X177: 2020-08-01 | Y177: 0.0087 | AA177: 2010-02-10 | AB177: 0.002466 | AC177: 0.003273 | AD177: 0.004074 | AE177: 0.004867 | AF177: 2010-01-01 | AG177: =IF(TRIM(AB177)="","",AB177) -> 0.002466 | AH177: =IF(TRIM(AC177)="","",AC177) -> 0.003273 | AI177: =IF(TRIM(AD177)="","",AD177) -> 0.004074 | AJ177: =IF(TRIM(AE177)="","",AE177) -> 0.004867 | AL177: 2015-01-01 | AM177: 0.000878 | AO177: 2015-01-01 | AP177: 0.002466 | AQ177: 0.003273 | AR177: 0.004074 | AS177: 0.004867 | AU177: 177 | BR177: 2010-01-01 | BS177: 0.005 | BT177: 2010-01-01 | BU177: 0.005 | BW177: 2010-01-01 | BX177: 0.0066 | BY177: 2010-01-01 | BZ177: 2010-01-01 | CA177: 0.0066 | CC177: 2010-01-01 | CD177: 2010-01-01 | CH177: 0.0066 | CI177: 0.0066 | CJ177: 0.9774 | CX177: 2015-01-01 | CY177: 0.000878 | DA177: 2015-01-01 | DB177: 0.00588239
B178: 2014-02-01 | C178: 724 | D178: 2014-02-01 | E178: 724 | G178: 2015-02-01 | H178: 0.0133 | I178: 2015-02-01 | J178: 0.0133 | L178: 2015-02-01 | M178: 0.0122 | N178: =+IF(TRIM(L178)="","",TRUNC(L178,0)) -> 2015-02-01 | O178: 0.0122 | Q178: 2015-02-01 | R178: 0.000168 | S178: 2015-02-01 | T178: 0.000168 | V178: 2020-09-01 | W178: 0.0089 | X178: 2020-09-01 | Y178: 0.0089 | AA178: 2010-03-10 | AB178: 0.002466 | AC178: 0.003273 | AD178: 0.004074 | AE178: 0.004867 | AF178: 2010-02-01 | AG178: 0.002466 | AH178: 0.003273 | AI178: 0.004074 | AJ178: 0.004867 | AL178: 2015-02-01 | AM178: 0.000168 | AO178: 2015-02-01 | AP178: 0.002466 | AQ178: 0.003273 | AR178: 0.004074 | AS178: 0.004867 | AU178: 178 | BR178: 2010-02-01 | BS178: 0.005 | BT178: 2010-02-01 | BU178: 0.005 | BW178: 2010-02-01 | BX178: 0.0059 | BY178: 2010-02-01 | BZ178: 2010-02-01 | CA178: 0.0059 | CC178: 2010-02-01 | CD178: 2010-02-01 | CH178: 0.0059 | CI178: 0.0059 | CJ178: 0.9715 | CX178: 2015-02-01 | CY178: 0.000168 | DA178: 2015-02-01 | DB178: 0.00516884
B179: 2014-03-01 | C179: 724 | D179: 2014-03-01 | E179: 724 | G179: 2015-03-01 | H179: 0.0124 | I179: 2015-03-01 | J179: 0.0124 | L179: 2015-03-01 | M179: 0.0132 | N179: =+IF(AND(M179="",M178<>""),EDATE(N178,1),IF(TRIM(L179)="","",TRUNC(L179,0))) -> 2015-03-01 | O179: 0.0132 | Q179: 2015-03-01 | R179: 0.001296 | S179: 2015-03-01 | T179: 0.001296 | V179: 2020-10-01 | W179: 0.0095 | X179: 2020-10-01 | Y179: 0.0095 | AA179: 2010-04-10 | AB179: 0.00326 | AC179: 0.004068 | AD179: 0.004869 | AE179: 0.005663 | AF179: 2010-03-01 | AG179: 0.00326 | AH179: 0.004068 | AI179: 0.004869 | AJ179: 0.005663 | AL179: 2015-03-01 | AM179: 0.001296 | AO179: 2015-03-01 | AP179: 0.002466 | AQ179: 0.003273 | AR179: 0.004074 | AS179: 0.004867 | AU179: 179 | BR179: 2010-03-01 | BS179: 0.005 | BT179: 2010-03-01 | BU179: 0.005 | BW179: 2010-03-01 | BX179: 0.0076 | BY179: 2010-03-01 | BZ179: 2010-03-01 | CA179: 0.0076 | CC179: 2010-03-01 | CD179: 2010-03-01 | CH179: 0.0076 | CI179: 0.0076 | CJ179: 0.9639 | CX179: 2015-03-01 | CY179: 0.001296 | DA179: 2015-03-01 | DB179: 0.00630248
B180: 2014-04-01 | C180: 724 | D180: 2014-04-01 | E180: 724 | G180: 2015-04-01 | H180: 0.0107 | I180: 2015-04-01 | J180: 0.0107 | L180: 2015-04-01 | M180: 0.0071 | N180: 2015-04-01 | O180: 0.0071 | Q180: 2015-04-01 | R180: 0.001074 | S180: 2015-04-01 | T180: 0.001074 | V180: 2020-11-01 | W180: 0.0146 | X180: 2020-11-01 | Y180: 0.0146 | AA180: 2010-05-10 | AB180: 0.002466 | AC180: 0.003273 | AD180: 0.004074 | AE180: 0.004867 | AF180: 2010-04-01 | AG180: 0.002466 | AH180: 0.003273 | AI180: 0.004074 | AJ180: 0.004867 | AL180: 2015-04-01 | AM180: 0.001074 | AO180: 2015-04-01 | AP180: 0.002466 | AQ180: 0.003273 | AR180: 0.004074 | AS180: 0.004867 | AU180: 180 | BR180: 2010-04-01 | BS180: 0.005 | BT180: 2010-04-01 | BU180: 0.005 | BW180: 2010-04-01 | BX180: 0.0067 | BY180: 2010-04-01 | BZ180: 2010-04-01 | CA180: 0.0067 | CC180: 2010-04-01 | CD180: 2010-04-01 | CH180: 0.0067 | CI180: 0.0067 | CJ180: 0.9572 | CX180: =+I180 -> 2015-04-01 | CY180: =+J180 -> 0.0107 | DA180: 2015-04-01 | DB180: 0.00607937
B181: 2014-05-01 | C181: 724 | D181: 2014-05-01 | E181: 724 | G181: 2015-05-01 | H181: 0.006 | I181: 2015-05-01 | J181: 0.006 | L181: 2015-05-01 | M181: 0.0074 | N181: 2015-05-01 | O181: 0.0074 | Q181: 2015-05-01 | R181: 0.001153 | S181: 2015-05-01 | T181: 0.001153 | V181: 2020-12-01 | W181: 0.0027 | X181: 2020-12-01 | Y181: 0.0027 | AA181: 2010-06-10 | AB181: 0.002977 | AC181: 0.003785 | AD181: 0.004586 | AE181: 0.00538 | AF181: 2010-05-01 | AG181: 0.002977 | AH181: 0.003785 | AI181: 0.004586 | AJ181: 0.00538 | AL181: 2015-05-01 | AM181: 0.001153 | AO181: 2015-05-01 | AP181: 0.002466 | AQ181: 0.003273 | AR181: 0.004074 | AS181: 0.004867 | AU181: 181 | BR181: 2010-05-01 | BS181: 0.005 | BT181: 2010-05-01 | BU181: 0.005 | BW181: 2010-05-01 | BX181: 0.0075 | BY181: 2010-05-01 | BZ181: 2010-05-01 | CA181: 0.0075 | CC181: 2010-05-01 | CD181: 2010-05-01 | CH181: 0.0075 | CI181: 0.0075 | CJ181: 0.9497 | CX181: 2015-05-01 | CY181: 0.006 | DA181: 2015-05-01 | DB181: 0.006158765
B182: 2014-06-01 | C182: 724 | D182: 2014-06-01 | E182: 724 | G182: 2015-06-01 | H182: 0.0099 | I182: 2015-06-01 | J182: 0.0099 | L182: 2015-06-01 | M182: 0.0079 | N182: 2015-06-01 | O182: 0.0079 | Q182: 2015-06-01 | R182: 0.001813 | S182: 2015-06-01 | T182: 0.001813 | V182: 2021-01-01 | W182: 0.0082 | X182: 2021-01-01 | Y182: 0.0082 | AA182: 2010-07-10 | AB182: 0.003056 | AC182: 0.003864 | AD182: 0.004665 | AE182: 0.005459 | AF182: 2010-06-01 | AG182: 0.003056 | AH182: 0.003864 | AI182: 0.004665 | AJ182: 0.005459 | AL182: 2015-06-01 | AM182: 0.001813 | AO182: 2015-06-01 | AP182: 0.002466 | AQ182: 0.003273 | AR182: 0.004074 | AS182: 0.004867 | AU182: 182 | BR182: 2010-06-01 | BS182: 0.005 | BT182: 2010-06-01 | BU182: 0.005 | BW182: 2010-06-01 | BX182: 0.0079 | BY182: 2010-06-01 | BZ182: 2010-06-01 | CA182: 0.0079 | CC182: 2010-06-01 | CD182: 2010-06-01 | CH182: 0.0079 | CI182: 0.0079 | CJ182: 0.9418 | CX182: 2015-06-01 | CY182: 0.0099 | DA182: 2015-06-01 | DB182: 0.006822065
B183: 2014-07-01 | C183: 724 | D183: 2014-07-01 | E183: 724 | G183: 2015-07-01 | H183: 0.0059 | I183: 2015-07-01 | J183: 0.0059 | L183: 2015-07-01 | M183: 0.0062 | N183: 2015-07-01 | O183: 0.0062 | Q183: 2015-07-01 | R183: 0.002305 | S183: 2015-07-01 | T183: 0.002305 | V183: 2021-02-01 | W183: 0.0086 | X183: 2021-02-01 | Y183: 0.0086 | AA183: 2010-08-10 | AB183: 0.00362 | AC183: 0.004428 | AD183: 0.005229 | AE183: 0.006024 | AF183: 2010-07-01 | AG183: 0.00362 | AH183: 0.004428 | AI183: 0.005229 | AJ183: 0.006024 | AL183: 2015-07-01 | AM183: 0.002305 | AO183: 2015-07-01 | AP183: 0.002466 | AQ183: 0.003273 | AR183: 0.004074 | AS183: 0.004867 | AU183: 183 | BR183: 2010-07-01 | BS183: 0.005 | BT183: 2010-07-01 | BU183: 0.005 | BW183: 2010-07-01 | BX183: 0.0086 | BY183: 2010-07-01 | BZ183: 2010-07-01 | CA183: 0.0086 | CC183: 2010-07-01 | CD183: 2010-07-01 | CH183: 0.0086 | CI183: 0.0086 | CJ183: 0.9332 | CX183: 2015-07-01 | CY183: 0.0059 | DA183: 2015-07-01 | DB183: 0.007316525
B184: 2014-08-01 | C184: 724 | D184: 2014-08-01 | E184: 724 | G184: 2015-08-01 | H184: 0.0043 | I184: 2015-08-01 | J184: 0.0043 | L184: 2015-08-01 | M184: 0.0022 | N184: 2015-08-01 | O184: 0.0022 | Q184: 2015-08-01 | R184: 0.001867 | S184: 2015-08-01 | T184: 0.001867 | X184: 2021-03-01 | Y184: 0 | AA184: 2010-09-10 | AB184: 0.003377 | AC184: 0.004185 | AD184: 0.004986 | AE184: 0.00578 | AF184: 2010-08-01 | AG184: 0.003377 | AH184: 0.004185 | AI184: 0.004986 | AJ184: 0.00578 | AL184: 2015-08-01 | AM184: 0.001867 | AO184: 2015-08-01 | AP184: 0.002466 | AQ184: 0.003273 | AR184: 0.004074 | AS184: 0.004867 | AU184: 184 | BR184: 2010-08-01 | BS184: 0.005 | BT184: 2010-08-01 | BU184: 0.005 | BW184: 2010-08-01 | BX184: 0.0089 | BY184: 2010-08-01 | BZ184: 2010-08-01 | CA184: 0.0089 | CC184: 2010-08-01 | CD184: 2010-08-01 | CH184: 0.0089 | CI184: 0.0089 | CJ184: 0.9243 | CX184: 2015-08-01 | CY184: 0.0043 | DA184: 2015-08-01 | DB184: 0.006876335
B185: 2014-09-01 | C185: 724 | D185: 2014-09-01 | E185: 724 | G185: 2015-09-01 | H185: 0.0039 | I185: 2015-09-01 | J185: 0.0039 | L185: 2015-09-01 | M185: 0.0054 | N185: 2015-09-01 | O185: 0.0054 | Q185: 2015-09-01 | R185: 0.00192 | S185: 2015-09-01 | T185: 0.00192 | AA185: 2010-10-10 | AB185: 0.003169 | AC185: 0.003978 | AD185: 0.004778 | AE185: 0.005572 | AF185: 2010-09-01 | AG185: 0.003169 | AH185: 0.003978 | AI185: 0.004778 | AJ185: 0.005572 | AL185: 2015-09-01 | AM185: 0.00192 | AO185: 2015-09-01 | AP185: 0.002466 | AQ185: 0.003273 | AR185: 0.004074 | AS185: 0.004867 | AU185: 185 | BR185: 2010-09-01 | BS185: 0.005 | BT185: 2010-09-01 | BU185: 0.005 | BW185: 2010-09-01 | BX185: 0.0085 | BY185: 2010-09-01 | BZ185: 2010-09-01 | CA185: 0.0085 | CC185: 2010-09-01 | CD185: 2010-09-01 | CH185: 0.0085 | CI185: 0.0085 | CJ185: 0.9158 | CX185: 2015-09-01 | CY185: 0.0039 | DA185: 2015-09-01 | DB185: 0.0069296
B186: 2014-10-01 | C186: 724 | D186: 2014-10-01 | E186: 724 | G186: 2015-10-01 | H186: 0.0066 | I186: 2015-10-01 | J186: 0.0066 | L186: 2015-10-01 | M186: 0.0082 | N186: 2015-10-01 | O186: 0.0082 | Q186: 2015-10-01 | R186: 0.00179 | S186: 2015-10-01 | T186: 0.00179 | AA186: 2010-11-10 | AB186: 0.002939 | AC186: 0.003747 | AD186: 0.004548 | AE186: 0.005341 | AF186: 2010-10-01 | AG186: 0.002939 | AH186: 0.003747 | AI186: 0.004548 | AJ186: 0.005341 | AL186: 2015-10-01 | AM186: 0.00179 | AO186: 2015-10-01 | AP186: 0.002466 | AQ186: 0.003273 | AR186: 0.004074 | AS186: 0.004867 | AU186: 186 | BR186: 2010-10-01 | BS186: 0.005 | BT186: 2010-10-01 | BU186: 0.005 | BW186: 2010-10-01 | BX186: 0.0081 | BY186: 2010-10-01 | BZ186: 2010-10-01 | CA186: 0.0081 | CC186: 2010-10-01 | CD186: 2010-10-01 | CH186: 0.0081 | CI186: 0.0081 | CJ186: 0.9077 | CX186: 2015-10-01 | CY186: 0.0066 | DA186: 2015-10-01 | DB186: 0.00679895
B187: 2014-11-01 | C187: 724 | D187: 2014-11-01 | E187: 724 | G187: 2015-11-01 | H187: 0.0085 | I187: 2015-11-01 | J187: 0.0085 | L187: 2015-11-01 | M187: 0.0101 | N187: 2015-11-01 | O187: 0.0101 | Q187: 2015-11-01 | R187: 0.001297 | S187: 2015-11-01 | T187: 0.001297 | AA187: 2010-12-10 | AB187: 0.002803 | AC187: 0.00361 | AD187: 0.004411 | AE187: 0.005205 | AF187: 2010-11-01 | AG187: 0.002803 | AH187: 0.00361 | AI187: 0.004411 | AJ187: 0.005205 | AL187: 2015-11-01 | AM187: 0.001297 | AO187: 2015-11-01 | AP187: 0.002466 | AQ187: 0.003273 | AR187: 0.004074 | AS187: 0.004867 | AU187: 187 | BR187: 2010-11-01 | BS187: 0.005 | BT187: 2010-11-01 | BU187: 0.005 | BW187: 2010-11-01 | BX187: 0.0081 | BY187: 2010-11-01 | BZ187: 2010-11-01 | CA187: 0.0081 | CC187: 2010-11-01 | CD187: 2010-11-01 | CH187: 0.0081 | CI187: 0.0081 | CJ187: 0.8996 | CX187: 2015-11-01 | CY187: 0.0085 | DA187: 2015-11-01 | DB187: 0.006303485
B188: 2014-12-01 | C188: 724 | D188: 2014-12-01 | E188: 724 | G188: 2015-12-01 | H188: 0.0118 | I188: 2015-12-01 | J188: 0.0118 | L188: 2015-12-01 | M188: 0.0096 | N188: 2015-12-01 | O188: 0.0096 | Q188: 2015-12-01 | R188: 0.00225 | S188: 2015-12-01 | T188: 0.00225 | AA188: 2011-01-10 | AB188: 0.003875 | AC188: 0.004684 | AD188: 0.005485 | AE188: 0.00628 | AF188: 2010-12-01 | AG188: 0.003875 | AH188: 0.004684 | AI188: 0.005485 | AJ188: 0.00628 | AL188: 2015-12-01 | AM188: 0.00225 | AO188: 2015-12-01 | AP188: 0.002466 | AQ188: 0.003273 | AR188: 0.004074 | AS188: 0.004867 | AU188: 188 | BR188: 2010-12-01 | BS188: 0.005 | BT188: 2010-12-01 | BU188: 0.005 | BW188: 2010-12-01 | BX188: 0.0093 | BY188: 2010-12-01 | BZ188: 2010-12-01 | CA188: 0.0093 | CC188: 2010-12-01 | CD188: 2010-12-01 | CH188: 0.0093 | CI188: 0.0093 | CJ188: 0.8903 | CX188: 2015-12-01 | CY188: 0.0118 | DA188: 2015-12-01 | DB188: 0.00726125
B189: 2015-01-01 | C189: 788 | D189: 2015-01-01 | E189: 788 | G189: 2016-01-01 | H189: 0.0092 | I189: 2016-01-01 | J189: 0.0092 | L189: 2016-01-01 | M189: 0.0127 | N189: 2016-01-01 | O189: 0.0127 | Q189: 2016-01-01 | R189: 0.00132 | S189: 2016-01-01 | T189: 0.00132 | AA189: 2011-02-10 | AB189: 0.003183 | AC189: 0.003991 | AD189: 0.004792 | AE189: 0.005586 | AF189: 2011-01-01 | AG189: 0.003183 | AH189: 0.003991 | AI189: 0.004792 | AJ189: 0.005586 | AL189: 2016-01-01 | AM189: 0.00132 | AO189: 2016-01-01 | AP189: 0.002466 | AQ189: 0.003273 | AR189: 0.004074 | AS189: 0.004867 | AU189: 189 | BR189: 2011-01-01 | BS189: 0.005 | BT189: 2011-01-01 | BU189: 0.005 | BW189: 2011-01-01 | BX189: 0.0086 | BY189: 2011-01-01 | BZ189: 2011-01-01 | CA189: 0.0086 | CC189: 2011-01-01 | CD189: 2011-01-01 | CH189: 0.0086 | CI189: 0.0086 | CJ189: 0.8817 | CX189: 2016-01-01 | CY189: 0.0092 | DA189: 2016-01-01 | DB189: 0.0063266
B190: 2015-02-01 | C190: 788 | D190: 2015-02-01 | E190: 788 | G190: 2016-02-01 | H190: 0.0142 | I190: 2016-02-01 | J190: 0.0142 | L190: 2016-02-01 | M190: 0.009 | N190: 2016-02-01 | O190: 0.009 | Q190: 2016-02-01 | R190: 0.000957 | S190: 2016-02-01 | T190: 0.000957 | AA190: 2011-03-10 | AB190: 0.002991 | AC190: 0.003799 | AD190: 0.0046 | AE190: 0.005394 | AF190: 2011-02-01 | AG190: 0.002991 | AH190: 0.003799 | AI190: 0.0046 | AJ190: 0.005394 | AL190: 2016-02-01 | AM190: 0.000957 | AO190: 2016-02-01 | AP190: 0.002466 | AQ190: 0.003273 | AR190: 0.004074 | AS190: 0.004867 | AU190: 190 | BR190: 2011-02-01 | BS190: 0.005 | BT190: 2011-02-01 | BU190: 0.005 | BW190: 2011-02-01 | BX190: 0.0084 | BY190: 2011-02-01 | BZ190: 2011-02-01 | CA190: 0.0084 | CC190: 2011-02-01 | CD190: 2011-02-01 | CH190: 0.0084 | CI190: 0.0084 | CJ190: 0.8733 | CX190: 2016-02-01 | CY190: 0.0142 | DA190: 2016-02-01 | DB190: 0.005961785
B191: 2015-03-01 | C191: 788 | D191: 2015-03-01 | E191: 788 | G191: 2016-03-01 | H191: 0.0043 | I191: 2016-03-01 | J191: 0.0043 | L191: 2016-03-01 | M191: 0.0043 | N191: 2016-03-01 | O191: 0.0043 | Q191: 2016-03-01 | R191: 0.002168 | S191: 2016-03-01 | T191: 0.002168 | AA191: 2011-04-10 | AB191: 0.003681 | AC191: 0.004489 | AD191: 0.005291 | AE191: 0.006085 | AF191: 2011-03-01 | AG191: 0.003681 | AH191: 0.004489 | AI191: 0.005291 | AJ191: 0.006085 | AL191: 2016-03-01 | AM191: 0.002168 | AO191: 2016-03-01 | AP191: 0.002466 | AQ191: 0.003273 | AR191: 0.004074 | AS191: 0.004867 | AU191: 191 | BR191: 2011-03-01 | BS191: 0.005 | BT191: 2011-03-01 | BU191: 0.005 | BW191: 2011-03-01 | BX191: 0.0092 | BY191: 2011-03-01 | BZ191: 2011-03-01 | CA191: 0.0092 | CC191: 2011-03-01 | CD191: 2011-03-01 | CH191: 0.0092 | CI191: 0.0092 | CJ191: 0.8641 | CX191: 2016-03-01 | CY191: 0.0043 | DA191: 2016-03-01 | DB191: 0.00717884
B192: 2015-04-01 | C192: 788 | D192: 2015-04-01 | E192: 788 | G192: 2016-04-01 | H192: 0.0051 | I192: 2016-04-01 | J192: 0.0051 | L192: 2016-04-01 | M192: 0.0061 | N192: 2016-04-01 | O192: 0.0061 | Q192: 2016-04-01 | R192: 0.001304 | S192: 2016-04-01 | T192: 0.001304 | AA192: 2011-05-10 | AB192: 0.002836 | AC192: 0.003643 | AD192: 0.004444 | AE192: 0.005238 | AF192: 2011-04-01 | AG192: 0.002836 | AH192: 0.003643 | AI192: 0.004444 | AJ192: 0.005238 | AL192: 2016-04-01 | AM192: 0.001304 | AO192: 2016-04-01 | AP192: 0.002466 | AQ192: 0.003273 | AR192: 0.004074 | AS192: 0.004867 | AU192: 192 | BR192: 2011-04-01 | BS192: 0.005 | BT192: 2011-04-01 | BU192: 0.005 | BW192: 2011-04-01 | BX192: 0.0084 | BY192: 2011-04-01 | BZ192: 2011-04-01 | CA192: 0.0084 | CC192: 2011-04-01 | CD192: 2011-04-01 | CH192: 0.0084 | CI192: 0.0084 | CJ192: 0.8557 | CX192: 2016-04-01 | CY192: 0.0051 | DA192: 2016-04-01 | DB192: 0.00631052
B193: 2015-05-01 | C193: 788 | D193: 2015-05-01 | E193: 788 | G193: 2016-05-01 | H193: 0.0086 | I193: 2016-05-01 | J193: 0.0086 | L193: 2016-05-01 | M193: 0.0078 | N193: 2016-05-01 | O193: 0.0078 | Q193: 2016-05-01 | R193: 0.001533 | S193: 2016-05-01 | T193: 0.001533 | AA193: 2011-06-10 | AB193: 0.00404 | AC193: 0.004848 | AD193: 0.00565 | AE193: 0.006445 | AF193: 2011-05-01 | AG193: 0.00404 | AH193: 0.004848 | AI193: 0.00565 | AJ193: 0.006445 | AL193: 2016-05-01 | AM193: 0.001533 | AO193: 2016-05-01 | AP193: 0.002466 | AQ193: 0.003273 | AR193: 0.004074 | AS193: 0.004867 | AU193: 193 | BR193: 2011-05-01 | BS193: 0.005 | BT193: 2011-05-01 | BU193: 0.005 | BW193: 2011-05-01 | BX193: 0.0099 | BY193: 2011-05-01 | BZ193: 2011-05-01 | CA193: 0.0099 | CC193: 2011-05-01 | CD193: 2011-05-01 | CH193: 0.0099 | CI193: 0.0099 | CJ193: 0.8458 | CX193: 2016-05-01 | CY193: 0.0086 | DA193: 2016-05-01 | DB193: 0.006540665
B194: 2015-06-01 | C194: 788 | D194: 2015-06-01 | E194: 788 | G194: 2016-06-01 | H194: 0.004 | I194: 2016-06-01 | J194: 0.004 | L194: 2016-06-01 | M194: 0.0035 | N194: 2016-06-01 | O194: 0.0035 | Q194: 2016-06-01 | R194: 0.002043 | S194: 2016-06-01 | T194: 0.002043 | AA194: 2011-07-10 | AB194: 0.003583 | AC194: 0.004391 | AD194: 0.005192 | AE194: 0.005986 | AF194: 2011-06-01 | AG194: 0.003583 | AH194: 0.004391 | AI194: 0.005192 | AJ194: 0.005986 | AL194: 2016-06-01 | AM194: 0.002043 | AO194: 2016-06-01 | AP194: 0.002466 | AQ194: 0.003273 | AR194: 0.004074 | AS194: 0.004867 | AU194: 194 | BR194: 2011-06-01 | BS194: 0.005 | BT194: 2011-06-01 | BU194: 0.005 | BW194: 2011-06-01 | BX194: 0.0096 | BY194: 2011-06-01 | BZ194: 2011-06-01 | CA194: 0.0096 | CC194: 2011-06-01 | CD194: 2011-06-01 | CH194: 0.0096 | CI194: 0.0096 | CJ194: 0.8362 | CX194: 2016-06-01 | CY194: 0.004 | DA194: 2016-06-01 | DB194: 0.007053215
B195: 2015-07-01 | C195: 788 | D195: 2015-07-01 | E195: 788 | G195: 2016-07-01 | H195: 0.0054 | I195: 2016-07-01 | J195: 0.0054 | L195: 2016-07-01 | M195: 0.0052 | N195: 2016-07-01 | O195: 0.0052 | Q195: 2016-07-01 | R195: 0.001621 | S195: 2016-07-01 | T195: 0.001621 | AA195: 2011-08-10 | AB195: 0.003698 | AC195: 0.004506 | AD195: 0.005308 | AE195: 0.006102 | AF195: 2011-07-01 | AG195: 0.003698 | AH195: 0.004506 | AI195: 0.005308 | AJ195: 0.006102 | AL195: 2016-07-01 | AM195: 0.001621 | AO195: 2016-07-01 | AP195: 0.002466 | AQ195: 0.003273 | AR195: 0.004074 | AS195: 0.004867 | AU195: 195 | BR195: 2011-07-01 | BS195: 0.005 | BT195: 2011-07-01 | BU195: 0.005 | BW195: 2011-07-01 | BX195: 0.0097 | BY195: 2011-07-01 | BZ195: 2011-07-01 | CA195: 0.0097 | CC195: 2011-07-01 | CD195: 2011-07-01 | CH195: 0.0097 | CI195: 0.0097 | CJ195: 0.8265 | CX195: 2016-07-01 | CY195: 0.0054 | DA195: 2016-07-01 | DB195: 0.006629105
B196: 2015-08-01 | C196: 788 | D196: 2015-08-01 | E196: 788 | G196: 2016-08-01 | H196: 0.0045 | I196: 2016-08-01 | J196: 0.0045 | L196: 2016-08-01 | M196: 0.0044 | N196: 2016-08-01 | O196: 0.0044 | Q196: 2016-08-01 | R196: 0.002545 | S196: 2016-08-01 | T196: 0.002545 | AA196: 2011-09-10 | AB196: 0.004547 | AC196: 0.005356 | AD196: 0.006158 | AE196: 0.006953 | AF196: 2011-08-01 | AG196: 0.004547 | AH196: 0.005356 | AI196: 0.006158 | AJ196: 0.006953 | AL196: 2016-08-01 | AM196: 0.002545 | AO196: 2016-08-01 | AP196: 0.002466 | AQ196: 0.003273 | AR196: 0.004074 | AS196: 0.004867 | AU196: 196 | BR196: 2011-08-01 | BS196: 0.005 | BT196: 2011-08-01 | BU196: 0.005 | BW196: 2011-08-01 | BX196: 0.0107 | BY196: 2011-08-01 | BZ196: 2011-08-01 | CA196: 0.0107 | CC196: 2011-08-01 | CD196: 2011-08-01 | CH196: 0.0107 | CI196: 0.0107 | CJ196: 0.8158 | CX196: 2016-08-01 | CY196: 0.0045 | DA196: 2016-08-01 | DB196: 0.007557725
B197: 2015-09-01 | C197: 788 | D197: 2015-09-01 | E197: 788 | G197: 2016-09-01 | H197: 0.0023 | I197: 2016-09-01 | J197: 0.0023 | L197: 2016-09-01 | M197: 0.0008 | N197: 2016-09-01 | O197: 0.0008 | Q197: 2016-09-01 | R197: 0.001575 | S197: 2016-09-01 | T197: 0.001575 | AA197: 2011-10-10 | AB197: 0.003471 | AC197: 0.00428 | AD197: 0.005081 | AE197: 0.005875 | AF197: 2011-09-01 | AG197: 0.003471 | AH197: 0.00428 | AI197: 0.005081 | AJ197: 0.005875 | AL197: 2016-09-01 | AM197: 0.001575 | AO197: 2016-09-01 | AP197: 0.002466 | AQ197: 0.003273 | AR197: 0.004074 | AS197: 0.004867 | AU197: 197 | BR197: 2011-09-01 | BS197: 0.005 | BT197: =+IF(AND(TRIM(BR197)="",TRIM(BR196)<>""),"",IF(TRIM(BR197)="","",TRUNC(BR197,0))) -> 2011-09-01 | BU197: 0.005 | BW197: 2011-09-01 | BX197: 0.0094 | BY197: 2011-09-01 | BZ197: 2011-09-01 | CA197: 0.0094 | CC197: 2011-09-01 | CD197: 2011-09-01 | CH197: 0.0094 | CI197: 0.0094 | CJ197: 0.8064 | CX197: 2016-09-01 | CY197: 0.0023 | DA197: 2016-09-01 | DB197: 0.006582875
B198: 2015-10-01 | C198: 788 | D198: 2015-10-01 | E198: 788 | G198: 2016-10-01 | H198: 0.0019 | I198: 2016-10-01 | J198: 0.0019 | L198: 2016-10-01 | M198: 0.0026 | N198: 2016-10-01 | O198: 0.0026 | Q198: 2016-10-01 | R198: 0.001601 | S198: 2016-10-01 | T198: 0.001601 | AA198: 2011-11-10 | AB198: 0.003087 | AC198: 0.003895 | AD198: 0.004696 | AE198: 0.00549 | AF198: 2011-10-01 | AG198: 0.003087 | AH198: 0.003895 | AI198: 0.004696 | AJ198: 0.00549 | AL198: 2016-10-01 | AM198: 0.001601 | AO198: 2016-10-01 | AP198: 0.002466 | AQ198: 0.003273 | AR198: 0.004074 | AS198: 0.004867 | AU198: 198 | BR198: 2011-10-01 | BS198: 0.005 | BT198: 2011-10-01 | BU198: =IF(TRIM(BS198)="","",BS198) -> 0.005 | BW198: 2011-10-01 | BX198: 0.0088 | BY198: 2011-10-01 | BZ198: 2011-10-01 | CA198: 0.0088 | CC198: =+IF(BT198="","",BT198) -> 2011-10-01 | CD198: 2011-10-01 | CH198: 0.0088 | CI198: 0.0088 | CJ198: 0.7976 | CX198: 2016-10-01 | CY198: 0.0019 | DA198: 2016-10-01 | DB198: 0.006609005
B199: 2015-11-01 | C199: 788 | D199: 2015-11-01 | E199: 788 | G199: 2016-11-01 | H199: 0.0026 | I199: 2016-11-01 | J199: 0.0026 | L199: 2016-11-01 | M199: 0.0018 | N199: 2016-11-01 | O199: 0.0018 | Q199: 2016-11-01 | R199: 0.001428 | S199: 2016-11-01 | T199: 0.001428 | AA199: 2011-12-10 | AB199: 0.003112 | AC199: 0.00392 | AD199: 0.004721 | AE199: 0.005515 | AF199: 2011-11-01 | AG199: 0.003112 | AH199: 0.00392 | AI199: 0.004721 | AJ199: 0.005515 | AL199: 2016-11-01 | AM199: 0.001428 | AO199: 2016-11-01 | AP199: 0.002466 | AQ199: 0.003273 | AR199: 0.004074 | AS199: 0.004867 | AU199: 199 | BR199: 2011-11-01 | BS199: 0.005 | BT199: 2011-11-01 | BU199: 0.005 | BW199: 2011-11-01 | BX199: 0.0086 | BY199: 2011-11-01 | BZ199: 2011-11-01 | CA199: 0.0086 | CC199: 2011-11-01 | CD199: 2011-11-01 | CH199: 0.0086 | CI199: 0.0086 | CJ199: 0.789 | CX199: 2016-11-01 | CY199: 0.0026 | DA199: 2016-11-01 | DB199: 0.00643514
B200: 2015-12-01 | C200: 788 | D200: 2015-12-01 | E200: 788 | G200: 2016-12-01 | H200: 0.0019 | I200: 2016-12-01 | J200: 0.0019 | L200: 2016-12-01 | M200: 0.003 | N200: 2016-12-01 | O200: 0.003 | Q200: 2016-12-01 | R200: 0.001849 | S200: 2016-12-01 | T200: 0.001849 | AA200: 2012-01-10 | AB200: 0.003405 | AC200: 0.004213 | AD200: 0.005014 | AE200: 0.005809 | AF200: 2011-12-01 | AG200: 0.003405 | AH200: 0.004213 | AI200: 0.005014 | AJ200: 0.005809 | AL200: 2016-12-01 | AM200: 0.001849 | AO200: 2016-12-01 | AP200: 0.002466 | AQ200: 0.003273 | AR200: 0.004074 | AS200: 0.004867 | AU200: 200 | BR200: 2011-12-01 | BS200: 0.005 | BT200: 2011-12-01 | BU200: 0.005 | BW200: 2011-12-01 | BX200: 0.0091 | BY200: 2011-12-01 | BZ200: 2011-12-01 | CA200: 0.0091 | CC200: 2011-12-01 | CD200: 2011-12-01 | CH200: 0.0091 | CI200: 0.0091 | CJ200: 0.7799 | CX200: 2016-12-01 | CY200: 0.0019 | DA200: 2016-12-01 | DB200: 0.006858245
... 200 more rows

Sheet rascunho (hidden)
B2: BD | T2: ATUALIZADO | V2: JUROS
B3: REF | C3: TIPO | D3: HISTÓRICO | E3: DATA | F3: PRINCIPAL | G3: JUROS | H3: FOLHAS | J3: ORD | K3: COD | M3: DESCRIÇÃO | N3: FOLHAS | O3: DATA | P3: DATA | Q3: PRINCIPAL | R3: JUROS | S3: COEF. AT. | T3: PRINCIPAL | U3: JUROS | V3: % | W3: VALOR | X3: TOTAL | Z3: RESUMO GERAL
B4: 1 | C4: =+IF(cadastro!O6<>"OK","",cadastro!P6) ->  | D4: =+IF(C4="","",IF(cadastro!L6<>"",cadastro!L6,IF(C4="C","Parcela Positiva","Parcela Negativa"))) ->  | E4: =+IF(C4="","",TRUNC(cadastro!H6,0)+B4/1000) ->  | F4: =+IF(C4="","",cadastro!I6*IF(C4="D",-1,1)) ->  | G4: =+IF(C4="","",cadastro!M6*IF(C4="D",-1,1)) ->  | H4: =+IF(C4="","",LOWER(cadastro!N6)) ->  | J4: =+IF(ISERR(SMALL(E:E,B4)),"",SMALL(E:E,B4)) ->  | K4: =+IF(J4="","",ROUND((J4-TRUNC(J4,0))*1000,0)) ->  | M4: =+IF(K4="","",(LOOKUP(K4,B:B,D:D))) ->  | N4: =+IF(K4="","",LOOKUP(K4,B:B,H:H)) ->  | O4: =+IF(J4="","",TRUNC(J4,0)) ->  | P4: =+IF(O4="","",EOMONTH(O4,-1)+1) ->  | Q4: =+IF(K4="","",LOOKUP(K4,B:B,F:F)) ->  | R4: =+IF(K4="","",LOOKUP(K4,B:B,G:G)) ->  | S4: =IF(P4="","",IF(COD_CM=0,1,LOOKUP(IF(COD_CM=4,EDATE(P4,1),P4),tabelas!AW:AW,tabelas!AY:AY))) ->  | T4: =+IF(K4="","",TRUNC(Q4*S4,2)) ->  | U4: =+IF(K4="","",TRUNC(R4*S4,2)) ->  | V4: =+IF(P4="","",LOOKUP(EDATE(MAXA(VDAT_JUR1,P4),0),tabelas!CD:CD,tabelas!CJ:CJ)) ->  | W4: =+IF(P4="","",TRUNC(T4*V4,2)) ->  | X4: =+IF(P4="","",U4+W4+T4) ->  | Z4: TOTAL DO PRINCIPAL: | AC4: =+T29 -> 0
B5: 2 | C5: =+IF(cadastro!O7<>"OK","",cadastro!P7) ->  | D5: =+IF(C5="","",IF(cadastro!L7<>"",cadastro!L7,IF(C5="C","Parcela Positiva","Parcela Negativa"))) ->  | E5: =+IF(C5="","",TRUNC(cadastro!H7,0)+B5/1000) ->  | F5: =+IF(C5="","",cadastro!I7*IF(C5="D",-1,1)) ->  | G5: =+IF(C5="","",cadastro!M7*IF(C5="D",-1,1)) ->  | H5: =+IF(C5="","",LOWER(cadastro!N7)) ->  | K5: =+IF(J5="","",ROUND((J5-TRUNC(J5,0))*1000,0)) ->  | O5: =+IF(J5="","",TRUNC(J5,0)) ->  | P5: =+IF(O5="","",EOMONTH(O5,-1)+1) ->  | S5: =IF(P5="","",IF(COD_CM=0,1,LOOKUP(IF(COD_CM=4,EDATE(P5,1),P5),tabelas!AW:AW,tabelas!AY:AY))) ->  | T5: =+IF(K5="","",TRUNC(Q5*S5,2)) ->  | V5: =+IF(P5="","",LOOKUP(EDATE(MAXA(VDAT_JUR1,P5),0),tabelas!CD:CD,tabelas!CJ:CJ)) ->  | Z5: TOTAL DO JUROS: | AC5: =+U29+W29 -> 0
B6: 3 | C6: =+IF(cadastro!O8<>"OK","",cadastro!P8) ->  | D6: =+IF(C6="","",IF(cadastro!L8<>"",cadastro!L8,IF(C6="C","Parcela Positiva","Parcela Negativa"))) ->  | E6: =+IF(C6="","",TRUNC(cadastro!H8,0)+B6/1000) ->  | F6: =+IF(C6="","",cadastro!I8*IF(C6="D",-1,1)) ->  | G6: =+IF(C6="","",cadastro!M8*IF(C6="D",-1,1)) ->  | H6: =+IF(C6="","",LOWER(cadastro!N8)) ->  | S6: =IF(P6="","",IF(COD_CM=0,1,LOOKUP(IF(COD_CM=4,EDATE(P6,1),P6),tabelas!AW:AW,tabelas!AY:AY))) ->  | V6: =+IF(P6="","",LOOKUP(EDATE(MAXA(VDAT_JUR1,P6),0),tabelas!CD:CD,tabelas!CJ:CJ)) ->  | Z6: DIFERENÇA APURADA: | AC6: =+AC4+AC5 -> 0
B7: 4 | C7: =+IF(cadastro!O9<>"OK","",cadastro!P9) ->  | D7: =+IF(C7="","",IF(cadastro!L9<>"",cadastro!L9,IF(C7="C","Parcela Positiva","Parcela Negativa"))) ->  | E7: =+IF(C7="","",TRUNC(cadastro!H9,0)+B7/1000) ->  | F7: =+IF(C7="","",cadastro!I9*IF(C7="D",-1,1)) ->  | G7: =+IF(C7="","",cadastro!M9*IF(C7="D",-1,1)) ->  | H7: =+IF(C7="","",LOWER(cadastro!N9)) ->  | S7: =IF(P7="","",IF(COD_CM=0,1,LOOKUP(IF(COD_CM=4,EDATE(P7,1),P7),tabelas!AW:AW,tabelas!AY:AY))) ->  | V7: =+IF(P7="","",LOOKUP(EDATE(MAXA(VDAT_JUR1,P7),0),tabelas!CD:CD,tabelas!CJ:CJ)) ->  | Z7: TOTAL DEVIDO: | AC7: =+IF(AC6<0,0,AC6) -> 0
B8: 5 | C8: =+IF(cadastro!O10<>"OK","",cadastro!P10) ->  | D8: =+IF(C8="","",IF(cadastro!L10<>"",cadastro!L10,IF(C8="C","Parcela Positiva","Parcela Negativa"))) ->  | E8: =+IF(C8="","",TRUNC(cadastro!H10,0)+B8/1000) ->  | F8: =+IF(C8="","",cadastro!I10*IF(C8="D",-1,1)) ->  | G8: =+IF(C8="","",cadastro!M10*IF(C8="D",-1,1)) ->  | H8: =+IF(C8="","",LOWER(cadastro!N10)) ->  | S8: =IF(P8="","",IF(COD_CM=0,1,LOOKUP(IF(COD_CM=4,EDATE(P8,1),P8),tabelas!AW:AW,tabelas!AY:AY))) ->  | V8: =+IF(P8="","",LOOKUP(EDATE(MAXA(VDAT_JUR1,P8),0),tabelas!CD:CD,tabelas!CJ:CJ)) ->  | Z8: SIT_IMP | AC8: =+IF(M4<>"","S","") -> 
B9: 6 | C9: =+IF(cadastro!O11<>"OK","",cadastro!P11) ->  | D9: =+IF(C9="","",IF(cadastro!L11<>"",cadastro!L11,IF(C9="C","Parcela Positiva","Parcela Negativa"))) ->  | E9: =+IF(C9="","",TRUNC(cadastro!H11,0)+B9/1000) ->  | F9: =+IF(C9="","",cadastro!I11*IF(C9="D",-1,1)) ->  | G9: =+IF(C9="","",cadastro!M11*IF(C9="D",-1,1)) ->  | H9: =+IF(C9="","",LOWER(cadastro!N11)) ->  | S9: =IF(P9="","",IF(COD_CM=0,1,LOOKUP(IF(COD_CM=4,EDATE(P9,1),P9),tabelas!AW:AW,tabelas!AY:AY))) ->  | V9: =+IF(P9="","",LOOKUP(EDATE(MAXA(VDAT_JUR1,P9),0),tabelas!CD:CD,tabelas!CJ:CJ)) -> 
B10: 7 | C10: =+IF(cadastro!O12<>"OK","",cadastro!P12) ->  | D10: =+IF(C10="","",IF(cadastro!L12<>"",cadastro!L12,IF(C10="C","Parcela Positiva","Parcela Negativa"))) ->  | E10: =+IF(C10="","",TRUNC(cadastro!H12,0)+B10/1000) ->  | F10: =+IF(C10="","",cadastro!I12*IF(C10="D",-1,1)) ->  | G10: =+IF(C10="","",cadastro!M12*IF(C10="D",-1,1)) ->  | H10: =+IF(C10="","",LOWER(cadastro!N12)) ->  | S10: =IF(P10="","",IF(COD_CM=0,1,LOOKUP(IF(COD_CM=4,EDATE(P10,1),P10),tabelas!AW:AW,tabelas!AY:AY))) ->  | V10: =+IF(P10="","",LOOKUP(EDATE(MAXA(VDAT_JUR1,P10),0),tabelas!CD:CD,tabelas!CJ:CJ)) ->  | Z10: MEMÓRIA DE CÁLCULO
B11: 8 | C11: =+IF(cadastro!O13<>"OK","",cadastro!P13) ->  | D11: =+IF(C11="","",IF(cadastro!L13<>"",cadastro!L13,IF(C11="C","Parcela Positiva","Parcela Negativa"))) ->  | E11: =+IF(C11="","",TRUNC(cadastro!H13,0)+B11/1000) ->  | F11: =+IF(C11="","",cadastro!I13*IF(C11="D",-1,1)) ->  | G11: =+IF(C11="","",cadastro!M13*IF(C11="D",-1,1)) ->  | H11: =+IF(C11="","",LOWER(cadastro!N13)) ->  | S11: =IF(P11="","",IF(COD_CM=0,1,LOOKUP(IF(COD_CM=4,EDATE(P11,1),P11),tabelas!AW:AW,tabelas!AY:AY))) ->  | V11: =+IF(P11="","",LOOKUP(EDATE(MAXA(VDAT_JUR1,P11),0),tabelas!CD:CD,tabelas!CJ:CJ)) ->  | Z11: =+IF(cadastro!T50="","",LOOKUP(MATCH(cadastro!T50,tabelas!BD9:BD26,0),tabelas!BB:BB,tabelas!BK:BK)) -> Sem correção monetária
B12: 9 | C12: =+IF(cadastro!O14<>"OK","",cadastro!P14) ->  | D12: =+IF(C12="","",IF(cadastro!L14<>"",cadastro!L14,IF(C12="C","Parcela Positiva","Parcela Negativa"))) ->  | E12: =+IF(C12="","",TRUNC(cadastro!H14,0)+B12/1000) ->  | F12: =+IF(C12="","",cadastro!I14*IF(C12="D",-1,1)) ->  | G12: =+IF(C12="","",cadastro!M14*IF(C12="D",-1,1)) ->  | H12: =+IF(C12="","",LOWER(cadastro!N14)) ->  | S12: =IF(P12="","",IF(COD_CM=0,1,LOOKUP(IF(COD_CM=4,EDATE(P12,1),P12),tabelas!AW:AW,tabelas!AY:AY))) ->  | V12: =+IF(P12="","",LOOKUP(EDATE(MAXA(VDAT_JUR1,P12),0),tabelas!CD:CD,tabelas!CJ:CJ)) -> 
B13: 10 | C13: =+IF(cadastro!O15<>"OK","",cadastro!P15) ->  | D13: =+IF(C13="","",IF(cadastro!L15<>"",cadastro!L15,IF(C13="C","Parcela Positiva","Parcela Negativa"))) ->  | E13: =+IF(C13="","",TRUNC(cadastro!H15,0)+B13/1000) ->  | F13: =+IF(C13="","",cadastro!I15*IF(C13="D",-1,1)) ->  | G13: =+IF(C13="","",cadastro!M15*IF(C13="D",-1,1)) ->  | H13: =+IF(C13="","",LOWER(cadastro!N15)) ->  | S13: =IF(P13="","",IF(COD_CM=0,1,LOOKUP(IF(COD_CM=4,EDATE(P13,1),P13),tabelas!AW:AW,tabelas!AY:AY))) ->  | V13: =+IF(P13="","",LOOKUP(EDATE(MAXA(VDAT_JUR1,P13),0),tabelas!CD:CD,tabelas!CJ:CJ)) ->  | Z13: =+CONCATENATE("-Atualização monetária: ",Z11," (a partir de cada parcela)") -> -Atualização monetária: Sem correção monetária (a partir de cada parcela)
B14: 11 | C14: =+IF(cadastro!O16<>"OK","",cadastro!P16) ->  | D14: =+IF(C14="","",IF(cadastro!L16<>"",cadastro!L16,IF(C14="C","Parcela Positiva","Parcela Negativa"))) ->  | E14: =+IF(C14="","",TRUNC(cadastro!H16,0)+B14/1000) ->  | F14: =+IF(C14="","",cadastro!I16*IF(C14="D",-1,1)) ->  | G14: =+IF(C14="","",cadastro!M16*IF(C14="D",-1,1)) ->  | H14: =+IF(C14="","",LOWER(cadastro!N16)) ->  | S14: =IF(P14="","",IF(COD_CM=0,1,LOOKUP(IF(COD_CM=4,EDATE(P14,1),P14),tabelas!AW:AW,tabelas!AY:AY))) ->  | V14: =+IF(P14="","",LOOKUP(EDATE(MAXA(VDAT_JUR1,P14),0),tabelas!CD:CD,tabelas!CJ:CJ)) -> 
B15: 12 | C15: =+IF(cadastro!O17<>"OK","",cadastro!P17) ->  | D15: =+IF(C15="","",IF(cadastro!L17<>"",cadastro!L17,IF(C15="C","Parcela Positiva","Parcela Negativa"))) ->  | E15: =+IF(C15="","",TRUNC(cadastro!H17,0)+B15/1000) ->  | F15: =+IF(C15="","",cadastro!I17*IF(C15="D",-1,1)) ->  | G15: =+IF(C15="","",cadastro!M17*IF(C15="D",-1,1)) ->  | H15: =+IF(C15="","",LOWER(cadastro!N17)) ->  | S15: =IF(P15="","",IF(COD_CM=0,1,LOOKUP(IF(COD_CM=4,EDATE(P15,1),P15),tabelas!AW:AW,tabelas!AY:AY))) ->  | V15: =+IF(P15="","",LOOKUP(EDATE(MAXA(VDAT_JUR1,P15),0),tabelas!CD:CD,tabelas!CJ:CJ)) ->  | Z15: =+IF(cadastro!D7="","",LOOKUP(COD_JUROS,tabelas!CL:CL,tabelas!CO:CO)) -> SELIC
B16: 13 | C16: =+IF(cadastro!O18<>"OK","",cadastro!P18) ->  | D16: =+IF(C16="","",IF(cadastro!L18<>"",cadastro!L18,IF(C16="C","Parcela Positiva","Parcela Negativa"))) ->  | E16: =+IF(C16="","",TRUNC(cadastro!H18,0)+B16/1000) ->  | F16: =+IF(C16="","",cadastro!I18*IF(C16="D",-1,1)) ->  | G16: =+IF(C16="","",cadastro!M18*IF(C16="D",-1,1)) ->  | H16: =+IF(C16="","",LOWER(cadastro!N18)) ->  | S16: =IF(P16="","",IF(COD_CM=0,1,LOOKUP(IF(COD_CM=4,EDATE(P16,1),P16),tabelas!AW:AW,tabelas!AY:AY))) ->  | V16: =+IF(P16="","",LOOKUP(EDATE(MAXA(VDAT_JUR1,P16),0),tabelas!CD:CD,tabelas!CJ:CJ)) -> 
B17: 14 | C17: =+IF(cadastro!O19<>"OK","",cadastro!P19) ->  | D17: =+IF(C17="","",IF(cadastro!L19<>"",cadastro!L19,IF(C17="C","Parcela Positiva","Parcela Negativa"))) ->  | E17: =+IF(C17="","",TRUNC(cadastro!H19,0)+B17/1000) ->  | F17: =+IF(C17="","",cadastro!I19*IF(C17="D",-1,1)) ->  | G17: =+IF(C17="","",cadastro!M19*IF(C17="D",-1,1)) ->  | H17: =+IF(C17="","",LOWER(cadastro!N19)) ->  | S17: =IF(P17="","",IF(COD_CM=0,1,LOOKUP(IF(COD_CM=4,EDATE(P17,1),P17),tabelas!AW:AW,tabelas!AY:AY))) ->  | V17: =+IF(P17="","",LOOKUP(EDATE(MAXA(VDAT_JUR1,P17),0),tabelas!CD:CD,tabelas!CJ:CJ)) ->  | Z17: =+IF(cadastro!T51=""," (a partir de cada parcela)",CONCATENATE("(a partir de ",TEXT(cadastro!T51,"dd/mm/aaaa"),")")) -> (a partir de cada parcela)
B18: 15 | C18: =+IF(cadastro!O20<>"OK","",cadastro!P20) ->  | D18: =+IF(C18="","",IF(cadastro!L20<>"",cadastro!L20,IF(C18="C","Parcela Positiva","Parcela Negativa"))) ->  | E18: =+IF(C18="","",TRUNC(cadastro!H20,0)+B18/1000) ->  | F18: =+IF(C18="","",cadastro!I20*IF(C18="D",-1,1)) ->  | G18: =+IF(C18="","",cadastro!M20*IF(C18="D",-1,1)) ->  | H18: =+IF(C18="","",LOWER(cadastro!N20)) ->  | S18: =IF(P18="","",IF(COD_CM=0,1,LOOKUP(IF(COD_CM=4,EDATE(P18,1),P18),tabelas!AW:AW,tabelas!AY:AY))) ->  | V18: =+IF(P18="","",LOOKUP(EDATE(MAXA(VDAT_JUR1,P18),0),tabelas!CD:CD,tabelas!CJ:CJ)) -> 
B19: 16 | C19: =+IF(cadastro!O21<>"OK","",cadastro!P21) ->  | D19: =+IF(C19="","",IF(cadastro!L21<>"",cadastro!L21,IF(C19="C","Parcela Positiva","Parcela Negativa"))) ->  | E19: =+IF(C19="","",TRUNC(cadastro!H21,0)+B19/1000) ->  | F19: =+IF(C19="","",cadastro!I21*IF(C19="D",-1,1)) ->  | G19: =+IF(C19="","",cadastro!M21*IF(C19="D",-1,1)) ->  | H19: =+IF(C19="","",LOWER(cadastro!N21)) ->  | S19: =IF(P19="","",IF(COD_CM=0,1,LOOKUP(IF(COD_CM=4,EDATE(P19,1),P19),tabelas!AW:AW,tabelas!AY:AY))) ->  | V19: =+IF(P19="","",LOOKUP(EDATE(MAXA(VDAT_JUR1,P19),0),tabelas!CD:CD,tabelas!CJ:CJ)) ->  | Z19: =+CONCATENATE("-Juros moratórios aplicados de forma simples: ",Z15," ",Z17) -> -Juros moratórios aplicados de forma simples: SELIC (a partir de cada parcela)
B20: 17 | C20: =+IF(cadastro!O22<>"OK","",cadastro!P22) ->  | D20: =+IF(C20="","",IF(cadastro!L22<>"",cadastro!L22,IF(C20="C","Parcela Positiva","Parcela Negativa"))) ->  | E20: =+IF(C20="","",TRUNC(cadastro!H22,0)+B20/1000) ->  | F20: =+IF(C20="","",cadastro!I22*IF(C20="D",-1,1)) ->  | G20: =+IF(C20="","",cadastro!M22*IF(C20="D",-1,1)) ->  | H20: =+IF(C20="","",LOWER(cadastro!N22)) ->  | S20: =IF(P20="","",IF(COD_CM=0,1,LOOKUP(IF(COD_CM=4,EDATE(P20,1),P20),tabelas!AW:AW,tabelas!AY:AY))) ->  | V20: =+IF(P20="","",LOOKUP(EDATE(MAXA(VDAT_JUR1,P20),0),tabelas!CD:CD,tabelas!CJ:CJ)) -> 
B21: 18 | C21: =+IF(cadastro!O23<>"OK","",cadastro!P23) ->  | D21: =+IF(C21="","",IF(cadastro!L23<>"",cadastro!L23,IF(C21="C","Parcela Positiva","Parcela Negativa"))) ->  | E21: =+IF(C21="","",TRUNC(cadastro!H23,0)+B21/1000) ->  | F21: =+IF(C21="","",cadastro!I23*IF(C21="D",-1,1)) ->  | G21: =+IF(C21="","",cadastro!M23*IF(C21="D",-1,1)) ->  | H21: =+IF(C21="","",LOWER(cadastro!N23)) ->  | S21: =IF(P21="","",IF(COD_CM=0,1,LOOKUP(IF(COD_CM=4,EDATE(P21,1),P21),tabelas!AW:AW,tabelas!AY:AY))) ->  | V21: =+IF(P21="","",LOOKUP(EDATE(MAXA(VDAT_JUR1,P21),0),tabelas!CD:CD,tabelas!CJ:CJ)) -> 
B22: 19 | C22: =+IF(cadastro!O24<>"OK","",cadastro!P24) ->  | D22: =+IF(C22="","",IF(cadastro!L24<>"",cadastro!L24,IF(C22="C","Parcela Positiva","Parcela Negativa"))) ->  | E22: =+IF(C22="","",TRUNC(cadastro!H24,0)+B22/1000) ->  | F22: =+IF(C22="","",cadastro!I24*IF(C22="D",-1,1)) ->  | G22: =+IF(C22="","",cadastro!M24*IF(C22="D",-1,1)) ->  | H22: =+IF(C22="","",LOWER(cadastro!N24)) ->  | S22: =IF(P22="","",IF(COD_CM=0,1,LOOKUP(IF(COD_CM=4,EDATE(P22,1),P22),tabelas!AW:AW,tabelas!AY:AY))) ->  | V22: =+IF(P22="","",LOOKUP(EDATE(MAXA(VDAT_JUR1,P22),0),tabelas!CD:CD,tabelas!CJ:CJ)) -> 
B23: 20 | C23: =+IF(cadastro!O25<>"OK","",cadastro!P25) ->  | D23: =+IF(C23="","",IF(cadastro!L25<>"",cadastro!L25,IF(C23="C","Parcela Positiva","Parcela Negativa"))) ->  | E23: =+IF(C23="","",TRUNC(cadastro!H25,0)+B23/1000) ->  | F23: =+IF(C23="","",cadastro!I25*IF(C23="D",-1,1)) ->  | G23: =+IF(C23="","",cadastro!M25*IF(C23="D",-1,1)) ->  | H23: =+IF(C23="","",LOWER(cadastro!N25)) ->  | S23: =IF(P23="","",IF(COD_CM=0,1,LOOKUP(IF(COD_CM=4,EDATE(P23,1),P23),tabelas!AW:AW,tabelas!AY:AY))) ->  | V23: =+IF(P23="","",LOOKUP(EDATE(MAXA(VDAT_JUR1,P23),0),tabelas!CD:CD,tabelas!CJ:CJ)) -> 
B24: 21 | C24: =+IF(cadastro!O26<>"OK","",cadastro!P26) ->  | D24: =+IF(C24="","",IF(cadastro!L26<>"",cadastro!L26,IF(C24="C","Parcela Positiva","Parcela Negativa"))) ->  | E24: =+IF(C24="","",TRUNC(cadastro!H26,0)+B24/1000) ->  | F24: =+IF(C24="","",cadastro!I26*IF(C24="D",-1,1)) ->  | G24: =+IF(C24="","",cadastro!M26*IF(C24="D",-1,1)) ->  | H24: =+IF(C24="","",LOWER(cadastro!N26)) ->  | S24: =IF(P24="","",IF(COD_CM=0,1,LOOKUP(IF(COD_CM=4,EDATE(P24,1),P24),tabelas!AW:AW,tabelas!AY:AY))) ->  | V24: =+IF(P24="","",LOOKUP(EDATE(MAXA(VDAT_JUR1,P24),0),tabelas!CD:CD,tabelas!CJ:CJ)) -> 
B25: 22 | C25: =+IF(cadastro!O27<>"OK","",cadastro!P27) ->  | D25: =+IF(C25="","",IF(cadastro!L27<>"",cadastro!L27,IF(C25="C","Parcela Positiva","Parcela Negativa"))) ->  | E25: =+IF(C25="","",TRUNC(cadastro!H27,0)+B25/1000) ->  | F25: =+IF(C25="","",cadastro!I27*IF(C25="D",-1,1)) ->  | G25: =+IF(C25="","",cadastro!M27*IF(C25="D",-1,1)) ->  | H25: =+IF(C25="","",LOWER(cadastro!N27)) ->  | S25: =IF(P25="","",IF(COD_CM=0,1,LOOKUP(IF(COD_CM=4,EDATE(P25,1),P25),tabelas!AW:AW,tabelas!AY:AY))) ->  | V25: =+IF(P25="","",LOOKUP(EDATE(MAXA(VDAT_JUR1,P25),0),tabelas!CD:CD,tabelas!CJ:CJ)) -> 
B26: 23 | C26: =+IF(cadastro!O28<>"OK","",cadastro!P28) ->  | D26: =+IF(C26="","",IF(cadastro!L28<>"",cadastro!L28,IF(C26="C","Parcela Positiva","Parcela Negativa"))) ->  | E26: =+IF(C26="","",TRUNC(cadastro!H28,0)+B26/1000) ->  | F26: =+IF(C26="","",cadastro!I28*IF(C26="D",-1,1)) ->  | G26: =+IF(C26="","",cadastro!M28*IF(C26="D",-1,1)) ->  | H26: =+IF(C26="","",LOWER(cadastro!N28)) ->  | S26: =IF(P26="","",IF(COD_CM=0,1,LOOKUP(IF(COD_CM=4,EDATE(P26,1),P26),tabelas!AW:AW,tabelas!AY:AY))) ->  | V26: =+IF(P26="","",LOOKUP(EDATE(MAXA(VDAT_JUR1,P26),0),tabelas!CD:CD,tabelas!CJ:CJ)) -> 
B27: 24 | C27: =+IF(cadastro!O29<>"OK","",cadastro!P29) ->  | D27: =+IF(C27="","",IF(cadastro!L29<>"",cadastro!L29,IF(C27="C","Parcela Positiva","Parcela Negativa"))) ->  | E27: =+IF(C27="","",TRUNC(cadastro!H29,0)+B27/1000) ->  | F27: =+IF(C27="","",cadastro!I29*IF(C27="D",-1,1)) ->  | G27: =+IF(C27="","",cadastro!M29*IF(C27="D",-1,1)) ->  | H27: =+IF(C27="","",LOWER(cadastro!N29)) ->  | S27: =IF(P27="","",IF(COD_CM=0,1,LOOKUP(IF(COD_CM=4,EDATE(P27,1),P27),tabelas!AW:AW,tabelas!AY:AY))) ->  | V27: =+IF(P27="","",LOOKUP(EDATE(MAXA(VDAT_JUR1,P27),0),tabelas!CD:CD,tabelas!CJ:CJ)) -> 
B28: 25 | C28: =+IF(cadastro!O30<>"OK","",cadastro!P30) ->  | D28: =+IF(C28="","",IF(cadastro!L30<>"",cadastro!L30,IF(C28="C","Parcela Positiva","Parcela Negativa"))) ->  | E28: =+IF(C28="","",TRUNC(cadastro!H30,0)+B28/1000) ->  | F28: =+IF(C28="","",cadastro!I30*IF(C28="D",-1,1)) ->  | G28: =+IF(C28="","",cadastro!M30*IF(C28="D",-1,1)) ->  | H28: =+IF(C28="","",LOWER(cadastro!N30)) ->  | S28: =IF(P28="","",IF(COD_CM=0,1,LOOKUP(IF(COD_CM=4,EDATE(P28,1),P28),tabelas!AW:AW,tabelas!AY:AY))) ->  | V28: =+IF(P28="","",LOOKUP(EDATE(MAXA(VDAT_JUR1,P28),0),tabelas!CD:CD,tabelas!CJ:CJ)) -> 
T29: =SUM(T4:T28) -> 0 | U29: =SUM(U4:U28) -> 0 | W29: =SUM(W4:W28) -> 0 | X29: =SUM(X4:X28) -> 0
